{"text_format":"1","workbook":"xlsx","n_sheets":4,"sheets":["2"," civil "," civil  (3)"," civil  (2)"],"not_rendered":{"charts":0,"images":2,"macros":1,"external_links":0,"defined_names":9,"comments":0,"pivot_tables":0},"unopened":[],"bounds":{"document_bytes":16777216,"sheet_cells":100000,"rows_first":2000,"rows_last":500,"rows_between":2000,"halvings":0,"cell_chars":16384,"cell_head_chars":4096},"cells_cut":0,"cells_raw":0,"read":"whole","date_system":"1900"}

{"sheet":"2","index":0,"n_rows":50,"n_cols":30,"rows_kept":50,"cut":false,"hidden":false,"merged":[[1,3,1,7],[3,0,4,0],[3,1,4,2],[3,3,4,3],[3,4,4,4],[3,5,4,5],[3,6,3,7],[3,10,4,10],[3,11,4,11],[7,1,7,11],[10,1,10,2],[12,1,12,2],[18,1,18,2],[20,1,20,2],[24,1,24,2],[26,1,26,2],[3,8,3,9],[14,1,14,2],[16,1,16,2],[34,1,34,2],[36,1,36,2],[28,1,28,2],[30,1,30,2],[43,0,43,2],[43,10,43,11],[39,1,39,2],[41,0,41,2],[41,3,41,11],[42,0,42,2],[42,3,42,8],[42,10,42,11],[43,3,43,8]]}
[]
[null,null,2,"Project :Tameya 220/66/11 S/S",null,null,null,null,"2018-04-07"]
["Project : ","Tameya 220/66/11KV S/S",null,null,null,null,null,null,null,null,null,null,null,null,null,null,null,null,null,null,null,null,null,null,null,null,null,null,null,"previous"]
["Code ","Item Description ",null,"Unit"," Item Weight  %","Unit Price L.E.","Previous",null,"Current",null,"TOTAL %","Total Price L.E.",null,null,null,null,null,null,null,null,null,null,null,null,null,null,{"$f":"NOW()","v":"2018-04-14T10:16:16.320"},{"$f":"(C2)+1","v":3},null,0]
[null,null,null,null,null,null,"%","EGP","%","EGP"]
[null,"TOTAL CONTRACT FOR CIVIL AND SITE WORK",null,"LS"]
["B/G/600 000","Civil Works:",null,null,null,null,null,null,null,null,null,9454398.4499999993]
["B/G/620  000","220 kv AND 66 kv GIS OUTDOOR EQUIPMENTS, RECEIVING GANTREES, SUPPORTS OF GIP  CONNECTION, NETURAL POINTS AND CABLE SEALING ENDS AND THE FUTURE 66 kv BAYS. (Lump sum prices of items # 520 100.... 520 200). "]
["B/G/620  100","Concrete Work",null,null,null,null,null,null,null,null,null,379008.75]
["B/G/620 101","EXCAVATION "]
[null,"Excavation including Excavated material Transfer  (As Specified)",null,"LS",0.15,{"$f":"$L$9*E11","v":56851.3125},0,{"$f":"G11*F11","v":0},0.05,{"$f":"(F11*I11)","v":2842.5656250000002},{"$f":"G11+I11","v":0.05},{"$f":"H11+J11","v":2842.5656250000002}]
["B/G/620 102","SOIL  REPLACEMENT"]
[null," Supply and apply , SOIL REPLACEMENT According to the approved sieve analysis according to drawings &specs , the rate include leveling , water , compaction and compaction test to be compacted with relative compaction 98%.",null,"LS",7.0000000000000007E-2,{"$f":"$L$9*E13","v":26530.612500000003},0,{"$f":"G13*F13","v":0},0.1,{"$f":"(F13*I13)","v":2653.0612500000007},{"$f":"G13+I13","v":0.1},{"$f":"H13+J13","v":2653.0612500000007}]
["B/G/620 103","Backfeling"]
[null," backfilling by approved fill material  ,including compaction , the rate include compaction test  according to specs.","M3","LS",0.1,37900.875,0,{"$f":"G15*F15","v":0},0.12,{"$f":"(F15*I15)","v":4548.1049999999996},{"$f":"G15+I15","v":0.12},{"$f":"H15+J15","v":4548.1049999999996}]
["B/G/620 104","PLAIN CONCRETE "]
[null,"Supply and provide ready mix plain concrete grade 250 KG/m³, the clause includes form work, adding additives, pouring and curing and that concrete should be finished as per specs and industry assets. ",null,"LS",0.15,56851.3125,0,{"$f":"G17*F17","v":0},0,{"$f":"(F17*I17)","v":0},{"$f":"G17+I17","v":0},{"$f":"H17+J17","v":0}]
["B/G/620 105","REINFORCEMENT CONCRETE"]
[null,"Reinforced concrete for foundation and semelle with specified strength  including all required joints  and testing (As Specified)   (Cement content not less than 350 Kg/m³)",null,"LS",0.4,151603.5,0,{"$f":"G19*F19","v":0},0,{"$f":"(F19*I19)","v":0},{"$f":"G19+I19","v":0},{"$f":"H19+J19","v":0}]
["B/G/620 106","INSULLATION "]
[null," providing (supplying & painting) three coats of bituminous emulsion above concrete surface which in contact with soil as per drawings & specs.",null,"LS",0.13,49271.137500000004,0,{"$f":"G21*F21","v":0},0.1,{"$f":"(F21*I21)","v":4927.1137500000004},{"$f":"G21+I21","v":0.1},{"$f":"H21+J21","v":4927.1137500000004}]
["B/G/620  100","Total",null,null,{"$f":"SUM(E11:E21)","v":1},{"$f":"SUM(F11:F21)","v":379008.75},null,null,null,null,{"$f":"L22/L9","v":3.9500000000000007E-2},{"$f":"SUM(L11:L21)","v":14970.845625000002}]
["B/G 620 200","STRUCTURAL STEEL WORKS",null,null,null,null,null,null,null,null,null,1137026.24]
["B/G/620 201","DESIGN"]
[null,"delver all the aproved drawings to owner ",null,"LS",0.1,{"$f":"$L$23*E25","v":113702.62400000001},0,{"$f":"G25*F25","v":0},0.05,{"$f":"(F25*I25)","v":5685.1312000000007},{"$f":"G25+I25","v":0.05},{"$f":"H25+J25","v":5685.1312000000007}]
["B/G/620 202"," SUPPLYING "]
[null," supplying  of complete steel structure (Anchor bolts; columns; embedded beams; embedded plates; fixed plates ) according to drawing and specs.",null,"LS",0.45,{"$f":"$L$23*E27","v":511661.80800000002},0,{"$f":"G27*F27","v":0},0,{"$f":"(F27*I27)","v":0},{"$f":"G27+I27","v":0},{"$f":"H27+J27","v":0}]
["B/G/620 203"," ERECTION "]
[null," steel structure  erection including  welding (Anchor bolts; columns; embedded beams; embedded plates; fixed plates ) according to specs.",null,"LS",0.3,341107.87199999997,0,{"$f":"G29*F29","v":0},0,{"$f":"(F29*I29)","v":0},{"$f":"G29+I29","v":0},{"$f":"H29+J29","v":0}]
["B/G/620 204","GROUTING "]
[null,"Supply and apply Non shrink grout (As Specified)",null,"LS",0.15,170553.93599999999,0,{"$f":"G31*F31","v":0},0,{"$f":"(F31*I31)","v":0},{"$f":"G31+I31","v":0},{"$f":"H31+J31","v":0}]
["B/G/620 200","Total",null,null,{"$f":"SUM(E25:E31)","v":1},{"$f":"SUM(F25:F31)","v":1137026.24},null,null,null,null,{"$f":"L32/L23","v":5.000000000000001E-3},{"$f":"SUM(L25:L31)","v":5685.1312000000007}]
["B/G/701 400","DESIGN",null,null,null,null,null,null,null,null,null,151603.498542274]
["B/G/701 401","PRIMARY DESIGN "]
[null,"delver all the aproved drawings to owner ",null,"LS",0.9,{"$f":"$L$33*E35","v":136443.14868804661},0,{"$f":"G35*F35","v":0},0,{"$f":"(F35*I35)","v":0},{"$f":"G35+I35","v":0},{"$f":"H35+J35","v":0}]
["B/G/701 402","AS BULT DRAWINGS"]
[null,"delver  aproved as built drawings to owner ",null,"LS",0.1,{"$f":"$L$33*E37","v":15160.349854227401},0,{"$f":"G37*F37","v":0},0,{"$f":"(F37*I37)","v":0},{"$f":"G37+I37","v":0},{"$f":"H37+J37","v":0}]
["B/G/701 400","Total",null,null,{"$f":"SUM(E35:E37)","v":1},{"$f":"SUM(F35:F37)","v":151603.498542274},null,null,null,null,{"$f":"L38/L33","v":0},{"$f":"SUM(L35:L37)","v":0}]
["B/G/701 500","DECENNIAL LIABILITY INSURANCE",null,null,null,null,null,null,0,null,null,126336.248785228]
[null,"DECENNIAL LIABILITY INSURANCE","DECENNIAL LIABILITY INSURANCE","LS",1,{"$f":"$L$39*E40","v":126336.248785228},0,{"$f":"G40*F40","v":0},0,{"$f":"(F40*I40)","v":0},{"$f":"G40+I40","v":0},{"$f":"H40+J40","v":0}]
["B/G/701 500","Total",null,null,{"$f":"SUM(E40)","v":1},{"$f":"SUM(F40)","v":126336.248785228},null,null,null,null,{"$f":"L41/L39","v":0},{"$f":"SUM(L40)","v":0}]
["TOTAL CONTRACT",null,null,{"$f":"L9+L23+L33+L39","v":1793974.7373275021}]
["TOTAL  CURRENT INVOICE ",null,null,{"$f":"L22+L32+L38+L41","v":20655.976825000002},null,null,null,null,null,null,{"$f":"D43/D42","v":1.1514084560505778E-2}]
["TOTAL PREVIOUS INVOICE ",null,null,{"$f":"AD4","v":0}]
[]
[]
[]
[]
[]
[null,null,null,null,null,null,null,null,null,null,null,"  "]

{"sheet":" civil ","index":1,"n_rows":504,"n_cols":14,"rows_kept":504,"cut":false,"hidden":true,"merged":[[378,1,378,2],[380,1,380,2],[382,1,382,2],[465,1,465,2],[299,1,299,2],[293,1,293,2],[387,1,387,2],[389,1,389,2],[401,1,401,2],[403,1,403,2],[405,1,405,2],[407,1,407,2],[441,1,441,2],[443,1,443,2],[445,1,445,2],[447,1,447,2],[451,1,451,2],[453,1,453,2],[449,1,449,2],[311,1,311,2],[313,1,313,2],[308,1,308,3],[309,1,309,2],[315,1,315,2],[325,1,325,2],[321,1,321,2],[323,1,323,2],[363,1,363,2],[281,1,281,2],[301,1,301,2],[267,1,267,2],[271,1,271,2],[273,1,273,2],[275,1,275,2],[279,1,279,2],[295,1,295,2],[297,1,297,2],[253,1,253,2],[257,1,257,2],[259,1,259,2],[261,1,261,2],[265,1,265,2],[285,1,285,2],[287,1,287,2],[289,1,289,2],[291,1,291,2],[243,1,243,2],[245,1,245,2],[247,1,247,2],[249,1,249,2],[251,1,251,2],[229,1,229,2],[233,1,233,2],[235,1,235,2],[239,1,239,2],[241,1,241,2],[221,1,221,2],[223,1,223,2],[225,1,225,2],[227,1,227,2],[207,1,207,2],[210,1,210,9],[213,1,213,2],[215,1,215,2],[217,1,217,2],[205,1,205,2],[181,1,181,2],[183,1,183,2],[185,1,185,2],[189,1,189,2],[191,1,191,2],[219,1,219,2],[195,1,195,2],[197,1,197,2],[151,1,151,2],[153,1,153,2],[131,1,131,2],[133,1,133,2],[135,1,135,2],[137,1,137,2],[139,1,139,2],[201,1,201,2],[203,1,203,2],[500,1,500,2],[335,1,335,2],[337,1,337,2],[329,1,329,2],[331,1,331,2],[333,1,333,2],[471,1,471,2],[473,1,473,2],[477,1,477,2],[479,1,479,2],[481,1,481,2],[485,1,485,2],[497,1,497,2],[487,1,487,2],[489,1,489,2],[491,1,491,2],[368,1,368,2],[370,1,370,2],[372,1,372,2],[366,1,366,2],[385,1,385,2],[361,1,361,2],[374,1,374,2],[393,1,393,2],[502,3,502,13],[61,1,61,2],[67,1,67,2],[353,1,353,2],[355,1,355,2],[357,1,357,2],[469,1,469,2],[101,1,101,2],[105,1,105,2],[95,1,95,2],[99,1,99,2],[91,1,91,2],[93,1,93,2],[85,1,85,2],[87,1,87,2],[79,1,79,2],[81,1,81,2],[115,1,115,2],[107,1,107,2],[117,1,117,2],[319,1,319,2],[397,1,397,2],[399,1,399,2],[111,1,111,2],[73,1,73,2],[77,1,77,2],[69,1,69,2],[71,1,71,2],[305,1,305,5],[318,1,318,3],[26,1,26,2],[3,1,3,2],[12,1,12,2],[14,1,14,2],[10,1,10,2],[7,1,7,13],[18,1,18,2],[24,1,24,2],[16,1,16,2],[20,1,20,2],[129,1,129,2],[113,1,113,2],[127,1,127,2],[167,1,167,2],[169,1,169,2],[171,1,171,2],[175,1,175,2],[177,1,177,2],[495,1,495,2],[438,1,438,2],[459,1,459,2],[461,1,461,2],[428,1,428,2],[430,1,430,2],[432,1,432,2],[434,1,434,2],[436,1,436,2],[28,1,28,2],[65,1,65,2],[41,1,41,2],[43,1,43,2],[59,1,59,2],[63,1,63,2],[55,1,55,2],[30,1,30,9],[39,1,39,2],[45,1,45,2],[49,1,49,2],[47,1,47,2],[53,1,53,2],[33,1,33,2],[35,1,35,2],[37,1,37,2],[120,1,120,9],[123,1,123,2],[125,1,125,2],[410,1,410,2],[412,1,412,2],[422,1,422,2],[414,1,414,2],[416,1,416,2],[420,1,420,2],[418,1,418,2],[341,1,341,2],[343,1,343,2],[345,1,345,2],[349,1,349,2],[391,1,391,2],[351,1,351,2],[155,1,155,2],[157,1,157,2],[159,1,159,2],[161,1,161,2],[163,1,163,2],[143,1,143,2],[145,1,145,2],[149,1,149,2]]}
[]
[]
["Project : ","Tameya 220/66/11KV S/S"]
["Code ","Item Description ",null,"Unit",null,"% Item Weight","% Total Contract","Unit Price L.E.",null,"Previous",null,"Current","TOTAL","Total Price L.E."]
[null,null,null,null,null,null,null,null,"%","EGP","%","EGP"]
[null,null,null,null,null,null,null,null,null,null,null,null,null,{"$f":"N7+N306","v":18254966}]
["B/G/600 000","Civil Works:",null,"LS",null,null,null,null,null,null,null,null,null,9454398.4499999993]
["B/G/620  000","220 GIS OUTDOOR EQUIPMENTS, RECEIVING GANTREES, SUPPORTS OF GIP  CONNECTION, NETURAL POINTS AND CABLE SEALING ENDS. (Lump sum prices of items # 520 100.... 520 200). "]
["B/G/620  100","Concrete Work",null,null,null,null,null,null,null,null,null,null,null,379008.75]
["B/G/620 101","EXCAVATION "]
[null,"Excavation including Excavated material Transfer  (As Specified)",null,"LS",null,0.1,null,{"$f":"F11*N9","v":37900.875},null,null,null,null,{"$f":"L11+J11","v":0},{"$f":"M11*H11","v":0}]
["B/G/620 102","SOIL  REPLACEMENT"]
[null," Supply and apply , SOIL REPLACEMENT According to the approved sieve analysis according to drawings &specs , the rate include leveling , water , compaction and compaction test to be compacted with relative compaction 98%.",null,"LS",null,0.1,null,{"$f":"F13*N9","v":37900.875},null,null,null,null,{"$f":"L13+J13","v":0},{"$f":"M13*H13","v":0}]
["B/G/620 103","Backfeling"]
[null," backfilling by approved fill material selected from excavation ,including compaction , the rate include compaction test  according to specs.","M3","LS",null,0.12,null,{"$f":"F15*N9","v":45481.049999999996},null,null,null,null,{"$f":"L15+J15","v":0},{"$f":"M15*H15","v":0}]
["B/G/620 104","PLAIN CONCRETE "]
[null,"Supply and provide ready mix plain concrete grade 250 KG/m³, the clause includes form work, adding additives, pouring and curing, to be separated from soil  by 250 micron polyethylene proofing sheet, and that concrete should be finished as per specs and industry assets. ",null,"LS",null,0.15,null,104227.40549999999,null,null,null,null,{"$f":"L17+J17","v":0},{"$f":"M17*H17","v":0}]
["B/G/620 105","REINFORCEMENT CONCRETE"]
[null,"Reinforced concrete for foundation and semelle with specified strength  including all required joints  and testing (As Specified)   (Cement content not less than 350 Kg/m³)",null,"LS",null,0.45,null,312682.21649999998,null,null,null,null,{"$f":"L19+J19","v":0},{"$f":"M19*H19","v":0}]
["B/G/620 106","INSULLATION "]
[null," providing (supplying & painting) three coats of bituminous emulsion above concrete surface which in contact with soil as per drawings & specs.",null,"LS",null,0.08,null,55587.9496,null,null,null,null,{"$f":"L21+J21","v":0},{"$f":"M21*H21","v":0}]
["B/G/620  100","Total",null,null,null,{"$f":"SUM(F11:F21)","v":0.99999999999999989},null,null,null,null,null,null,{"$f":"SUM(M11:M21)","v":0},{"$f":"SUM(N11:N21)","v":0}]
["B/G 620 200","STRUCTURAL STEEL WORKS",null,null,null,null,null,null,null,null,null,null,null,1137026.24]
["B/G/620 201"," SUPPLYING "]
[null," supplying  of complete steel structure (Anchor bolts; columns; embedded beams; embedded plates; fixed plates ) according to drawing and specs.",null,"LS",null,0.6,null,571428.56999999995,null,null,null,null,{"$f":"L25+J25","v":0},{"$f":"M25*H25","v":0}]
["B/G/620 202"," ERECTION "]
[null," steel structure  erection including  welding (Anchor bolts; columns; embedded beams; embedded plates; fixed plates ) according to specs.",null,"LS",null,0.3,null,285714.28499999997,null,null,null,null,{"$f":"L27+J27","v":0},{"$f":"M27*H27","v":0}]
["B/G/620 203","GROUTING "]
[null,"Supply and apply Non shrink grout (As Specified)",null,"LS",null,0.1,null,95238.095000000001,null,null,null,null,{"$f":"L29+J29","v":0},{"$f":"M29*H29","v":0}]
["B/G/620 200","Total",null,null,null,{"$f":"SUM(F25:F29)","v":0.99999999999999989},null,null,null,null,null,null,{"$f":"SUM(M25:M29)","v":0},{"$f":"SUM(N25:N29)","v":0}]
["B/G/630  000","220 KV GIS switch gear building (lump sum prices of items Nos. 630 100 through 630 900)"]
["B/G/630  100","Concrete Work",null,null,null,null,null,null,null,null,null,null,null,1183189.5]
["B/G/630 101","EXCAVATION "]
[null,"Excavation including Excavated material Transfer  (As Specified)",null,"LS",null,0.06,null,93673.469400000002,null,null,null,null,{"$f":"L34+J34","v":0},{"$f":"M34*H34","v":0}]
["B/G/630 102","SOIL  REPLACEMENT"]
[null,"Supply and apply , SOIL REPLACEMENT According to the approved sieve analysis according to drawings &specs , the rate include leveling , water , compaction and compaction test to be compacted with relative compaction 98%.",null,"LS",null,0.08,null,124897.9592,null,null,null,null,{"$f":"L36+J36","v":0},{"$f":"M36*H36","v":0}]
["B/G/630 103","Backfeling"]
[null,"backfilling by approved fill material selected from excavation ,including compaction , the rate include compaction test  according to specs.","M3","LS",null,0.08,null,124897.9592,null,null,null,null,{"$f":"L38+J38","v":0},{"$f":"M38*H38","v":0}]
["B/G/630 104","PLAIN CONCRETE "]
[null,"Supply and provide ready mix plain concrete grade 250 KG/m³, the clause includes form work, adding additives, pouring and curing, to be separated from soil  by 250 micron polyethylene proofing sheet, and that concrete should be finished as per specs and industry assets. ",null,"LS",null,0.1,null,156122.44899999999,null,null,null,null,{"$f":"L40+J40","v":0},{"$f":"M40*H40","v":0}]
["B/G/630 105","REINFORCEMENT CONCRETE FOR FOOTINGS "]
[null,"Reinforced concrete for foundation and semelle with specified strength  including all required joints  and testing (As Specified)   (Cement content not less than 350 Kg/m³)",null,"LS",null,0.2,null,312244.89799999999,null,null,null,null,{"$f":"L42+J42","v":0},{"$f":"M42*H42","v":0}]
["B/G/630 106","REINFORCEMENT CONCRETE FOR COLUMNS AND BEAMS"]
[null,"Reinforced concrete for columns and beams with specified strength  including all required  testing (As Specified)   (Cement content not less than 350 Kg/m³) ",null,"LS",null,0.15,null,234183.6735,null,null,null,null,{"$f":"L44+J44","v":0},{"$f":"M44*H44","v":0}]
["B/G/630 107","REINFORCEMENT CONCRETE FOR ROOF SLAP"]
[null,"Reinforced concrete for roof slab and beams with specified strength  including faire faceand all required  testing (As Specified) (Cement content not less than 350 Kg/m³) ",null,"LS",null,0.2,null,312244.89799999999,null,null,null,null,{"$f":"L46+J46","v":0},{"$f":"M46*H46","v":0}]
["B/G/630 108","INSULLATION "]
[null,"providing (supplying & painting) three coats of bituminous emulsion above concrete surface which in contact with soil as per drawings & specs. ( Up to zero level )",null,"LS",null,0.05,null,78061.224499999997,null,null,null,null,{"$f":"L48+J48","v":0},{"$f":"M48*H48","v":0}]
["B/G/630 109","SLAP ON GRADE  "]
[null,"applying all the reqaired layes of slap on grade according to drawings and specs.",null,"LS",null,0.08,null,124897.9592,null,null,null,null,{"$f":"L50+J50","v":0},{"$f":"M50*H50","v":0}]
["B/G/630  100","Total",null,null,null,{"$f":"SUM(F34:F50)","v":1.0000000000000002},null,null,null,null,null,null,{"$f":"SUM(M34:M50)","v":0},{"$f":"SUM(N34:N50)","v":0}]
["B/G/630  200","STRUCTURAL STEEL WORKS",null,null,null,null,null,null,null,null,null,null,null,104398.45]
["B/G/620  201"," SUPPLYING "]
[null," supplying  of complete steel structure (Anchor bolts; columns; embedded beams; embedded plates; fixed plates ) according to drawing and specs.",null,"LS",null,0.6,null,48979.59,null,null,null,null,{"$f":"L54+J54","v":0},{"$f":"M54*H54","v":0}]
["B/G/630 202"," ERECTION "]
[null," steel structure  erection including  welding (Anchor bolts; columns; embedded beams; embedded plates; fixed plates ) according to specs.",null,"LS",null,0.4,null,32653.059999999998,null,null,null,null,{"$f":"L56+J56","v":0},{"$f":"M56*H56","v":0}]
["B/G/630  200","Total",null,null,null,{"$f":"SUM(F54:F56)","v":1},null,null,null,null,null,null,{"$f":"SUM(M54:M56)","v":0},{"$f":"SUM(N54:N56)","v":0}]
["B/G/630  300","ARCHITECTURAL WORKS",null,null,null,null,null,null,null,null,null,null,null,904793.97]
["B/G/630 301","MASONARY WORK  "]
[null,"supplying & constructing and installing)brick walls solid cemented  25cm thick.;  the brick dimensions are 250*120*60 mm, the clause includes all lintels; scaffolding; dowels and wire mesh which connect brick with the concrete items before starting plaster works, the mortar contents is 350 kg of ordinary Portland cement for each cubic meter of sand, as per drawings & specs, and all necessary to finish works as per the technical industrial assets,  the rate include lentel required.                                  ",null,"LS",null,0.3,null,214285.71299999999,null,null,null,null,{"$f":"L60+J60","v":0},{"$f":"M60*H60","v":0}]
["B/G/630 302","PLASTERING WORKS"]
[null," providing (supplying & plastering) for the cement mortar for walls, is including leveling; scaffolding; all necessary tools;   the cement content in the mortar not less than 350 kg  Ordinary Portland Cement for each cubic meter of sand, as per drawings & specs, and all necessary to finish works as per the technical industrial assets. .  ",null,"LS",null,0.15,null,107142.85649999999,null,null,null,null,{"$f":"L62+J62","v":0},{"$f":"M62*H62","v":0}]
["B/G/630 303","PAINTING WORKS"]
[null,"providing (supplying & paint) emulsion plastic washable paint for internal walls   is including three putty coats; one fin mastic flat coat, and two final  coat, the clause included all necessary tools and steel scaffolding as per drawings & specs, and all necessary to finish works as per the technical industrial assets, and  the approved color samples.  ",null,"LS",null,0.1,null,71428.570999999996,null,null,null,null,{"$f":"L64+J64","v":0},{"$f":"M64*H64","v":0}]
["B/G/630 304","FLOORINNG WORKS"]
[null," Delivery and installation all the types of floorinng  including all required and specs ",null,"LS",null,0.1,null,71428.570999999996,null,null,null,null,{"$f":"L66+J66","v":0},{"$f":"M66*H66","v":0}]
["B/G/630 305","ROOFING SYSTEM "]
[null,"Protection layer for roofing including all requirement and accessories    (As Specified)",null,"LS",null,0.13,null,92857.142299999992,null,null,null,null,{"$f":"L68+J68","v":0},{"$f":"M68*H68","v":0}]
["B/G/630 306","ROLLING SHUTTER DOOR  "]
[null,"Delivery and erection of approved according to specs.",null,"LS",null,0.16,null,114285.7136,null,null,null,null,{"$f":"L70+J70","v":0},{"$f":"M70*H70","v":0}]
["B/G/630 307","DOORS"]
[null,"Delivery and erection of approved color  aluminum doors.",null,"LS",null,0.03,null,21428.5713,null,null,null,null,{"$f":"L72+J72","v":0},{"$f":"M72*H72","v":0}]
["B/G/630 308","WINDOWS "]
[null,"Delivery and erection of approved color  aluminum windows.",null,"LS",null,0.03,null,21428.5713,null,null,null,null,{"$f":"L74+J74","v":0},{"$f":"M74*H74","v":0}]
["B/G/630  300","Total",null,null,null,{"$f":"SUM(F60:F74)","v":1},null,null,null,null,null,null,{"$f":"SUM(M60:M74)","v":0},{"$f":"SUM(N60:N74)","v":0}]
["B/G/630  400","ELECTRICAL WORK",null,null,null,null,null,null,null,null,null,null,null,58000]
["B/G/630 401"," SUPPLY"]
[null,"supplying  all necessary elecreical  parts to compleat the work according to specs ",null,null,null,0.25,null,16581.6325,null,null,null,null,{"$f":"L78+J78","v":0},{"$f":"M78*H78","v":0}]
["B/G/630 402","FIXTUERES"]
[null,"locate and fix all the electrical items according to drawings and specs ",null,"LS",null,0.65,null,43112.244500000001,null,null,null,null,{"$f":"L80+J80","v":0},{"$f":"M80*H80","v":0}]
["B/G/630 403","TEST "]
[null,"all the necessary tests to handling the electrical work according to specs and industry assets.",null,"LS",null,0.1,null,6632.6530000000002,null,null,null,null,{"$f":"L82+J82","v":0},{"$f":"M82*H82","v":0}]
["B/G/630  400","Total",null,null,null,{"$f":"SUM(F78:F82)","v":1},null,null,null,null,null,null,{"$f":"SUM(M78:M82)","v":0},{"$f":"SUM(N78:N82)","v":0}]
["B/G/630 500","PLUMBING WORK",null,null,null,null,null,null,null,null,null,null,null,144998.06]
["B/G/630 501","SUPPLY AND INSTALL"]
[null,"Supplying and installing  all necessary embedded items and connections according to specs and drawings",null,"LS",null,0.7,null,64625.847999999998,null,null,null,null,{"$f":"L86+J86","v":0},{"$f":"M86*H86","v":0}]
["B/G/630 502","TEST"]
[null,"all the necessary tests to handling the plumbing system according to specs and industry assets.",null,"LS",null,0.3,null,27696.791999999998,null,null,null,null,{"$f":"L88+J88","v":0},{"$f":"M88*H88","v":0}]
["B/G/630 500","Total",null,null,null,{"$f":"SUM(F86:F88)","v":1},null,null,null,null,null,null,{"$f":"SUM(M86:M88)","v":0},{"$f":"SUM(N86:N88)","v":0}]
["B/G/630 600","VENTILATION SYSTEM",null,null,null,null,null,null,null,null,null,null,null,60318.76]
["B/G/630 601"," SUPPLY"]
[null,"supplying  all necessary ventilation parts according to specs and drawings ",null,null,null,0.6,null,56443.146000000001,null,null,null,null,{"$f":"L92+J92","v":0},{"$f":"M92*H92","v":0}]
["B/G/630 602","FIXTUERES"]
[null,"locate and fix all the ventilation parts according to drawings and specs ",null,"LS",null,0.2,null,18814.382000000001,null,null,null,null,{"$f":"L94+J94","v":0},{"$f":"M94*H94","v":0}]
["B/G/630 603","TEST "]
[null,"all the necessary tests to handling the VENTILATION SYSTEM according to specs and industry assets.",null,"LS",null,0.2,null,18814.382000000001,null,null,null,null,{"$f":"L96+J96","v":0},{"$f":"M96*H96","v":0}]
["B/G/630 600","Total",null,null,null,{"$f":"SUM(F92:F96)","v":1},null,null,null,null,null,null,{"$f":"SUM(M92:M96)","v":0},{"$f":"SUM(N92:N96)","v":0}]
["B/G/630 700","FIRE DETECTION",null,null,null,null,null,null,null,null,null,null,null,26678.328474246799]
["B/G/630 701","SUPPLY AND ERECT"]
[null,"Supplying and erecting  all necessary fire detection system parts and connections according to specs and drawings",null,"LS",null,0.7,null,26190.478999999999,null,null,null,null,{"$f":"L100+J100","v":0},{"$f":"M100*H100","v":0}]
["B/G/630 702","TEST"]
[null,"all the necessary tests to handling the fire detection system according to specs and industry assets.",null,"LS",null,0.3,null,11224.491,null,null,null,null,{"$f":"L102+J102","v":0},{"$f":"M102*H102","v":0}]
["B/G/630 700","Total",null,null,null,{"$f":"SUM(F100:F102)","v":1},null,null,null,null,null,null,{"$f":"SUM(M100:M102)","v":0},{"$f":"SUM(N100:N102)","v":0}]
["B/G/630 800","ELECTRICALLY OPERATED OVER HEAD CREAN",null,null,null,null,null,null,null,null,null,null,null,425247.813411079]
["B/G/630 801","SUPPLY "]
[null,"Supplying  over head crean according to specifications.",null,"LS",null,0.7,null,255782.30999999997,null,null,null,null,{"$f":"L106+J106","v":0},{"$f":"M106*H106","v":0}]
["B/G/630 802","ERECT AND OPERATE "]
[null,"erecting the over head crean and operate it,including all the required tests.",null,"LS",null,0.3,null,109620.98999999999,null,null,null,null,{"$f":"L108+J108","v":0},{"$f":"M108*H108","v":0}]
["B/G/630 800","Total",null,null,null,{"$f":"SUM(F106:F108)","v":1},null,null,null,null,null,null,{"$f":"SUM(M106:M108)","v":0},{"$f":"SUM(N106:N108)","v":0}]
["B/G/630 900","R.C CABLE TRENCHES AND DUCTS",null,null,null,null,null,null,null,null,null,null,null,52199.222546161298]
["B/G/630 901","PLAIN CONCRETE "]
[null,"Supply and provide ready mix plain concrete grade 250 KG/m³, the clause includes form work, adding additives, pouring and curing,, and that concrete should be finished as per specs and industry assets. ",null,"LS",null,0.1,null,5830.9040000000005,null,null,null,null,{"$f":"L112+J112","v":0},{"$f":"M112*H112","v":0}]
["B/G/630 902","REINFORCEMENT CONCRETE"]
[null,"Reinforced concrete for raft and walls with specified strength  including all required  and testing (As Specified)   (Cement content not less than 350 Kg/m³)",null,"LS",null,0.5,null,29154.52,null,null,null,null,{"$f":"L114+J114","v":0},{"$f":"M114*H114","v":0}]
["B/G/630 903","CHEQUERED PLATE COVER "]
[null,"Delivery and erection of  chequered plate cover including painting  & all installation and handling  requirement (As Specified)",null,"LS",null,0.15,null,8746.3559999999998,null,null,null,null,{"$f":"L116+J116","v":0},{"$f":"M116*H116","v":0}]
["B/G/630 904","DUCTE"]
[null,"making all the necessary ducte according to drawings and spics.",null,"LS",null,0.25,null,14577.26,null,null,null,null,{"$f":"L118+J118","v":0},{"$f":"M118*H118","v":0}]
["B/G/630 900","Total",null,null,null,{"$f":"SUM(F112:F118)","v":1},null,null,null,null,null,null,{"$f":"SUM(M112:M118)","v":0},{"$f":"SUM(N112:N118)","v":0}]
[]
["B/G/640 000","66 KV GIS switch gear building (lump sum prices of items Nos. 640 100 through 640 900)"]
["B/G/640 100","Concrete Work",null,null,null,null,null,null,null,null,null,null,null,751700.68027210899]
["B/G/640 101","EXCAVATION "]
[null,"Excavation including Excavated material Transfer  (As Specified)",null,"LS",null,0.06,null,93673.469400000002,null,0,null,null,{"$f":"L124+J124","v":0},{"$f":"M124*H124","v":0}]
["B/G/640 102","SOIL  REPLACEMENT"]
[null,"Supply and apply , SOIL REPLACEMENT According to the approved sieve analysis according to drawings &specs , the rate include leveling , water , compaction and compaction test to be compacted with relative compaction 98%.",null,"LS",null,0.08,null,124897.9592,null,null,null,null,{"$f":"L126+J126","v":0},{"$f":"M126*H126","v":0}]
["B/G/640 103","Backfeling"]
[null,"backfilling by approved fill material selected from excavation ,including compaction , the rate include compaction test  according to specs.","M3","LS",null,0.08,null,124897.9592,null,null,null,null,{"$f":"L128+J128","v":0},{"$f":"M128*H128","v":0}]
["B/G/640 104","PLAIN CONCRETE "]
[null,"Supply and provide ready mix plain concrete grade 250 KG/m³, the clause includes form work, adding additives, pouring and curing, to be separated from soil  by 250 micron polyethylene proofing sheet, and that concrete should be finished as per specs and industry assets. ",null,"LS",null,0.1,null,156122.44899999999,null,null,null,null,{"$f":"L130+J130","v":0},{"$f":"M130*H130","v":0}]
["B/G/640 105","REINFORCEMENT CONCRETE FOR FOOTINGS "]
[null,"Reinforced concrete for foundation and semelle with specified strength  including all required joints  and testing (As Specified)   (Cement content not less than 350 Kg/m³)",null,"LS",null,0.2,null,312244.89799999999,null,null,null,null,{"$f":"L132+J132","v":0},{"$f":"M132*H132","v":0}]
["B/G/640 106","REINFORCEMENT CONCRETE FOR COLUMNS AND BEAMS"]
[null,"Reinforced concrete for columns and beams with specified strength  including all required  testing (As Specified)   (Cement content not less than 350 Kg/m³) ",null,"LS",null,0.15,null,234183.6735,null,null,null,null,{"$f":"L134+J134","v":0},{"$f":"M134*H134","v":0}]
["B/G/640 107","REINFORCEMENT CONCRETE FOR ROOF SLAP"]
[null,"Reinforced concrete for roof slab and beams with specified strength  including faire faceand all required  testing (As Specified) (Cement content not less than 350 Kg/m³) ",null,"LS",null,0.2,null,312244.89799999999,null,null,null,null,{"$f":"L136+J136","v":0},{"$f":"M136*H136","v":0}]
["B/G/640 108","INSULLATION "]
[null,"providing (supplying & painting) three coats of bituminous emulsion above concrete surface which in contact with soil as per drawings & specs. ( Up to zero level )",null,"LS",null,0.05,null,78061.224499999997,null,null,null,null,{"$f":"L138+J138","v":0},{"$f":"M138*H138","v":0}]
["B/G/640 109","SLAP ON GRADE  "]
[null,"applying all the reqaired layes of slap on grade according to drawings and specs.",null,"LS",null,0.08,null,124897.9592,null,null,null,null,{"$f":"L140+J140","v":0},{"$f":"M140*H140","v":0}]
["B/G/640 100","Total",null,null,null,{"$f":"SUM(F124:F140)","v":1.0000000000000002},null,null,null,null,null,null,{"$f":"SUM(M124:M140)","v":0},{"$f":"SUM(N124:N140)","v":0}]
["B/G/640 200","STRUCTURAL STEEL WORKS",null,null,null,null,null,null,null,null,null,null,null,66326.530612244896]
["B/G/640  201"," SUPPLYING "]
[null," supplying  of complete steel structure (Anchor bolts; columns; embedded beams; embedded plates; fixed plates ) according to drawing and specs.",null,"LS",null,0.6,null,48979.59,null,null,null,null,{"$f":"L144+J144","v":0},{"$f":"M144*H144","v":0}]
["B/G/640 202"," ERECTION "]
[null," steel structure  erection including  welding (Anchor bolts; columns; embedded beams; embedded plates; fixed plates ) according to specs.",null,"LS",null,0.4,null,32653.059999999998,null,null,null,null,{"$f":"L146+J146","v":0},{"$f":"M146*H146","v":0}]
["B/G/640 200","Total",null,null,null,{"$f":"SUM(F144:F146)","v":1},null,null,null,null,null,null,{"$f":"SUM(M144:M146)","v":0},{"$f":"SUM(N144:N146)","v":0}]
["B/G/640 300","ARCHITECTURAL WORKS",null,null,null,null,null,null,null,null,null,null,null,574829.931972789]
["B/G/640 301","MASONARY WORK  "]
[null,"supplying & constructing and installing)brick walls solid cemented  25cm thick.;  the brick dimensions are 250*120*60 mm, the clause includes all lintels; scaffolding; dowels and wire mesh which connect brick with the concrete items before starting plaster works, the mortar contents is 350 kg of ordinary Portland cement for each cubic meter of sand, as per drawings & specs, and all necessary to finish works as per the technical industrial assets,  the rate include lentel required.                                  ",null,"LS",null,0.3,null,214285.71299999999,null,null,null,null,{"$f":"L150+J150","v":0},{"$f":"M150*H150","v":0}]
["B/G/640 302","PLASTERING WORKS"]
[null," providing (supplying & plastering) for the cement mortar for walls, is including leveling; scaffolding; all necessary tools;   the cement content in the mortar not less than 350 kg  Ordinary Portland Cement for each cubic meter of sand, as per drawings & specs, and all necessary to finish works as per the technical industrial assets. .  ",null,"LS",null,0.15,null,107142.85649999999,null,null,null,null,{"$f":"L152+J152","v":0},{"$f":"M152*H152","v":0}]
["B/G/640 303","PAINTING WORKS"]
[null,"providing (supplying & paint) emulsion plastic washable paint for internal walls   is including three putty coats; one fin mastic flat coat, and two final  coat, the clause included all necessary tools and steel scaffolding as per drawings & specs, and all necessary to finish works as per the technical industrial assets, and  the approved color samples.  ",null,"LS",null,0.1,null,71428.570999999996,null,null,null,null,{"$f":"L154+J154","v":0},{"$f":"M154*H154","v":0}]
["B/G/640 304","FLOORINNG WORKS"]
[null," Delivery and installation all the types of floorinng  including all required and specs ",null,"LS",null,0.1,null,71428.570999999996,null,null,null,null,{"$f":"L156+J156","v":0},{"$f":"M156*H156","v":0}]
["B/G/640 305","ROOFING SYSTEM "]
[null,"Protection layer for roofing including all requirement and accessories    (As Specified)",null,"LS",null,0.13,null,92857.142299999992,null,null,null,null,{"$f":"L158+J158","v":0},{"$f":"M158*H158","v":0}]
["B/G/640 306","ROLLING SHUTTER DOOR  "]
[null,"Delivery and erection of approved according to specs.",null,"LS",null,0.16,null,114285.7136,null,null,null,null,{"$f":"L160+J160","v":0},{"$f":"M160*H160","v":0}]
["B/G/640 307","DOORS"]
[null,"Delivery and erection of approved color  aluminum doors.",null,"LS",null,0.03,null,21428.5713,null,null,null,null,{"$f":"L162+J162","v":0},{"$f":"M162*H162","v":0}]
["B/G/640 308","WINDOWS "]
[null,"Delivery and erection of approved color  aluminum windows.",null,"LS",null,0.03,null,21428.5713,null,null,null,null,{"$f":"L164+J164","v":0},{"$f":"M164*H164","v":0}]
["B/G/640 300","Total",null,null,null,{"$f":"SUM(F150:F164)","v":1},null,null,null,null,null,null,{"$f":"SUM(M150:M164)","v":0},{"$f":"SUM(N150:N164)","v":0}]
["B/G/640 400","ELECTRICAL WORK",null,null,null,null,null,null,null,null,null,null,null,57256.559766763901]
["B/G/640 401"," SUPPLY"]
[null,"supplying  all necessary elecreical  parts to compleat the work according to specs ",null,null,null,0.25,null,16581.6325,null,null,null,null,{"$f":"L168+J168","v":0},{"$f":"M168*H168","v":0}]
["B/G/640 402","FIXTUERES"]
[null,"locate and fix all the electrical items according to drawings and specs ",null,"LS",null,0.65,null,43112.244500000001,null,null,null,null,{"$f":"L170+J170","v":0},{"$f":"M170*H170","v":0}]
["B/G/640 403","TEST "]
[null,"all the necessary tests to handling the electrical work according to specs and industry assets.",null,"LS",null,0.1,null,6632.6530000000002,null,null,null,null,{"$f":"L172+J172","v":0},{"$f":"M172*H172","v":0}]
["B/G/640 400","Total",null,null,null,{"$f":"SUM(F168:F172)","v":1},null,null,null,null,null,null,{"$f":"SUM(M168:M172)","v":0},{"$f":"SUM(N168:N172)","v":0}]
["B/G/640 500 ","PLUMBING WORK",null,null,null,null,null,null,null,null,null,null,null,92120.505344995196]
["B/G/640 501","SUPPLY AND INSTALL"]
[null,"Supplying and installing  all necessary embedded items and connections according to specs and drawings",null,"LS",null,0.7,null,64625.847999999998,null,null,null,null,{"$f":"L176+J176","v":0},{"$f":"M176*H176","v":0}]
["B/G/640 502","TEST"]
[null,"all the necessary tests to handling the plumbing system according to specs and industry assets.",null,"LS",null,0.3,null,27696.791999999998,null,null,null,null,{"$f":"L178+J178","v":0},{"$f":"M178*H178","v":0}]
["B/G/640 500","Total",null,null,null,{"$f":"SUM(F176:F178)","v":1},null,null,null,null,null,null,{"$f":"SUM(M176:M178)","v":0},{"$f":"SUM(N176:N178)","v":0}]
["B/G/640 600","VENTILATION SYSTEM",null,null,null,null,null,null,null,null,null,null,null,39293.488824101099]
["B/G/640 601"," SUPPLY"]
[null,"supplying  all necessary ventilation parts according to specs and drawings ",null,null,null,0.6,null,56443.146000000001,null,null,null,null,{"$f":"L182+J182","v":0},{"$f":"M182*H182","v":0}]
["B/G/640 602","FIXTUERES"]
[null,"locate and fix all the ventilation parts according to drawings and specs ",null,"LS",null,0.2,null,18814.382000000001,null,null,null,null,{"$f":"L184+J184","v":0},{"$f":"M184*H184","v":0}]
["B/G/640 603","TEST "]
[null,"all the necessary tests to handling the VENTILATION SYSTEM according to specs and industry assets.",null,"LS",null,0.2,null,18814.382000000001,null,null,null,null,{"$f":"L186+J186","v":0},{"$f":"M186*H186","v":0}]
["B/G/640 600","Total",null,null,null,{"$f":"SUM(F182:F186)","v":1},null,null,null,null,null,null,{"$f":"SUM(M182:M186)","v":0},{"$f":"SUM(N182:N186)","v":0}]
["B/G/640 700","FIRE DETECTION",null,null,null,null,null,null,null,null,null,null,null,18969.873663751201]
["B/G/640 701","SUPPLY AND ERECT"]
[null,"Supplying and erecting  all necessary fire detection system parts and connections according to specs and drawings",null,"LS",null,0.7,null,26190.478999999999,null,null,null,null,{"$f":"L190+J190","v":0},{"$f":"M190*H190","v":0}]
["B/G/640 702","TEST"]
[null,"all the necessary tests to handling the fire detection system according to specs and industry assets.",null,"LS",null,0.3,null,11224.491,null,null,null,null,{"$f":"L192+J192","v":0},{"$f":"M192*H192","v":0}]
["B/G/640 700","Total",null,null,null,{"$f":"SUM(F190:F192)","v":1},null,null,null,null,null,null,{"$f":"SUM(M190:M192)","v":0},{"$f":"SUM(N190:N192)","v":0}]
["B/G/640 800","ELECTRICALLY OPERATED OVER HEAD CREAN",null,null,null,null,null,null,null,null,null,null,null,429543.24586977699]
["B/G/640 801","SUPPLY "]
[null,"Supplying  over head crean according to specifications.",null,"LS",null,0.7,null,255782.30999999997,null,null,null,null,{"$f":"L196+J196","v":0},{"$f":"M196*H196","v":0}]
["B/G/640 802","ERECT AND OPERATE "]
[null,"erecting the over head crean and operate it,including all the required tests.",null,"LS",null,0.3,null,109620.98999999999,null,null,null,null,{"$f":"L198+J198","v":0},{"$f":"M198*H198","v":0}]
["B/G/640 800","Total",null,null,null,{"$f":"SUM(F196:F198)","v":1},null,null,null,null,null,null,{"$f":"SUM(M196:M198)","v":0},{"$f":"SUM(N196:N198)","v":0}]
["B/G/640 900","R.C CABLE TRENCHES AND DUCTS",null,null,null,null,null,null,null,null,null,null,null,33163.265306122397]
["B/G/640 901","PLAIN CONCRETE "]
[null,"Supply and provide ready mix plain concrete grade 250 KG/m³, the clause includes form work, adding additives, pouring and curing,, and that concrete should be finished as per specs and industry assets. ",null,"LS",null,0.1,null,5830.9040000000005,null,null,null,null,{"$f":"L202+J202","v":0},{"$f":"M202*H202","v":0}]
["B/G/640 902","REINFORCEMENT CONCRETE"]
[null,"Reinforced concrete for raft and walls with specified strength  including all required  and testing (As Specified)   (Cement content not less than 350 Kg/m³)",null,"LS",null,0.5,null,29154.52,null,null,null,null,{"$f":"L204+J204","v":0},{"$f":"M204*H204","v":0}]
["B/G/640 903","CHEQUERED PLATE COVER "]
[null,"Delivery and erection of  chequered plate cover including painting  & all installation and handling  requirement (As Specified)",null,"LS",null,0.15,null,8746.3559999999998,null,null,null,null,{"$f":"L206+J206","v":0},{"$f":"M206*H206","v":0}]
["B/G/640 904","DUCTE"]
[null,"making all the necessary ducte according to drawings and spics.",null,"LS",null,0.25,null,14577.26,null,null,null,null,{"$f":"L208+J208","v":0},{"$f":"M208*H208","v":0}]
["B/G/640 900","Total",null,null,null,{"$f":"SUM(F202:F208)","v":1},null,null,null,null,null,null,{"$f":"SUM(M202:M208)","v":0},{"$f":"SUM(N202:N208)","v":0}]
[]
["B/G/650 000","Control  building (lump sum prices of items Nos. 650 100 through 650 800)"]
["B/G/650 100","Concrete Work",null,null,null,null,null,null,null,null,null,null,null,1225714.2857142901]
["B/G/650 101","EXCAVATION "]
[null,"Excavation including Excavated material Transfer  (As Specified)",null,"LS",null,0.06,null,93673.469400000002,null,null,null,null,{"$f":"L214+J214","v":0},{"$f":"M214*H214","v":0}]
["B/G/650 102","SOIL  REPLACEMENT"]
[null,"Supply and apply , SOIL REPLACEMENT According to the approved sieve analysis according to drawings &specs , the rate include leveling , water , compaction and compaction test to be compacted with relative compaction 98%.",null,"LS",null,0.08,null,124897.9592,null,null,null,null,{"$f":"L216+J216","v":0},{"$f":"M216*H216","v":0}]
["B/G/650 103","Backfeling"]
[null,"backfilling by approved fill material selected from excavation ,including compaction , the rate include compaction test  according to specs.","M3","LS",null,0.08,null,124897.9592,null,null,null,null,{"$f":"L218+J218","v":0},{"$f":"M218*H218","v":0}]
["B/G/650 104","PLAIN CONCRETE "]
[null,"Supply and provide ready mix plain concrete grade 250 KG/m³, the clause includes form work, adding additives, pouring and curing, to be separated from soil  by 250 micron polyethylene proofing sheet, and that concrete should be finished as per specs and industry assets. ",null,"LS",null,0.1,null,156122.44899999999,null,null,null,null,{"$f":"L220+J220","v":0},{"$f":"M220*H220","v":0}]
["B/G/650 105","REINFORCEMENT CONCRETE FOR FOOTINGS "]
[null,"Reinforced concrete for foundation and semelle with specified strength  including all required joints  and testing (As Specified)   (Cement content not less than 350 Kg/m³)",null,"LS",null,0.2,null,312244.89799999999,null,null,null,null,{"$f":"L222+J222","v":0},{"$f":"M222*H222","v":0}]
["B/G/650 106","REINFORCEMENT CONCRETE FOR COLUMNS AND BEAMS"]
[null,"Reinforced concrete for columns and beams with specified strength  including all required  testing (As Specified)   (Cement content not less than 350 Kg/m³) ",null,"LS",null,0.15,null,234183.6735,null,null,null,null,{"$f":"L224+J224","v":0},{"$f":"M224*H224","v":0}]
["B/G/650 107","REINFORCEMENT CONCRETE FOR ROOF SLAP"]
[null,"Reinforced concrete for roof slab and beams with specified strength  including faire faceand all required  testing (As Specified) (Cement content not less than 350 Kg/m³) ",null,"LS",null,0.2,null,312244.89799999999,null,null,null,null,{"$f":"L226+J226","v":0},{"$f":"M226*H226","v":0}]
["B/G/650 108","INSULLATION "]
[null,"providing (supplying & painting) three coats of bituminous emulsion above concrete surface which in contact with soil as per drawings & specs. ( Up to zero level )",null,"LS",null,0.05,null,78061.224499999997,null,null,null,null,{"$f":"L228+J228","v":0},{"$f":"M228*H228","v":0}]
["B/G/650 109","SLAP ON GRADE  "]
[null,"applying all the reqaired layes of slap on grade according to drawings and specs.",null,"LS",null,0.08,null,124897.9592,null,null,null,null,{"$f":"L230+J230","v":0},{"$f":"M230*H230","v":0}]
["B/G/650 100","Total",null,null,null,{"$f":"SUM(F214:F230)","v":1.0000000000000002},null,null,null,null,null,null,{"$f":"SUM(M214:M230)","v":0},{"$f":"SUM(N214:N230)","v":0}]
["B/G/650 200","STRUCTURAL STEEL WORKS",null,null,null,null,null,null,null,null,null,null,null,106311.95335277]
["B/G/650  201"," SUPPLYING "]
[null," supplying  of complete steel structure (Anchor bolts; columns; embedded beams; embedded plates; fixed plates ) according to drawing and specs.",null,"LS",null,0.6,null,48979.59,null,null,null,null,{"$f":"L234+J234","v":0},{"$f":"M234*H234","v":0}]
["B/G/650 202"," ERECTION "]
[null," steel structure  erection including  welding (Anchor bolts; columns; embedded beams; embedded plates; fixed plates ) according to specs.",null,"LS",null,0.4,null,32653.059999999998,null,null,null,null,{"$f":"L236+J236","v":0},{"$f":"M236*H236","v":0}]
["B/G/650 200","Total",null,null,null,{"$f":"SUM(F234:F236)","v":1},null,null,null,null,null,null,{"$f":"SUM(M234:M236)","v":0},{"$f":"SUM(N234:N236)","v":0}]
["B/G/650 300","ARCHITECTURAL WORKS",null,null,null,null,null,null,null,null,null,null,null,1063119.5335277]
["B/G/650 301","MASONARY WORK  "]
[null,"supplying & constructing and installing)brick walls solid cemented  25cm thick.;  the brick dimensions are 250*120*60 mm, the clause includes all lintels; scaffolding; dowels and wire mesh which connect brick with the concrete items before starting plaster works, the mortar contents is 350 kg of ordinary Portland cement for each cubic meter of sand, as per drawings & specs, and all necessary to finish works as per the technical industrial assets,  the rate include lentel required.                                  ",null,"LS",null,0.3,null,214285.71299999999,null,null,null,null,{"$f":"L240+J240","v":0},{"$f":"M240*H240","v":0}]
["B/G/650 302","PLASTERING WORKS"]
[null," providing (supplying & plastering) for the cement mortar for walls, is including leveling; scaffolding; all necessary tools;   the cement content in the mortar not less than 350 kg  Ordinary Portland Cement for each cubic meter of sand, as per drawings & specs, and all necessary to finish works as per the technical industrial assets. .  ",null,"LS",null,0.15,null,107142.85649999999,null,null,null,null,{"$f":"L242+J242","v":0},{"$f":"M242*H242","v":0}]
["B/G/650 303","PAINTING WORKS"]
[null,"providing (supplying & paint) emulsion plastic washable paint for internal walls   is including three putty coats; one fin mastic flat coat, and two final  coat, the clause included all necessary tools and steel scaffolding as per drawings & specs, and all necessary to finish works as per the technical industrial assets, and  the approved color samples.  ",null,"LS",null,0.1,null,71428.570999999996,null,null,null,null,{"$f":"L244+J244","v":0},{"$f":"M244*H244","v":0}]
["B/G/650 304","FLOORINNG WORKS"]
[null," Delivery and installation all the types of floorinng  including all required and specs ",null,"LS",null,0.1,null,71428.570999999996,null,null,null,null,{"$f":"L246+J246","v":0},{"$f":"M246*H246","v":0}]
["B/G/650 305","ROOFING SYSTEM "]
[null,"Protection layer for roofing including all requirement and accessories    (As Specified)",null,"LS",null,0.13,null,92857.142299999992,null,null,null,null,{"$f":"L248+J248","v":0},{"$f":"M248*H248","v":0}]
["B/G/650 306","ROLLING SHUTTER DOOR  "]
[null,"Delivery and erection of approved according to specs.",null,"LS",null,0.16,null,114285.7136,null,null,null,null,{"$f":"L250+J250","v":0},{"$f":"M250*H250","v":0}]
["B/G/650 307","DOORS"]
[null,"Delivery and erection of approved color  aluminum doors.",null,"LS",null,0.03,null,21428.5713,null,null,null,null,{"$f":"L252+J252","v":0},{"$f":"M252*H252","v":0}]
["B/G/650 308","WINDOWS "]
[null,"Delivery and erection of approved color  aluminum windows.",null,"LS",null,0.03,null,21428.5713,null,null,null,null,{"$f":"L254+J254","v":0},{"$f":"M254*H254","v":0}]
["B/G/650 300","Total",null,null,null,{"$f":"SUM(F240:F254)","v":1},null,null,null,null,null,null,{"$f":"SUM(M240:M254)","v":0},{"$f":"SUM(N240:N254)","v":0}]
["B/G/650 400","ELECTRICAL WORK",null,null,null,null,null,null,null,null,null,null,null,93804.664723032096]
["B/G/630 401"," SUPPLY"]
[null,"supplying  all necessary elecreical  parts to compleat the work according to specs ",null,null,null,0.25,null,16581.6325,null,null,null,null,{"$f":"L258+J258","v":0},{"$f":"M258*H258","v":0}]
["B/G/630 402","FIXTUERES"]
[null,"locate and fix all the electrical items according to drawings and specs ",null,"LS",null,0.65,null,43112.244500000001,null,null,null,null,{"$f":"L260+J260","v":0},{"$f":"M260*H260","v":0}]
["B/G/630 403","TEST "]
[null,"all the necessary tests to handling the electrical work according to specs and industry assets.",null,"LS",null,0.1,null,6632.6530000000002,null,null,null,null,{"$f":"L262+J262","v":0},{"$f":"M262*H262","v":0}]
["B/G/650 400","Total",null,null,null,{"$f":"SUM(F258:F262)","v":1},null,null,null,null,null,null,{"$f":"SUM(M258:M262)","v":0},{"$f":"SUM(N258:N262)","v":0}]
["B/G/650 500","PLUMBING WORK",null,null,null,null,null,null,null,null,null,null,null,56851.311953352801]
["B/G/630 501","SUPPLY AND INSTALL"]
[null,"Supplying and installing  all necessary embedded items and connections according to specs and drawings",null,"LS",null,0.7,null,64625.847999999998,null,null,null,null,{"$f":"L266+J266","v":0},{"$f":"M266*H266","v":0}]
["B/G/630 502","TEST"]
[null,"all the necessary tests to handling the plumbing system according to specs and industry assets.",null,"LS",null,0.3,null,27696.791999999998,null,null,null,null,{"$f":"L268+J268","v":0},{"$f":"M268*H268","v":0}]
["B/G/650 500","Total",null,null,null,{"$f":"SUM(F266:F268)","v":1},null,null,null,null,null,null,{"$f":"SUM(M266:M268)","v":0},{"$f":"SUM(N266:N268)","v":0}]
["B/G/650 600","AIR CONDITION SYSTEM VENTILATION SYSTEM",null,null,null,null,null,null,null,null,null,null,null,277939.747327502]
["B/G/650 601"," SUPPLY AND INSTALL"]
[null,"supplying  all necessary air condition and ventilation parts according to specs and drawings ",null,null,null,0.6,null,56443.146000000001,null,null,null,null,{"$f":"L272+J272","v":0},{"$f":"M272*H272","v":0}]
["B/G/650 602","FIXTUERES"]
[null,"locate and fix all air condition and ventilation parts according to drawings and specs ",null,"LS",null,0.2,null,18814.382000000001,null,null,null,null,{"$f":"L274+J274","v":0},{"$f":"M274*H274","v":0}]
["B/G/650 603","TEST "]
[null,"all the necessary tests to handling the AIR CONDITION SYSTEM and VENTILATION SYSTEM according to specs and industry assets.",null,"LS",null,0.2,null,18814.382000000001,null,null,null,null,{"$f":"L276+J276","v":0},{"$f":"M276*H276","v":0}]
["B/G/650 600","Total",null,null,null,{"$f":"SUM(F272:F276)","v":1},null,null,null,null,null,null,{"$f":"SUM(M272:M276)","v":0},{"$f":"SUM(N272:N276)","v":0}]
["B/G/650 700","FIRE DETECTION",null,null,null,null,null,null,null,null,null,null,null,25267.249757045702]
["B/G/650 701","SUPPLY AND ERECT"]
[null,"Supplying and erecting  all necessary fire detection system parts and connections according to specs and drawings",null,"LS",null,0.7,null,26190.478999999999,null,null,null,null,{"$f":"L280+J280","v":0},{"$f":"M280*H280","v":0}]
["B/G/650 702","TEST"]
[null,"all the necessary tests to handling the fire detection system according to specs and industry assets.",null,"LS",null,0.3,null,11224.491,null,null,null,null,{"$f":"L282+J282","v":0},{"$f":"M282*H282","v":0}]
["B/G/650 700","Total",null,null,null,{"$f":"SUM(F280:F282)","v":1},null,null,null,null,null,null,{"$f":"SUM(M280:M282)","v":0},{"$f":"SUM(N280:N282)","v":0}]
["B/G/650 800","Basement under  11 kv ",null,null,null,null,null,null,null,null,null,null,null,66326.530612244896]
["B/G/650 801","EXCAVATION"]
[null,"Excavation including Excavated material Transfer  (As Specified)",null,null,null,0.01]
["B/G/650 802","SOIL REPLACEMENT"]
[null,"Supply and apply , SOIL REPLACEMENT According to the approved sieve analysis according to drawings &specs , the rate include leveling , water , compaction and compaction test to be compacted with relative compaction 98%.",null,null,null,0.28999999999999998]
["B/G/650 803","PLAIN CONCRETE "]
[null,"Supply and provide ready mix plain concrete grade 250 KG/m³, the clause includes form work, adding additives, pouring and curing, to be separated from soil  by 250 micron polyethylene proofing sheet, and that concrete should be finished as per specs and industry assets. "]
["B/G/650 804","REINFORCEMENT CONCRETE FOR FOOTINGS "]
[null,"Reinforced concrete for foundation and semelle with specified strength  including all required joints  and testing (As Specified)   (Cement content not less than 350 Kg/m³)"]
["B/G/650 805","INSULATION"]
[null,"providing (supplying & painting) three coats of bituminous emulsion above concrete surface which in contact with soil as per drawings & specs. ( Up to zero level )"]
["B/G/650 806","COLUMNS UP TO FOUNDATION & WALL"]
[null,"Reinforced concrete for columns and beams with specified strength  including all required  testing (As Specified)   (Cement content not less than 350 Kg/m³) "]
["B/G/650 807","Backfeling"]
[null,"backfilling by approved fill material selected from excavation ,including compaction , the rate include compaction test  according to specs.","M3"]
["B/G/650 808","SLAB ON GRADE"]
[null,"applying all the reqaired layes of slap on grade according to drawings and specs."]
["B/G/650 809","SLAB AT +1.15 & finshing"]
[null,"Reinforced concrete for roof slab and beams with specified strength  including faire faceand all required  testing (As Specified) (Cement content not less than 350 Kg/m³) ",null,"LS",null,0.7,null,255782.30999999997,null,null,null,null,{"$f":"L302+J302","v":0},{"$f":"M302*H302","v":0}]
[]
["B/G/650 800","Total",null,null,null,{"$f":"SUM(F286:F303)","v":1},null,null,null,null,null,null,{"$f":"SUM(M302:M303)","v":0},{"$f":"SUM(N302:N303)","v":0}]
[]
["B/G/700 000","Site works (Lump sum prices of items Nos. 700100 through 701 500).",null,null,null,null,null,null,null,null,null,null,null,8800567.5500000007]
["B/G/700 100","ROADS"]
["B/G/700 110","MAIN ROADS",null,null,null,null,null,null,null,null,null,null,null,660978.620019436]
["B/G/700 111","EXCAVATION AND SOIL REPLACEMENT"]
[null,"Excavation including Excavated material Transfer  (As Specified),Supply and apply , SOIL REPLACEMENT According to the approved sieve analysis according to drawings &specs",null,"LS",null,0.1,null,47619.048000000003,null,null,null,null,{"$f":"L310+J310","v":0},{"$f":"M310*H310","v":0}]
["B/G/700 112","SUBBASE LAYERS"]
[null,"Supply and apply , SUBBASE LAYERS According to the approved sieve analysis according to drawings &specs , the rate include leveling , water , compaction and compaction test to be compacted with relative compaction 98%.",null,"LS",null,0.35,null,166666.66799999998,null,null,null,null,{"$f":"L312+J312","v":0},{"$f":"M312*H312","v":0}]
["B/G/700 113"," CONCRETE "]
[null,"Supply and provide ready mix concrete according to  specs and industry assets. ",null,"LS",null,0.45,null,214285.71599999999,null,null,null,null,{"$f":"L314+J314","v":0},{"$f":"M314*H314","v":0}]
["B/G/700 114","CARBE STONE "]
[null,"supply and apply carbe stone according to specs and industry assets.",null,"LS",null,0.1,null,47619.048000000003,null,null,null,null,{"$f":"L316+J316","v":0},{"$f":"M316*H316","v":0}]
["B/G/700 110","Total",null,null,null,{"$f":"SUM(F310:F316)","v":0.99999999999999989},null,null,null,null,null,null,{"$f":"SUM(M310:M316)","v":0},{"$f":"SUM(N310:N316)","v":0}]
["B/G/700 120","SECONDARY ROADS",null,null,null,null,null,null,null,null,null,null,null,249057.33722060299]
["B/G/700 121","EXCAVATION AND SOIL REPLACEMENT"]
[null,"Excavation including Excavated material Transfer  (As Specified),Supply and apply , SOIL REPLACEMENT According to the approved sieve analysis according to drawings &specs",null,"LS",null,0.1,null,47619.048000000003,null,null,null,null,{"$f":"L320+J320","v":0},{"$f":"M320*H320","v":0}]
["B/G/700 122","SUBBASE LAYERS"]
[null,"Supply and apply , SUBBASE LAYERS According to the approved sieve analysis according to drawings &specs , the rate include leveling , water , compaction and compaction test to be compacted with relative compaction 98%.",null,"LS",null,0.35,null,166666.66799999998,null,null,null,null,{"$f":"L322+J322","v":0},{"$f":"M322*H322","v":0}]
["B/G/700 123"," CONCRETE "]
[null,"Supply and provide ready mix concrete according to  specs and industry assets. ",null,"LS",null,0.45,null,214285.71599999999,null,null,null,null,{"$f":"L324+J324","v":0},{"$f":"M324*H324","v":0}]
["B/G/700 124","CARBE STONE "]
[null,"supply and apply carbe stone according to specs and industry assets.",null,"LS",null,0.1,null,47619.048000000003,null,null,null,null,{"$f":"L326+J326","v":0},{"$f":"M326*H326","v":0}]
["B/G/700 120","Total",null,null,null,{"$f":"SUM(F320:F326)","v":0.99999999999999989},null,null,null,null,null,null,{"$f":"SUM(M320:M326)","v":0},{"$f":"SUM(N320:N326)","v":0}]
["B/G/700 200","R.C CABLE TRENCHES AND DUCTS (OUT DOOR)",null,null,null,null,null,null,null,null,null,null,null,1997344.02332362]
["B/G/700 201","EXCAVATION AND SOIL REPLACEMENT"]
[null,"Excavation including Excavated material Transfer  (As Specified),Supply and apply , SOIL REPLACEMENT According to the approved sieve analysis according to drawings &specs",null,"LS",null,0.08,null,32408.163199999999,null,null,null,null,{"$f":"L330+J330","v":0},{"$f":"M330*H330","v":0}]
["B/G/700 202","PLAIN CONCRETE "]
[null,"Supply and provide ready mix plain concrete grade 250 KG/m³, the clause includes form work, adding additives, pouring and curing,, and that concrete should be finished as per specs and industry assets. ",null,"LS",null,0.15,null,60765.305999999997,null,null,null,null,{"$f":"L332+J332","v":0},{"$f":"M332*H332","v":0}]
["B/G/700 203","REINFORCEMENT CONCRETE"]
[null,"Reinforced concrete for raft and walls with specified strength  including all required  and testing (As Specified)   (Cement content not less than 350 Kg/m³)",null,"LS",null,0.45,null,182295.91800000001,null,null,null,null,{"$f":"L334+J334","v":0},{"$f":"M334*H334","v":0}]
["B/G/700 204","CHEQUERED PLATE COVER "]
[null,"Delivery and erection of  chequered plate cover including painting  & all installation and handling  requirement (As Specified)",null,"LS",null,0.15,null,60765.305999999997,null,null,null,null,{"$f":"L336+J336","v":0},{"$f":"M336*H336","v":0}]
["B/G/700 205","DUCTE"]
[null,"making all the necessary ducte according to drawings and spics.",null,"LS",null,0.17,null,68867.346799999999,null,null,null,null,{"$f":"L338+J338","v":0},{"$f":"M338*H338","v":0}]
["B/G/700 200","Total",null,null,null,{"$f":"SUM(F330:F338)","v":1},null,null,null,null,null,null,{"$f":"SUM(M330:M338)","v":0},{"$f":"SUM(N330:N338)","v":0}]
["B/G/700 300","WIRE MESH FENCE",null,null,null,null,null,null,null,null,null,null,null,205651.11758989299]
["B/G/700 301","FOOTING"]
[null,"form footings and puring  ready mix concrete according to  specs and industry assets.",null,"LS",null,0.2,null,18542.274000000001,null,null,null,null,{"$f":"L342+J342","v":0},{"$f":"M342*H342","v":0}]
["B/G/700 302","Panels"]
[null,"Supply  panels according to specs. ",null,"LS",null,0.6,null,55626.821999999993,null,null,null,null,{"$f":"L344+J344","v":0},{"$f":"M344*H344","v":0}]
["B/G/700 303","ERACTING"]
[null,"locate and eract all the panels according to drawings and specs ",null,"LS",null,0.2,null,18542.274000000001,null,null,null,null,{"$f":"L346+J346","v":0},{"$f":"M346*H346","v":0}]
["B/G/700 300","Total",null,null,null,{"$f":"SUM(F342:F346)","v":1},null,null,null,null,null,null,{"$f":"SUM(M342:M346)","v":0},{"$f":"SUM(N342:N346)","v":0}]
["B/G/700 400","TWO FIRE FIGHTING BUILDING AND RC FOUNDATIONS FORF.F TANK",null,null,null,null,null,null,null,null,null,null,null,330903.79008746397]
["B/G/700 401","EXCAVATION "]
[null,"Excavation including Excavated material Transfer  (As Specified)",null,"LS",null,0.06,null,19867.347000000002,null,null,null,null,{"$f":"L350+J350","v":0},{"$f":"M350*H350","v":0}]
["B/G/700 402","SOIL  REPLACEMENT"]
[null,"Supply and apply , SOIL REPLACEMENT According to the approved sieve analysis according to drawings &specs , the rate include leveling , water , compaction and compaction test to be compacted with relative compaction 98%.",null,"LS",null,0.08,null,26489.796000000002,null,null,null,null,{"$f":"L352+J352","v":0},{"$f":"M352*H352","v":0}]
["B/G/700 403","REINFORCEMENT CONCRETE FOR FOOTINGS AND F.F TANK "]
[null,"Reinforced concrete for foundation, semelle and Tank with specified strength  including all required joints  and testing (As Specified)   (Cement content not less than 350 Kg/m³)",null,"LS",null,0.4,null,132448.98000000001,null,null,null,null,{"$f":"L354+J354","v":0},{"$f":"M354*H354","v":0}]
["B/G/700 404","REINFORCEMENT CONCRETE FOR COLUMNS, BEAMS AND ROOF"]
[null,"Reinforced concrete for columns, beams and roof with specified strength  including all required  testing (As Specified)   (Cement content not less than 350 Kg/m³) ",null,"LS",null,0.3,null,99336.735000000001,null,null,null,null,{"$f":"L356+J356","v":0},{"$f":"M356*H356","v":0}]
["B/G/700 405","MASONARY WORK  "]
[null,"supplying & constructing and installing)brick walls solid cemented  25cm thick.;  the brick dimensions are 250*120*60 mm, the clause includes all lintels; scaffolding; dowels and wire mesh which connect brick with the concrete items before starting plaster works, the mortar contents is 350 kg of ordinary Portland cement for each cubic meter of sand, as per drawings & specs, and all necessary to finish works as per the technical industrial assets,  the rate include lentel required.                                  ",null,"LS",null,0.16,null,52979.592000000004,null,null,null,null,{"$f":"L358+J358","v":0},{"$f":"M358*H358","v":0}]
["B/G/700 400","Total",null,null,null,{"$f":"SUM(F350:F358)","v":1},null,null,null,null,null,null,{"$f":"SUM(M350:M358)","v":0},{"$f":"SUM(N350:N358)","v":0}]
["B/G 700 500","WATER  SUPPLY SYSTEM ",null,null,null,null,null,null,null,null,null,null,null,189504.37317784299]
["B/G/700 501","SUPPLY AND ERECT"]
[null,"Supplying and erecting  all necessary water system parts and connections according to specs and drawings"]
["B/G/700 502","TEST"]
[null,"all the necessary tests to handling the water system according to specs and industry assets."]
["B/G 700 510","UNDER GROUND WATER TANK & Pump Room"]
["B/G/700 511","EXCAVATION AND SOIL REPLACEMENT"]
[null,"Excavation including Excavated material Transfer  (As Specified),Supply and apply , SOIL REPLACEMENT According to the approved sieve analysis according to drawings &specs"]
["B/G/700 512","PLAIN CONCRETE "]
[null,"Supply and provide ready mix plain concrete grade 250 KG/m³, the clause includes form work, adding additives, pouring and curing,, and that concrete should be finished as per specs and industry assets. "]
["B/G/700 513","REINFORCEMENT CONCRETE FOR TANK ",null,null,null,null,null,null,null,null,null,null,null,82118.561710398499]
[null,"Reinforced concrete for foundation, semelle and Tank with specified strength  including all required joints  and testing (As Specified)   (Cement content not less than 350 Kg/m³)"]
["B/G/700 514","ISOLATION"]
[null,"providing (supplying & painting) three coats of bituminous emulsion above concrete surface which in contact with soil as per drawings & specs. ( Up to zero level )"]
["B/G/700 515","FINISHING"]
[]
["B/G/700 500","Total",null,null,null,{"$f":"SUM(F361:F375)","v":0},null,null,null,null,null,null,{"$f":"SUM(M368:M375)","v":0},{"$f":"SUM(N368:N375)","v":82118.561710398499}]
["B/G 700 600","SEWERAGE SYSTEM"]
["B/G 700 601","SUPPLY AND ERECT"]
[null,"Supplying and erecting  all necessary sewerage system parts and connections according to specs and drawings"]
["B/G 700 602","TEST"]
[null,"all the necessary tests to handling the water system according to specs and industry assets."]
["B/G 700 603","MANHOLES"]
[]
["B/G 700 610","SEPTIC , FILTERATION , COLLECTING TANKS"]
["B/G 700 610","EXCAVATION AND SOIL REPLACEMENT"]
[null,"Excavation including Excavated material Transfer  (As Specified),Supply and apply , SOIL REPLACEMENT According to the approved sieve analysis according to drawings &specs"]
["B/G 700 611","PLAIN CONCRETE "]
[null,"Supply and provide ready mix plain concrete grade 250 KG/m³, the clause includes form work, adding additives, pouring and curing,, and that concrete should be finished as per specs and industry assets. "]
["B/G 700 612","REINFORCEMENT CONCRETE FOR TANK ",null,null,null,null,null,null,null,null,null,null,null,82118.561710398499]
[null,"Reinforced concrete for foundation and Tank with specified strength  including all required joints  and testing (As Specified)   (Cement content not less than 350 Kg/m³)"]
["B/G 700 613","ISOLATION"]
[null,"providing (supplying & painting) three coats of bituminous emulsion above concrete surface which in contact with soil as per drawings & specs. ( Up to zero level )"]
["B/G 700 614","FINISHING"]
[]
["B/G/700 600","Total",null,null,null,{"$f":"SUM(F379:F394)","v":0},null,null,null,null,null,null,{"$f":"SUM(M387:M394)","v":0},{"$f":"SUM(N387:N394)","v":82118.561710398499}]
["B/G/700 700","TRANSFORMER FONDATION FOR (3 X 125)",null,null,null,null,null,null,null,null,null,null,null,1407069.97084548]
["B/G/700 701","EXCAVATION "]
[null,"Excavation including Excavated material Transfer  (As Specified)",null,"LS",null,0.15,null,143494.89749999999,null,null,null,null,{"$f":"L398+J398","v":0},{"$f":"M398*H398","v":0}]
["B/G/700 702","SOIL  REPLACEMENT"]
[null,"Supply and apply , SOIL REPLACEMENT According to the approved sieve analysis according to drawings &specs , the rate include leveling , water , compaction and compaction test to be compacted with relative compaction 98%.",null,"LS",null,0.1,null,95663.265000000014,null,null,null,null,{"$f":"L400+J400","v":0},{"$f":"M400*H400","v":0}]
["B/G/700 703","Backfeling"]
[null,"backfilling by approved fill material selected from excavation ,including compaction , the rate include compaction test  according to specs.","M3","LS",null,0.1,null,95663.265000000014,null,null,null,null,{"$f":"L402+J402","v":0},{"$f":"M402*H402","v":0}]
["B/G/700 704","PLAIN CONCRETE "]
[null,"Supply and provide ready mix plain concrete grade 250 KG/m³, the clause includes form work, adding additives, pouring and curing, to be separated from soil  by 250 micron polyethylene proofing sheet, and that concrete should be finished as per specs and industry assets. ",null,"LS",null,0.25,null,239158.16250000001,null,null,null,null,{"$f":"L404+J404","v":0},{"$f":"M404*H404","v":0}]
["B/G/700 705","REINFORCEMENT CONCRETE FOR FOOTINGS "]
[null,"Reinforced concrete  with specified strength  including all required joints  and testing (As Specified)   (Cement content not less than 350 Kg/m³)",null,"LS",null,0.35,null,334821.42749999999,null,null,null,null,{"$f":"L406+J406","v":0},{"$f":"M406*H406","v":0}]
["B/G/700 706","INSULLATION "]
[null,"providing (supplying & painting) three coats of bituminous emulsion above concrete surface which in contact with soil as per drawings & specs. ( Up to zero level )",null,"LS",null,0.05,null,47831.632500000007,null,null,null,null,{"$f":"L408+J408","v":0},{"$f":"M408*H408","v":0}]
["B/G/700 710","OIL PITS"]
["B/G/700 711","EXCAVATION "]
[null,"Excavation including Excavated material Transfer  (As Specified)",null,"LS",null,0.15,null,143494.89749999999,null,null,null,null,{"$f":"L411+J411","v":0},{"$f":"M411*H411","v":0}]
["B/G/700 712","SOIL  REPLACEMENT"]
[null,"Supply and apply , SOIL REPLACEMENT According to the approved sieve analysis according to drawings &specs , the rate include leveling , water , compaction and compaction test to be compacted with relative compaction 98%.",null,"LS",null,0.1,null,95663.265000000014,null,null,null,null,{"$f":"L413+J413","v":0},{"$f":"M413*H413","v":0}]
["B/G/700 713","PLAIN CONCRETE "]
[null,"Supply and provide ready mix plain concrete grade 250 KG/m³, the clause includes form work, adding additives, pouring and curing, to be separated from soil  by 250 micron polyethylene proofing sheet, and that concrete should be finished as per specs and industry assets. ",null,"LS",null,0.25,null,239158.16250000001,null,null,null,null,{"$f":"L415+J415","v":0},{"$f":"M415*H415","v":0}]
["B/G/700 714","REINFORCEMENT CONCRETE FOR FOOTINGS "]
[null,"Reinforced concrete  with specified strength  including all required joints  and testing (As Specified)   (Cement content not less than 350 Kg/m³)",null,"LS",null,0.35,null,334821.42749999999,null,null,null,null,{"$f":"L417+J417","v":0},{"$f":"M417*H417","v":0}]
["B/G/700 715","REINFORCEMENT CONCRETE FOR WALLS AND SLAB"]
[null,"Reinforced concrete for walls  and slabs with specified strength  including all required  testing (As Specified)   (Cement content not less than 350 Kg/m³) ",null,"LS",null,0.15,null,234183.6735,null,null,null,null,{"$f":"L419+J419","v":0},{"$f":"M419*H419","v":0}]
["B/G/700 716","INSULLATION "]
[null,"providing (supplying & painting) three coats of bituminous emulsion above concrete surface which in contact with soil as per drawings & specs. ( Up to zero level )",null,"LS",null,0.05,null,47831.632500000007,null,null,null,null,{"$f":"L421+J421","v":0},{"$f":"M421*H421","v":0}]
["B/G/700 717","Backfeling"]
[null,"backfilling by approved fill material selected from excavation ,including compaction , the rate include compaction test  according to specs.","M3","LS",null,0.1,null,95663.265000000014,null,null,null,null,{"$f":"L423+J423","v":0},{"$f":"M423*H423","v":0}]
["B/G/700 718","PLASTRING"]
[]
["B/G/700 700","Total",null,null,null,{"$f":"SUM(F398:F425)","v":2.15},null,null,null,null,null,null,{"$f":"SUM(M398:M408)","v":0},{"$f":"SUM(N398:N408)","v":0}]
["B/G/700 800","TRANSFORMER FONDATION FOR (2 X 40)",null,null,null,null,null,null,null,null,null,null,null,500291.54518950399]
["B/G/700 801","EXCAVATION "]
[null,"Excavation including Excavated material Transfer  (As Specified)",null,"LS",null,0.15,null,143494.89749999999,null,null,null,null,{"$f":"L429+J429","v":0},{"$f":"M429*H429","v":0}]
["B/G/700 802","SOIL  REPLACEMENT"]
[null,"Supply and apply , SOIL REPLACEMENT According to the approved sieve analysis according to drawings &specs , the rate include leveling , water , compaction and compaction test to be compacted with relative compaction 98%.",null,"LS",null,0.1,null,95663.265000000014,null,null,null,null,{"$f":"L431+J431","v":0},{"$f":"M431*H431","v":0}]
["B/G/700 803","Backfeling"]
[null,"backfilling by approved fill material selected from excavation ,including compaction , the rate include compaction test  according to specs.","M3","LS",null,0.1,null,95663.265000000014,null,null,null,null,{"$f":"L433+J433","v":0},{"$f":"M433*H433","v":0}]
["B/G/700 804","PLAIN CONCRETE "]
[null,"Supply and provide ready mix plain concrete grade 250 KG/m³, the clause includes form work, adding additives, pouring and curing, to be separated from soil  by 250 micron polyethylene proofing sheet, and that concrete should be finished as per specs and industry assets. ",null,"LS",null,0.25,null,239158.16250000001,null,null,null,null,{"$f":"L435+J435","v":0},{"$f":"M435*H435","v":0}]
["B/G/700 805","REINFORCEMENT CONCRETE FOR FOOTINGS "]
[null,"Reinforced concrete  with specified strength  including all required joints  and testing (As Specified)   (Cement content not less than 350 Kg/m³)",null,"LS",null,0.35,null,334821.42749999999,null,null,null,null,{"$f":"L437+J437","v":0},{"$f":"M437*H437","v":0}]
["B/G/700 806","INSULLATION "]
[null,"providing (supplying & painting) three coats of bituminous emulsion above concrete surface which in contact with soil as per drawings & specs. ( Up to zero level )",null,"LS",null,0.05,null,47831.632500000007,null,null,null,null,{"$f":"L439+J439","v":0},{"$f":"M439*H439","v":0}]
["B/G/700 810","OIL PITS"]
["B/G/700 811","EXCAVATION "]
[null,"Excavation including Excavated material Transfer  (As Specified)",null,"LS",null,0.15,null,143494.89749999999,null,null,null,null,{"$f":"L442+J442","v":0},{"$f":"M442*H442","v":0}]
["B/G/700 812","SOIL  REPLACEMENT"]
[null,"Supply and apply , SOIL REPLACEMENT According to the approved sieve analysis according to drawings &specs , the rate include leveling , water , compaction and compaction test to be compacted with relative compaction 98%.",null,"LS",null,0.1,null,95663.265000000014,null,null,null,null,{"$f":"L444+J444","v":0},{"$f":"M444*H444","v":0}]
["B/G/700 813","PLAIN CONCRETE "]
[null,"Supply and provide ready mix plain concrete grade 250 KG/m³, the clause includes form work, adding additives, pouring and curing, to be separated from soil  by 250 micron polyethylene proofing sheet, and that concrete should be finished as per specs and industry assets. ",null,"LS",null,0.25,null,239158.16250000001,null,null,null,null,{"$f":"L446+J446","v":0},{"$f":"M446*H446","v":0}]
["B/G/700 814","REINFORCEMENT CONCRETE FOR FOOTINGS "]
[null,"Reinforced concrete  with specified strength  including all required joints  and testing (As Specified)   (Cement content not less than 350 Kg/m³)",null,"LS",null,0.35,null,334821.42749999999,null,null,null,null,{"$f":"L448+J448","v":0},{"$f":"M448*H448","v":0}]
["B/G/700 815","REINFORCEMENT CONCRETE FOR WALLS AND SLAB"]
[null,"Reinforced concrete for walls  and slabs with specified strength  including all required  testing (As Specified)   (Cement content not less than 350 Kg/m³) ",null,"LS",null,0.15,null,234183.6735,null,null,null,null,{"$f":"L450+J450","v":0},{"$f":"M450*H450","v":0}]
["B/G/700 816","INSULLATION "]
[null,"providing (supplying & painting) three coats of bituminous emulsion above concrete surface which in contact with soil as per drawings & specs. ( Up to zero level )",null,"LS",null,0.05,null,47831.632500000007,null,null,null,null,{"$f":"L452+J452","v":0},{"$f":"M452*H452","v":0}]
["B/G/700 817","Backfeling"]
[null,"backfilling by approved fill material selected from excavation ,including compaction , the rate include compaction test  according to specs.","M3","LS",null,0.1,null,95663.265000000014,null,null,null,null,{"$f":"L454+J454","v":0},{"$f":"M454*H454","v":0}]
["B/G/700 818","PLASTRING"]
[]
["B/G/700 800","Total",null,null,null,{"$f":"SUM(F429:F456)","v":2.15},null,null,null,null,null,null,{"$f":"SUM(M429:M439)","v":0},{"$f":"SUM(N429:N439)","v":0}]
["B/G/700 900","OUTDOOR LIGHTING SYSTEM",null,null,null,null,null,null,null,null,null,null,null,218658.89212827999]
["B/G/700 901","SUPPLYING"]
[null,"supplying all the necessary lighting and accessories of outdoor lighting system according to  specs and industry assets.",null,"LS",null,0.6,null,65801.747999999992,null,null,null,null,{"$f":"L460+J460","v":0},{"$f":"M460*H460","v":0}]
["B/G/700 902","ERACTING AND TESTING "]
[null,"locate and erect all the necessary lighting and accessories of outdoor lighting system according to  specs and industry assets,incloding all the tests that needed.",null,"LS",null,0.4,null,43867.832000000002,null,null,null,null,{"$f":"L462+J462","v":0},{"$f":"M462*H462","v":0}]
["B/G/700 900","Total",null,null,null,{"$f":"SUM(F460:F462)","v":1},null,null,null,null,null,null,{"$f":"SUM(M460:M462)","v":0},{"$f":"SUM(N460:N462)","v":0}]
["B/G 701 000","BACKFILLING TO ZERO LEVEL",null,null,null,null,null,null,null,null,null,null,null,626822.15743440203]
["B/G 701 001","BACKFILLING "]
["`"," backfilling by approved fill material selected to Zero level ,including compaction , the rate include compaction test  according to specs."]
["B/G/700 000","Total",null,null,null,{"$f":"SUM(F465:F466)","v":0},null,null,null,null,null,null,{"$f":"SUM(M464:M466)","v":0},{"$f":"SUM(N464:N466)","v":626822.15743440203}]
["B/G/701 100","FIRE HYDRANTS",null,null,null,null,null,null,null,null,null,null,null,315840.621963071]
["B/G/701 101","SUPPLYING"]
[null,"supplying all the necessary pipes and accessories according to  specs and industry assets.",null,"LS",null,0.6,null,110204.08199999999,null,null,null,null,{"$f":"L470+J470","v":0},{"$f":"M470*H470","v":0}]
["B/G/701 102","ERACTING AND TESTING "]
[null,"locate and erect all the items according to drawings and specs incloding all the tests that needed ",null,"LS",null,0.3,null,55102.040999999997,null,null,null,null,{"$f":"L472+J472","v":0},{"$f":"M472*H472","v":0}]
["B/G/701 103","SUPPORTS "]
[null,"provide the pipes with all the supports that needed ",null,"LS",null,0.1,null,18367.347000000002,null,null,null,null,{"$f":"L474+J474","v":0},{"$f":"M474*H474","v":0}]
["B/G/701 100","Total",null,null,null,{"$f":"SUM(F470:F474)","v":0.99999999999999989},null,null,null,null,null,null,{"$f":"SUM(M470:M474)","v":0},{"$f":"SUM(N470:N474)","v":0}]
["B/G/701 200","EARTHING ",null,null,null,null,null,null,null,null,null,null,null,1485714.2857142901]
["B/G/701 201","SUPPLYING"]
[null,"diliver all the materials that needed to site according to specs.",null,"LS",null,0.6,null,323265.30599999998,null,null,null,null,{"$f":"L478+J478","v":0},{"$f":"M478*H478","v":0}]
["B/G/701 202","ERACTING AND TESTING "]
[null,"ERACTING AND TESTING eracting and testing according to specs and drawings.",null,"LS",null,0.2,null,107755.10200000001,null,null,null,null,{"$f":"L480+J480","v":0},{"$f":"M480*H480","v":0}]
["B/G/701 203","EARTHING PIT"]
[null," apply  earthing pit acording to drawings and specs.",null,"LS",null,0.2,null,107755.10200000001,null,null,null,null,{"$f":"L482+J482","v":0},{"$f":"M482*H482","v":0}]
["B/G/701 200","Total",null,null,null,{"$f":"SUM(F478:F482)","v":1},null,null,null,null,null,null,{"$f":"SUM(M478:M482)","v":0},{"$f":"SUM(N478:N482)","v":0}]
["B/G/701 300","ANY OTHER CIVIL WORK ",null,null,null,null,null,null,null,null,null,null,null,252672.497570457]
["B/G/701 301","LEVELING AND BACKFILLING "]
[null,"the area around the bulding have to reach the zero level including the necessary leveling and backfilling",null,"LS",null,0.4,null,68415.936000000002,null,null,null,null,{"$f":"L486+J486","v":0},{"$f":"M486*H486","v":0}]
["B/G/701 302","GRAVEL LAYER "]
[null,"supply and apply a grevel layer according to specs.",null,"LS",null,0.2,null,34207.968000000001,null,null,null,null,{"$f":"L488+J488","v":0},{"$f":"M488*H488","v":0}]
["B/G/701 303","OUT DOOR LIGHTING "]
[null,"supplying and erct all the necessary items and accessories according to  specs and industry assets.",null,"LS",null,0.3,null,51311.951999999997,null,null,null,null,{"$f":"L490+J490","v":0},{"$f":"M490*H490","v":0}]
["B/G/701 304","MOBILIZATION AND DEMOBILIZATION"]
[null,"Per lump sum mobilization which include (but not limited to... )all equipment  at the construction site such as office ,stationary and all necessary items to finish the project until its finshed.",null,"LS",null,0.1,null,17103.984,null,null,null,null,{"$f":"L492+J492","v":0},{"$f":"M492*H492","v":0}]
["B/G/701 300","Total",null,null,null,{"$f":"SUM(F486:F492)","v":1.0000000000000002},null,null,null,null,null,null,{"$f":"SUM(M486:M492)","v":0},{"$f":"SUM(N486:N492)","v":0}]
["B/G/701 400","DESIGN",null,null,null,null,null,null,null,null,null,null,null,151603.498542274]
["B/G/701 401","PRIMARY DESIGN "]
[null,"delver all the aproved drawings to owner ",null,"LS",null,0.9,null,137755.098,null,null,null,null,{"$f":"L496+J496","v":0},{"$f":"M496*H496","v":0}]
["B/G/701 402","AS BULT DRAWINGS"]
[null,"delver  aproved as built drawings to owner ",null,"LS",null,0.1,null,15306.122000000001,null,null,null,null,{"$f":"L498+J498","v":0},{"$f":"M498*H498","v":0}]
["B/G/701 400","Total",null,null,null,{"$f":"SUM(F496:F498)","v":1},null,null,null,null,null,null,{"$f":"SUM(M496:M498)","v":0},{"$f":"SUM(N496:N498)","v":0}]
["B/G/701 500","DECENNIAL LIABILITY INSURANCE",null,null,null,null,null,null,null,null,null,null,null,126336.248785228]
[null,"DECENNIAL LIABILITY INSURANCE","DECENNIAL LIABILITY INSURANCE","LS",null,1,null,145772.59,null,null,null,null,{"$f":"L501+J501","v":0},{"$f":"M501*H501","v":0}]
["B/G/701 500","Total",null,null,null,{"$f":"SUM(F501)","v":1},null,null,null,null,null,null,{"$f":"SUM(M501)","v":0},{"$f":"SUM(N501)","v":0}]
["TOTAL ",null,null,{"$f":"SUM(N7:N502)-(N306)-((N7))","v":19128143.836899921}]
[null,null,null,null,null,null,null,null,null,null,null,null,null,{"$f":"SUM(N7:N502)-(N306)-((N7))","v":19128143.836899921}]

{"sheet":" civil  (3)","index":2,"n_rows":507,"n_cols":21,"rows_kept":507,"cut":false,"hidden":true,"merged":[[498,1,498,2],[500,1,500,2],[503,1,503,2],[505,3,505,13],[482,1,482,2],[484,1,484,2],[488,1,488,2],[490,1,490,2],[492,1,492,2],[494,1,494,2],[464,1,464,2],[468,1,468,2],[472,1,472,2],[474,1,474,2],[476,1,476,2],[480,1,480,2],[431,1,431,2],[433,1,433,2],[435,1,435,2],[437,1,437,2],[439,1,439,2],[462,1,462,2],[403,1,403,2],[405,1,405,2],[407,1,407,2],[409,1,409,2],[411,1,411,2],[429,1,429,2],[388,1,388,2],[390,1,390,2],[392,1,392,2],[394,1,394,2],[396,1,396,2],[401,1,401,2],[371,1,371,2],[373,1,373,2],[375,1,375,2],[381,1,381,2],[383,1,383,2],[385,1,385,2],[355,1,355,2],[357,1,357,2],[361,1,361,2],[363,1,363,2],[367,1,367,2],[369,1,369,2],[341,1,341,2],[343,1,343,2],[345,1,345,2],[349,1,349,2],[351,1,351,2],[353,1,353,2],[325,1,325,2],[329,1,329,2],[331,1,331,2],[333,1,333,2],[335,1,335,2],[337,1,337,2],[313,1,313,2],[315,1,315,2],[318,1,318,3],[319,1,319,2],[321,1,321,2],[323,1,323,2],[299,1,299,2],[301,1,301,2],[305,1,305,5],[308,1,308,3],[309,1,309,2],[311,1,311,2],[287,1,287,2],[289,1,289,2],[291,1,291,2],[293,1,293,2],[295,1,295,2],[297,1,297,2],[271,1,271,2],[273,1,273,2],[275,1,275,2],[279,1,279,2],[281,1,281,2],[285,1,285,2],[253,1,253,2],[257,1,257,2],[259,1,259,2],[261,1,261,2],[265,1,265,2],[267,1,267,2],[241,1,241,2],[243,1,243,2],[245,1,245,2],[247,1,247,2],[249,1,249,2],[251,1,251,2],[225,1,225,2],[227,1,227,2],[229,1,229,2],[233,1,233,2],[235,1,235,2],[239,1,239,2],[213,1,213,2],[215,1,215,2],[217,1,217,2],[219,1,219,2],[221,1,221,2],[223,1,223,2],[197,1,197,2],[201,1,201,2],[203,1,203,2],[205,1,205,2],[207,1,207,2],[210,1,210,9],[181,1,181,2],[183,1,183,2],[185,1,185,2],[189,1,189,2],[191,1,191,2],[195,1,195,2],[163,1,163,2],[167,1,167,2],[169,1,169,2],[171,1,171,2],[175,1,175,2],[177,1,177,2],[151,1,151,2],[153,1,153,2],[155,1,155,2],[157,1,157,2],[159,1,159,2],[161,1,161,2],[135,1,135,2],[137,1,137,2],[139,1,139,2],[143,1,143,2],[145,1,145,2],[149,1,149,2],[123,1,123,2],[125,1,125,2],[127,1,127,2],[129,1,129,2],[131,1,131,2],[133,1,133,2],[107,1,107,2],[111,1,111,2],[113,1,113,2],[115,1,115,2],[117,1,117,2],[120,1,120,9],[91,1,91,2],[93,1,93,2],[95,1,95,2],[99,1,99,2],[101,1,101,2],[105,1,105,2],[73,1,73,2],[77,1,77,2],[79,1,79,2],[81,1,81,2],[85,1,85,2],[87,1,87,2],[61,1,61,2],[63,1,63,2],[65,1,65,2],[67,1,67,2],[69,1,69,2],[71,1,71,2],[45,1,45,2],[47,1,47,2],[49,1,49,2],[53,1,53,2],[55,1,55,2],[59,1,59,2],[33,1,33,2],[35,1,35,2],[37,1,37,2],[39,1,39,2],[41,1,41,2],[43,1,43,2],[18,1,18,2],[20,1,20,2],[24,1,24,2],[26,1,26,2],[28,1,28,2],[30,1,30,9],[3,1,3,2],[7,1,7,13],[10,1,10,2],[12,1,12,2],[14,1,14,2],[16,1,16,2]]}
[]
[]
["Project : ","Tameya 220/66/11KV S/S"]
["Code ","Item Description ",null,"Unit",null,"% Item Weight","% Total Contract","Unit Price L.E.",null,"Previous",null,"Current","TOTAL","Total Price L.E."]
[null,null,null,null,null,null,null,null,"%","EGP","%","EGP"]
[null,null,null,null,null,null,null,null,null,null,null,null,null,{"$f":"N7+N306","v":18254966}]
["B/G/600 000","Civil Works:",null,"LS",null,null,null,null,null,null,null,null,null,9454398.4499999993]
["B/G/620  000","220 GIS OUTDOOR EQUIPMENTS, RECEIVING GANTREES, SUPPORTS OF GIP  CONNECTION, NETURAL POINTS AND CABLE SEALING ENDS. (Lump sum prices of items # 520 100.... 520 200). "]
["B/G/620  100","Concrete Work",null,null,null,null,null,null,null,null,null,null,null,379008.75]
["B/G/620 101","EXCAVATION "]
[null,"Excavation including Excavated material Transfer  (As Specified)",null,"LS",null,0.1,null,{"$f":"F11*N9","v":37900.875},null,null,null,null,{"$f":"L11+J11","v":0},{"$f":"M11*H11","v":0},0.1,null,694849.37,null,69484.937000000005,null,69484.937000000005]
["B/G/620 102","SOIL  REPLACEMENT"]
[null," Supply and apply , SOIL REPLACEMENT According to the approved sieve analysis according to drawings &specs , the rate include leveling , water , compaction and compaction test to be compacted with relative compaction 98%.",null,"LS",null,0.1,null,{"$f":"F13*N9","v":37900.875},null,null,null,null,{"$f":"L13+J13","v":0},{"$f":"M13*H13","v":0},0.1,null,null,null,69484.937000000005,null,69484.937000000005]
["B/G/620 103","Backfeling"]
[null," backfilling by approved fill material selected from excavation ,including compaction , the rate include compaction test  according to specs.","M3","LS",null,0.12,null,{"$f":"F15*N9","v":45481.049999999996},null,null,null,null,{"$f":"L15+J15","v":0},{"$f":"M15*H15","v":0},0.12,null,null,null,83381.924400000004,null,83381.924400000004]
["B/G/620 104","PLAIN CONCRETE "]
[null,"Supply and provide ready mix plain concrete grade 250 KG/m³, the clause includes form work, adding additives, pouring and curing, to be separated from soil  by 250 micron polyethylene proofing sheet, and that concrete should be finished as per specs and industry assets. ",null,"LS",null,0.15,null,104227.40549999999,null,null,null,null,{"$f":"L17+J17","v":0},{"$f":"M17*H17","v":0},0.15,null,null,null,104227.40549999999,null,104227.40549999999]
["B/G/620 105","REINFORCEMENT CONCRETE"]
[null,"Reinforced concrete for foundation and semelle with specified strength  including all required joints  and testing (As Specified)   (Cement content not less than 350 Kg/m³)",null,"LS",null,0.45,null,312682.21649999998,null,null,null,null,{"$f":"L19+J19","v":0},{"$f":"M19*H19","v":0},0.45,null,null,null,312682.21649999998,null,312682.21649999998]
["B/G/620 106","INSULLATION "]
[null," providing (supplying & painting) three coats of bituminous emulsion above concrete surface which in contact with soil as per drawings & specs.",null,"LS",null,0.08,null,55587.9496,null,null,null,null,{"$f":"L21+J21","v":0},{"$f":"M21*H21","v":0},0.08,null,null,null,55587.9496,null,55587.9496]
["B/G/620  100","Total",null,null,null,{"$f":"SUM(F11:F21)","v":0.99999999999999989},null,null,null,null,null,null,{"$f":"SUM(M11:M21)","v":0},{"$f":"SUM(N11:N21)","v":0}]
["B/G 620 200","STRUCTURAL STEEL WORKS",null,null,null,null,null,null,null,null,null,null,null,1137026.24,null,null,{"$f":"SUM(#REF!)","v":{"$error":"#REF!"}}]
["B/G/620 201"," SUPPLYING "]
[null," supplying  of complete steel structure (Anchor bolts; columns; embedded beams; embedded plates; fixed plates ) according to drawing and specs.",null,"LS",null,0.6,null,571428.56999999995,null,null,null,null,{"$f":"L25+J25","v":0},{"$f":"M25*H25","v":0},0.6,null,952380.95,null,571428.56999999995,null,571428.56999999995]
["B/G/620 202"," ERECTION "]
[null," steel structure  erection including  welding (Anchor bolts; columns; embedded beams; embedded plates; fixed plates ) according to specs.",null,"LS",null,0.3,null,285714.28499999997,null,null,null,null,{"$f":"L27+J27","v":0},{"$f":"M27*H27","v":0},0.3,null,null,null,285714.28499999997,null,285714.28499999997]
["B/G/620 203","GROUTING "]
[null,"Supply and apply Non shrink grout (As Specified)",null,"LS",null,0.1,null,95238.095000000001,null,null,null,null,{"$f":"L29+J29","v":0},{"$f":"M29*H29","v":0},0.1,null,null,null,95238.095000000001,null,95238.095000000001]
["B/G/620 200","Total",null,null,null,{"$f":"SUM(F25:F29)","v":0.99999999999999989},null,null,null,null,null,null,{"$f":"SUM(M25:M29)","v":0},{"$f":"SUM(N25:N29)","v":0},null,null,{"$f":"SUM(#REF!)","v":{"$error":"#REF!"}}]
["B/G/630  000","220 KV GIS switch gear building (lump sum prices of items Nos. 630 100 through 630 900)",null,null,null,null,null,null,null,null,null,null,null,null,null,null,{"$f":"SUM(#REF!)","v":{"$error":"#REF!"}}]
["B/G/630  100","Concrete Work",null,null,null,null,null,null,null,null,null,null,null,1183189.5]
["B/G/630 101","EXCAVATION "]
[null,"Excavation including Excavated material Transfer  (As Specified)",null,"LS",null,0.06,null,93673.469400000002,null,null,null,null,{"$f":"L34+J34","v":0},{"$f":"M34*H34","v":0},0.06,null,1561224.49,null,93673.469400000002,null,93673.469400000002]
["B/G/630 102","SOIL  REPLACEMENT"]
[null,"Supply and apply , SOIL REPLACEMENT According to the approved sieve analysis according to drawings &specs , the rate include leveling , water , compaction and compaction test to be compacted with relative compaction 98%.",null,"LS",null,0.08,null,124897.9592,null,null,null,null,{"$f":"L36+J36","v":0},{"$f":"M36*H36","v":0},0.08,null,null,null,124897.9592,null,124897.9592]
["B/G/630 103","Backfeling"]
[null,"backfilling by approved fill material selected from excavation ,including compaction , the rate include compaction test  according to specs.","M3","LS",null,0.08,null,124897.9592,null,null,null,null,{"$f":"L38+J38","v":0},{"$f":"M38*H38","v":0},0.08,null,null,null,124897.9592,null,124897.9592]
["B/G/630 104","PLAIN CONCRETE "]
[null,"Supply and provide ready mix plain concrete grade 250 KG/m³, the clause includes form work, adding additives, pouring and curing, to be separated from soil  by 250 micron polyethylene proofing sheet, and that concrete should be finished as per specs and industry assets. ",null,"LS",null,0.1,null,156122.44899999999,null,null,null,null,{"$f":"L40+J40","v":0},{"$f":"M40*H40","v":0},0.1,null,null,null,156122.44899999999,null,156122.44899999999]
["B/G/630 105","REINFORCEMENT CONCRETE FOR FOOTINGS "]
[null,"Reinforced concrete for foundation and semelle with specified strength  including all required joints  and testing (As Specified)   (Cement content not less than 350 Kg/m³)",null,"LS",null,0.2,null,312244.89799999999,null,null,null,null,{"$f":"L42+J42","v":0},{"$f":"M42*H42","v":0},0.2,null,null,null,312244.89799999999,null,312244.89799999999]
["B/G/630 106","REINFORCEMENT CONCRETE FOR COLUMNS AND BEAMS"]
[null,"Reinforced concrete for columns and beams with specified strength  including all required  testing (As Specified)   (Cement content not less than 350 Kg/m³) ",null,"LS",null,0.15,null,234183.6735,null,null,null,null,{"$f":"L44+J44","v":0},{"$f":"M44*H44","v":0},0.15,null,null,null,234183.6735,null,234183.6735]
["B/G/630 107","REINFORCEMENT CONCRETE FOR ROOF SLAP"]
[null,"Reinforced concrete for roof slab and beams with specified strength  including faire faceand all required  testing (As Specified) (Cement content not less than 350 Kg/m³) ",null,"LS",null,0.2,null,312244.89799999999,null,null,null,null,{"$f":"L46+J46","v":0},{"$f":"M46*H46","v":0},0.2,null,null,null,312244.89799999999,null,312244.89799999999]
["B/G/630 108","INSULLATION "]
[null,"providing (supplying & painting) three coats of bituminous emulsion above concrete surface which in contact with soil as per drawings & specs. ( Up to zero level )",null,"LS",null,0.05,null,78061.224499999997,null,null,null,null,{"$f":"L48+J48","v":0},{"$f":"M48*H48","v":0},0.05,null,null,null,78061.224499999997,null,78061.224499999997]
["B/G/630 109","SLAP ON GRADE  "]
[null,"applying all the reqaired layes of slap on grade according to drawings and specs.",null,"LS",null,0.08,null,124897.9592,null,null,null,null,{"$f":"L50+J50","v":0},{"$f":"M50*H50","v":0},0.08,null,null,null,124897.9592,null,124897.9592]
["B/G/630  100","Total",null,null,null,{"$f":"SUM(F34:F50)","v":1.0000000000000002},null,null,null,null,null,null,{"$f":"SUM(M34:M50)","v":0},{"$f":"SUM(N34:N50)","v":0}]
["B/G/630  200","STRUCTURAL STEEL WORKS",null,null,null,null,null,null,null,null,null,null,null,104398.45,null,null,{"$f":"SUM(#REF!)","v":{"$error":"#REF!"}}]
["B/G/620  201"," SUPPLYING "]
[null," supplying  of complete steel structure (Anchor bolts; columns; embedded beams; embedded plates; fixed plates ) according to drawing and specs.",null,"LS",null,0.6,null,48979.59,null,null,null,null,{"$f":"L54+J54","v":0},{"$f":"M54*H54","v":0},0.6,null,81632.649999999994,null,48979.59,null,48979.59]
["B/G/630 202"," ERECTION "]
[null," steel structure  erection including  welding (Anchor bolts; columns; embedded beams; embedded plates; fixed plates ) according to specs.",null,"LS",null,0.4,null,32653.059999999998,null,null,null,null,{"$f":"L56+J56","v":0},{"$f":"M56*H56","v":0},0.4,null,null,null,32653.059999999998,null,32653.059999999998]
["B/G/630  200","Total",null,null,null,{"$f":"SUM(F54:F56)","v":1},null,null,null,null,null,null,{"$f":"SUM(M54:M56)","v":0},{"$f":"SUM(N54:N56)","v":0},null,null,{"$f":"SUM(#REF!)","v":{"$error":"#REF!"}}]
["B/G/630  300","ARCHITECTURAL WORKS",null,null,null,null,null,null,null,null,null,null,null,904793.97,null,null,{"$f":"SUM(#REF!)","v":{"$error":"#REF!"}}]
["B/G/630 301","MASONARY WORK  ",null,null,null,null,null,null,null,null,null,null,null,null,null,null,714285.71]
[null,"supplying & constructing and installing)brick walls solid cemented  25cm thick.;  the brick dimensions are 250*120*60 mm, the clause includes all lintels; scaffolding; dowels and wire mesh which connect brick with the concrete items before starting plaster works, the mortar contents is 350 kg of ordinary Portland cement for each cubic meter of sand, as per drawings & specs, and all necessary to finish works as per the technical industrial assets,  the rate include lentel required.                                  ",null,"LS",null,0.3,null,214285.71299999999,null,null,null,null,{"$f":"L60+J60","v":0},{"$f":"M60*H60","v":0},0.3,null,null,null,214285.71299999999,null,214285.71299999999]
["B/G/630 302","PLASTERING WORKS"]
[null," providing (supplying & plastering) for the cement mortar for walls, is including leveling; scaffolding; all necessary tools;   the cement content in the mortar not less than 350 kg  Ordinary Portland Cement for each cubic meter of sand, as per drawings & specs, and all necessary to finish works as per the technical industrial assets. .  ",null,"LS",null,0.15,null,107142.85649999999,null,null,null,null,{"$f":"L62+J62","v":0},{"$f":"M62*H62","v":0},0.15,null,null,null,107142.85649999999,null,107142.85649999999]
["B/G/630 303","PAINTING WORKS"]
[null,"providing (supplying & paint) emulsion plastic washable paint for internal walls   is including three putty coats; one fin mastic flat coat, and two final  coat, the clause included all necessary tools and steel scaffolding as per drawings & specs, and all necessary to finish works as per the technical industrial assets, and  the approved color samples.  ",null,"LS",null,0.1,null,71428.570999999996,null,null,null,null,{"$f":"L64+J64","v":0},{"$f":"M64*H64","v":0},0.1,null,null,null,71428.570999999996,null,71428.570999999996]
["B/G/630 304","FLOORINNG WORKS"]
[null," Delivery and installation all the types of floorinng  including all required and specs ",null,"LS",null,0.1,null,71428.570999999996,null,null,null,null,{"$f":"L66+J66","v":0},{"$f":"M66*H66","v":0},0.1,null,null,null,71428.570999999996,null,71428.570999999996]
["B/G/630 305","ROOFING SYSTEM "]
[null,"Protection layer for roofing including all requirement and accessories    (As Specified)",null,"LS",null,0.13,null,92857.142299999992,null,null,null,null,{"$f":"L68+J68","v":0},{"$f":"M68*H68","v":0},0.13,null,null,null,92857.142299999992,null,92857.142299999992]
["B/G/630 306","ROLLING SHUTTER DOOR  "]
[null,"Delivery and erection of approved according to specs.",null,"LS",null,0.16,null,114285.7136,null,null,null,null,{"$f":"L70+J70","v":0},{"$f":"M70*H70","v":0},0.16,null,null,null,114285.7136,null,114285.7136]
["B/G/630 307","DOORS"]
[null,"Delivery and erection of approved color  aluminum doors.",null,"LS",null,0.03,null,21428.5713,null,null,null,null,{"$f":"L72+J72","v":0},{"$f":"M72*H72","v":0},0.03,null,null,null,21428.5713,null,21428.5713]
["B/G/630 308","WINDOWS "]
[null,"Delivery and erection of approved color  aluminum windows.",null,"LS",null,0.03,null,21428.5713,null,null,null,null,{"$f":"L74+J74","v":0},{"$f":"M74*H74","v":0},0.03,null,null,null,21428.5713,null,21428.5713]
["B/G/630  300","Total",null,null,null,{"$f":"SUM(F60:F74)","v":1},null,null,null,null,null,null,{"$f":"SUM(M60:M74)","v":0},{"$f":"SUM(N60:N74)","v":0},null,null,{"$f":"SUM(#REF!)","v":{"$error":"#REF!"}}]
["B/G/630  400","ELECTRICAL WORK",null,null,null,null,null,null,null,null,null,null,null,58000,null,null,{"$f":"SUM(#REF!)","v":{"$error":"#REF!"}}]
["B/G/630 401"," SUPPLY"]
[null,"supplying  all necessary elecreical  parts to compleat the work according to specs ",null,null,null,0.25,null,16581.6325,null,null,null,null,{"$f":"L78+J78","v":0},{"$f":"M78*H78","v":0},0.25,null,66326.53,null,16581.6325,null,16581.6325]
["B/G/630 402","FIXTUERES"]
[null,"locate and fix all the electrical items according to drawings and specs ",null,"LS",null,0.65,null,43112.244500000001,null,null,null,null,{"$f":"L80+J80","v":0},{"$f":"M80*H80","v":0},0.65,null,null,null,43112.244500000001,null,43112.244500000001]
["B/G/630 403","TEST "]
[null,"all the necessary tests to handling the electrical work according to specs and industry assets.",null,"LS",null,0.1,null,6632.6530000000002,null,null,null,null,{"$f":"L82+J82","v":0},{"$f":"M82*H82","v":0},0.1,null,null,null,6632.6530000000002,null,6632.6530000000002]
["B/G/630  400","Total",null,null,null,{"$f":"SUM(F78:F82)","v":1},null,null,null,null,null,null,{"$f":"SUM(M78:M82)","v":0},{"$f":"SUM(N78:N82)","v":0},null,null,{"$f":"SUM(#REF!)","v":{"$error":"#REF!"}}]
["B/G/630 500","PLUMBING WORK",null,null,null,null,null,null,null,null,null,null,null,144998.06,null,null,{"$f":"SUM(#REF!)","v":{"$error":"#REF!"}}]
["B/G/630 501","SUPPLY AND INSTALL",null,null,null,null,null,null,null,null,null,null,null,null,null,null,92322.64]
[null,"Supplying and installing  all necessary embedded items and connections according to specs and drawings",null,"LS",null,0.7,null,64625.847999999998,null,null,null,null,{"$f":"L86+J86","v":0},{"$f":"M86*H86","v":0},0.7,null,null,null,64625.847999999998,null,64625.847999999998]
["B/G/630 502","TEST"]
[null,"all the necessary tests to handling the plumbing system according to specs and industry assets.",null,"LS",null,0.3,null,27696.791999999998,null,null,null,null,{"$f":"L88+J88","v":0},{"$f":"M88*H88","v":0},0.3,null,null,null,27696.791999999998,null,27696.791999999998]
["B/G/630 500","Total",null,null,null,{"$f":"SUM(F86:F88)","v":1},null,null,null,null,null,null,{"$f":"SUM(M86:M88)","v":0},{"$f":"SUM(N86:N88)","v":0},null,null,{"$f":"SUM(#REF!)","v":{"$error":"#REF!"}}]
["B/G/630 600","VENTILATION SYSTEM",null,null,null,null,null,null,null,null,null,null,null,60318.76,null,null,{"$f":"SUM(#REF!)","v":{"$error":"#REF!"}}]
["B/G/630 601"," SUPPLY",null,null,null,null,null,null,null,null,null,null,null,null,null,null,94071.91]
[null,"supplying  all necessary ventilation parts according to specs and drawings ",null,null,null,0.6,null,56443.146000000001,null,null,null,null,{"$f":"L92+J92","v":0},{"$f":"M92*H92","v":0},0.6,null,null,null,56443.146000000001,null,56443.146000000001]
["B/G/630 602","FIXTUERES"]
[null,"locate and fix all the ventilation parts according to drawings and specs ",null,"LS",null,0.2,null,18814.382000000001,null,null,null,null,{"$f":"L94+J94","v":0},{"$f":"M94*H94","v":0},0.2,null,null,null,18814.382000000001,null,18814.382000000001]
["B/G/630 603","TEST "]
[null,"all the necessary tests to handling the VENTILATION SYSTEM according to specs and industry assets.",null,"LS",null,0.2,null,18814.382000000001,null,null,null,null,{"$f":"L96+J96","v":0},{"$f":"M96*H96","v":0},0.2,null,null,null,18814.382000000001,null,18814.382000000001]
["B/G/630 600","Total",null,null,null,{"$f":"SUM(F92:F96)","v":1},null,null,null,null,null,null,{"$f":"SUM(M92:M96)","v":0},{"$f":"SUM(N92:N96)","v":0},null,null,{"$f":"SUM(#REF!)","v":{"$error":"#REF!"}}]
["B/G/630 700","FIRE DETECTION",null,null,null,null,null,null,null,null,null,null,null,26678.328474246799,null,null,{"$f":"SUM(#REF!)","v":{"$error":"#REF!"}}]
["B/G/630 701","SUPPLY AND ERECT",null,null,null,null,null,null,null,null,null,null,null,null,null,null,37414.97]
[null,"Supplying and erecting  all necessary fire detection system parts and connections according to specs and drawings",null,"LS",null,0.7,null,26190.478999999999,null,null,null,null,{"$f":"L100+J100","v":0},{"$f":"M100*H100","v":0},0.7,null,null,null,26190.478999999999,null,26190.478999999999]
["B/G/630 702","TEST"]
[null,"all the necessary tests to handling the fire detection system according to specs and industry assets.",null,"LS",null,0.3,null,11224.491,null,null,null,null,{"$f":"L102+J102","v":0},{"$f":"M102*H102","v":0},0.3,null,null,null,11224.491,null,11224.491]
["B/G/630 700","Total",null,null,null,{"$f":"SUM(F100:F102)","v":1},null,null,null,null,null,null,{"$f":"SUM(M100:M102)","v":0},{"$f":"SUM(N100:N102)","v":0},null,null,{"$f":"SUM(#REF!)","v":{"$error":"#REF!"}}]
["B/G/630 800","ELECTRICALLY OPERATED OVER HEAD CREAN",null,null,null,null,null,null,null,null,null,null,null,425247.813411079,null,null,{"$f":"SUM(#REF!)","v":{"$error":"#REF!"}}]
["B/G/630 801","SUPPLY ",null,null,null,null,null,null,null,null,null,null,null,null,null,null,365403.3]
[null,"Supplying  over head crean according to specifications.",null,"LS",null,0.7,null,255782.30999999997,null,null,null,null,{"$f":"L106+J106","v":0},{"$f":"M106*H106","v":0},0.7,null,null,null,255782.30999999997,null,255782.30999999997]
["B/G/630 802","ERECT AND OPERATE "]
[null,"erecting the over head crean and operate it,including all the required tests.",null,"LS",null,0.3,null,109620.98999999999,null,null,null,null,{"$f":"L108+J108","v":0},{"$f":"M108*H108","v":0},0.3,null,null,null,109620.98999999999,null,109620.98999999999]
["B/G/630 800","Total",null,null,null,{"$f":"SUM(F106:F108)","v":1},null,null,null,null,null,null,{"$f":"SUM(M106:M108)","v":0},{"$f":"SUM(N106:N108)","v":0},null,null,{"$f":"SUM(#REF!)","v":{"$error":"#REF!"}}]
["B/G/630 900","R.C CABLE TRENCHES AND DUCTS",null,null,null,null,null,null,null,null,null,null,null,52199.222546161298,null,null,{"$f":"SUM(#REF!)","v":{"$error":"#REF!"}}]
["B/G/630 901","PLAIN CONCRETE ",null,null,null,null,null,null,null,null,null,null,null,null,null,null,58309.04]
[null,"Supply and provide ready mix plain concrete grade 250 KG/m³, the clause includes form work, adding additives, pouring and curing,, and that concrete should be finished as per specs and industry assets. ",null,"LS",null,0.1,null,5830.9040000000005,null,null,null,null,{"$f":"L112+J112","v":0},{"$f":"M112*H112","v":0},0.1,null,null,null,5830.9040000000005,null,5830.9040000000005]
["B/G/630 902","REINFORCEMENT CONCRETE"]
[null,"Reinforced concrete for raft and walls with specified strength  including all required  and testing (As Specified)   (Cement content not less than 350 Kg/m³)",null,"LS",null,0.5,null,29154.52,null,null,null,null,{"$f":"L114+J114","v":0},{"$f":"M114*H114","v":0},0.5,null,null,null,29154.52,null,29154.52]
["B/G/630 903","CHEQUERED PLATE COVER "]
[null,"Delivery and erection of  chequered plate cover including painting  & all installation and handling  requirement (As Specified)",null,"LS",null,0.15,null,8746.3559999999998,null,null,null,null,{"$f":"L116+J116","v":0},{"$f":"M116*H116","v":0},0.15,null,null,null,8746.3559999999998,null,8746.3559999999998]
["B/G/630 904","DUCTE"]
[null,"making all the necessary ducte according to drawings and spics.",null,"LS",null,0.25,null,14577.26,null,null,null,null,{"$f":"L118+J118","v":0},{"$f":"M118*H118","v":0},0.25,null,null,null,14577.26,null,14577.26]
["B/G/630 900","Total",null,null,null,{"$f":"SUM(F112:F118)","v":1},null,null,null,null,null,null,{"$f":"SUM(M112:M118)","v":0},{"$f":"SUM(N112:N118)","v":0},null,null,{"$f":"SUM(#REF!)","v":{"$error":"#REF!"}}]
[]
["B/G/640 000","66 KV GIS switch gear building (lump sum prices of items Nos. 640 100 through 640 900)",null,null,null,null,null,null,null,null,null,null,null,null,null,null,{"$f":"SUM(#REF!)","v":{"$error":"#REF!"}}]
["B/G/640 100","Concrete Work",null,null,null,null,null,null,null,null,null,null,null,751700.68027210899]
["B/G/640 101","EXCAVATION "]
[null,"Excavation including Excavated material Transfer  (As Specified)",null,"LS",null,0.06,null,93673.469400000002,null,0,null,null,{"$f":"L124+J124","v":0},{"$f":"M124*H124","v":0},0.06,null,1561224.49,null,93673.469400000002,null,93673.469400000002]
["B/G/640 102","SOIL  REPLACEMENT"]
[null,"Supply and apply , SOIL REPLACEMENT According to the approved sieve analysis according to drawings &specs , the rate include leveling , water , compaction and compaction test to be compacted with relative compaction 98%.",null,"LS",null,0.08,null,124897.9592,null,null,null,null,{"$f":"L126+J126","v":0},{"$f":"M126*H126","v":0},0.08,null,null,null,124897.9592,null,124897.9592]
["B/G/640 103","Backfeling"]
[null,"backfilling by approved fill material selected from excavation ,including compaction , the rate include compaction test  according to specs.","M3","LS",null,0.08,null,124897.9592,null,null,null,null,{"$f":"L128+J128","v":0},{"$f":"M128*H128","v":0},0.08,null,null,null,124897.9592,null,124897.9592]
["B/G/640 104","PLAIN CONCRETE "]
[null,"Supply and provide ready mix plain concrete grade 250 KG/m³, the clause includes form work, adding additives, pouring and curing, to be separated from soil  by 250 micron polyethylene proofing sheet, and that concrete should be finished as per specs and industry assets. ",null,"LS",null,0.1,null,156122.44899999999,null,null,null,null,{"$f":"L130+J130","v":0},{"$f":"M130*H130","v":0},0.1,null,null,null,156122.44899999999,null,156122.44899999999]
["B/G/640 105","REINFORCEMENT CONCRETE FOR FOOTINGS "]
[null,"Reinforced concrete for foundation and semelle with specified strength  including all required joints  and testing (As Specified)   (Cement content not less than 350 Kg/m³)",null,"LS",null,0.2,null,312244.89799999999,null,null,null,null,{"$f":"L132+J132","v":0},{"$f":"M132*H132","v":0},0.2,null,null,null,312244.89799999999,null,312244.89799999999]
["B/G/640 106","REINFORCEMENT CONCRETE FOR COLUMNS AND BEAMS"]
[null,"Reinforced concrete for columns and beams with specified strength  including all required  testing (As Specified)   (Cement content not less than 350 Kg/m³) ",null,"LS",null,0.15,null,234183.6735,null,null,null,null,{"$f":"L134+J134","v":0},{"$f":"M134*H134","v":0},0.15,null,null,null,234183.6735,null,234183.6735]
["B/G/640 107","REINFORCEMENT CONCRETE FOR ROOF SLAP"]
[null,"Reinforced concrete for roof slab and beams with specified strength  including faire faceand all required  testing (As Specified) (Cement content not less than 350 Kg/m³) ",null,"LS",null,0.2,null,312244.89799999999,null,null,null,null,{"$f":"L136+J136","v":0},{"$f":"M136*H136","v":0},0.2,null,null,null,312244.89799999999,null,312244.89799999999]
["B/G/640 108","INSULLATION "]
[null,"providing (supplying & painting) three coats of bituminous emulsion above concrete surface which in contact with soil as per drawings & specs. ( Up to zero level )",null,"LS",null,0.05,null,78061.224499999997,null,null,null,null,{"$f":"L138+J138","v":0},{"$f":"M138*H138","v":0},0.05,null,null,null,78061.224499999997,null,78061.224499999997]
["B/G/640 109","SLAP ON GRADE  "]
[null,"applying all the reqaired layes of slap on grade according to drawings and specs.",null,"LS",null,0.08,null,124897.9592,null,null,null,null,{"$f":"L140+J140","v":0},{"$f":"M140*H140","v":0},0.08,null,null,null,124897.9592,null,124897.9592]
["B/G/640 100","Total",null,null,null,{"$f":"SUM(F124:F140)","v":1.0000000000000002},null,null,null,null,null,null,{"$f":"SUM(M124:M140)","v":0},{"$f":"SUM(N124:N140)","v":0}]
["B/G/640 200","STRUCTURAL STEEL WORKS",null,null,null,null,null,null,null,null,null,null,null,66326.530612244896,null,null,{"$f":"SUM(#REF!)","v":{"$error":"#REF!"}}]
["B/G/640  201"," SUPPLYING "]
[null," supplying  of complete steel structure (Anchor bolts; columns; embedded beams; embedded plates; fixed plates ) according to drawing and specs.",null,"LS",null,0.6,null,48979.59,null,null,null,null,{"$f":"L144+J144","v":0},{"$f":"M144*H144","v":0},0.6,null,81632.649999999994,null,48979.59,null,48979.59]
["B/G/640 202"," ERECTION "]
[null," steel structure  erection including  welding (Anchor bolts; columns; embedded beams; embedded plates; fixed plates ) according to specs.",null,"LS",null,0.4,null,32653.059999999998,null,null,null,null,{"$f":"L146+J146","v":0},{"$f":"M146*H146","v":0},0.4,null,null,null,32653.059999999998,null,32653.059999999998]
["B/G/640 200","Total",null,null,null,{"$f":"SUM(F144:F146)","v":1},null,null,null,null,null,null,{"$f":"SUM(M144:M146)","v":0},{"$f":"SUM(N144:N146)","v":0},null,null,{"$f":"SUM(#REF!)","v":{"$error":"#REF!"}}]
["B/G/640 300","ARCHITECTURAL WORKS",null,null,null,null,null,null,null,null,null,null,null,574829.931972789,null,null,{"$f":"SUM(#REF!)","v":{"$error":"#REF!"}}]
["B/G/640 301","MASONARY WORK  ",null,null,null,null,null,null,null,null,null,null,null,null,null,null,714285.71]
[null,"supplying & constructing and installing)brick walls solid cemented  25cm thick.;  the brick dimensions are 250*120*60 mm, the clause includes all lintels; scaffolding; dowels and wire mesh which connect brick with the concrete items before starting plaster works, the mortar contents is 350 kg of ordinary Portland cement for each cubic meter of sand, as per drawings & specs, and all necessary to finish works as per the technical industrial assets,  the rate include lentel required.                                  ",null,"LS",null,0.3,null,214285.71299999999,null,null,null,null,{"$f":"L150+J150","v":0},{"$f":"M150*H150","v":0},0.3,null,null,null,214285.71299999999,null,214285.71299999999]
["B/G/640 302","PLASTERING WORKS"]
[null," providing (supplying & plastering) for the cement mortar for walls, is including leveling; scaffolding; all necessary tools;   the cement content in the mortar not less than 350 kg  Ordinary Portland Cement for each cubic meter of sand, as per drawings & specs, and all necessary to finish works as per the technical industrial assets. .  ",null,"LS",null,0.15,null,107142.85649999999,null,null,null,null,{"$f":"L152+J152","v":0},{"$f":"M152*H152","v":0},0.15,null,null,null,107142.85649999999,null,107142.85649999999]
["B/G/640 303","PAINTING WORKS"]
[null,"providing (supplying & paint) emulsion plastic washable paint for internal walls   is including three putty coats; one fin mastic flat coat, and two final  coat, the clause included all necessary tools and steel scaffolding as per drawings & specs, and all necessary to finish works as per the technical industrial assets, and  the approved color samples.  ",null,"LS",null,0.1,null,71428.570999999996,null,null,null,null,{"$f":"L154+J154","v":0},{"$f":"M154*H154","v":0},0.1,null,null,null,71428.570999999996,null,71428.570999999996]
["B/G/640 304","FLOORINNG WORKS"]
[null," Delivery and installation all the types of floorinng  including all required and specs ",null,"LS",null,0.1,null,71428.570999999996,null,null,null,null,{"$f":"L156+J156","v":0},{"$f":"M156*H156","v":0},0.1,null,null,null,71428.570999999996,null,71428.570999999996]
["B/G/640 305","ROOFING SYSTEM "]
[null,"Protection layer for roofing including all requirement and accessories    (As Specified)",null,"LS",null,0.13,null,92857.142299999992,null,null,null,null,{"$f":"L158+J158","v":0},{"$f":"M158*H158","v":0},0.13,null,null,null,92857.142299999992,null,92857.142299999992]
["B/G/640 306","ROLLING SHUTTER DOOR  "]
[null,"Delivery and erection of approved according to specs.",null,"LS",null,0.16,null,114285.7136,null,null,null,null,{"$f":"L160+J160","v":0},{"$f":"M160*H160","v":0},0.16,null,null,null,114285.7136,null,114285.7136]
["B/G/640 307","DOORS"]
[null,"Delivery and erection of approved color  aluminum doors.",null,"LS",null,0.03,null,21428.5713,null,null,null,null,{"$f":"L162+J162","v":0},{"$f":"M162*H162","v":0},0.03,null,null,null,21428.5713,null,21428.5713]
["B/G/640 308","WINDOWS "]
[null,"Delivery and erection of approved color  aluminum windows.",null,"LS",null,0.03,null,21428.5713,null,null,null,null,{"$f":"L164+J164","v":0},{"$f":"M164*H164","v":0},0.03,null,null,null,21428.5713,null,21428.5713]
["B/G/640 300","Total",null,null,null,{"$f":"SUM(F150:F164)","v":1},null,null,null,null,null,null,{"$f":"SUM(M150:M164)","v":0},{"$f":"SUM(N150:N164)","v":0},null,null,{"$f":"SUM(#REF!)","v":{"$error":"#REF!"}}]
["B/G/640 400","ELECTRICAL WORK",null,null,null,null,null,null,null,null,null,null,null,57256.559766763901,null,null,{"$f":"SUM(#REF!)","v":{"$error":"#REF!"}}]
["B/G/640 401"," SUPPLY"]
[null,"supplying  all necessary elecreical  parts to compleat the work according to specs ",null,null,null,0.25,null,16581.6325,null,null,null,null,{"$f":"L168+J168","v":0},{"$f":"M168*H168","v":0},0.25,null,66326.53,null,16581.6325,null,16581.6325]
["B/G/640 402","FIXTUERES"]
[null,"locate and fix all the electrical items according to drawings and specs ",null,"LS",null,0.65,null,43112.244500000001,null,null,null,null,{"$f":"L170+J170","v":0},{"$f":"M170*H170","v":0},0.65,null,null,null,43112.244500000001,null,43112.244500000001]
["B/G/640 403","TEST "]
[null,"all the necessary tests to handling the electrical work according to specs and industry assets.",null,"LS",null,0.1,null,6632.6530000000002,null,null,null,null,{"$f":"L172+J172","v":0},{"$f":"M172*H172","v":0},0.1,null,null,null,6632.6530000000002,null,6632.6530000000002]
["B/G/640 400","Total",null,null,null,{"$f":"SUM(F168:F172)","v":1},null,null,null,null,null,null,{"$f":"SUM(M168:M172)","v":0},{"$f":"SUM(N168:N172)","v":0},null,null,{"$f":"SUM(#REF!)","v":{"$error":"#REF!"}}]
["B/G/640 500 ","PLUMBING WORK",null,null,null,null,null,null,null,null,null,null,null,92120.505344995196,null,null,{"$f":"SUM(#REF!)","v":{"$error":"#REF!"}}]
["B/G/640 501","SUPPLY AND INSTALL",null,null,null,null,null,null,null,null,null,null,null,null,null,null,92322.64]
[null,"Supplying and installing  all necessary embedded items and connections according to specs and drawings",null,"LS",null,0.7,null,64625.847999999998,null,null,null,null,{"$f":"L176+J176","v":0},{"$f":"M176*H176","v":0},0.7,null,null,null,64625.847999999998,null,64625.847999999998]
["B/G/640 502","TEST"]
[null,"all the necessary tests to handling the plumbing system according to specs and industry assets.",null,"LS",null,0.3,null,27696.791999999998,null,null,null,null,{"$f":"L178+J178","v":0},{"$f":"M178*H178","v":0},0.3,null,null,null,27696.791999999998,null,27696.791999999998]
["B/G/640 500","Total",null,null,null,{"$f":"SUM(F176:F178)","v":1},null,null,null,null,null,null,{"$f":"SUM(M176:M178)","v":0},{"$f":"SUM(N176:N178)","v":0},null,null,{"$f":"SUM(#REF!)","v":{"$error":"#REF!"}}]
["B/G/640 600","VENTILATION SYSTEM",null,null,null,null,null,null,null,null,null,null,null,39293.488824101099,null,null,{"$f":"SUM(#REF!)","v":{"$error":"#REF!"}}]
["B/G/640 601"," SUPPLY",null,null,null,null,null,null,null,null,null,null,null,null,null,null,94071.91]
[null,"supplying  all necessary ventilation parts according to specs and drawings ",null,null,null,0.6,null,56443.146000000001,null,null,null,null,{"$f":"L182+J182","v":0},{"$f":"M182*H182","v":0},0.6,null,null,null,56443.146000000001,null,56443.146000000001]
["B/G/640 602","FIXTUERES"]
[null,"locate and fix all the ventilation parts according to drawings and specs ",null,"LS",null,0.2,null,18814.382000000001,null,null,null,null,{"$f":"L184+J184","v":0},{"$f":"M184*H184","v":0},0.2,null,null,null,18814.382000000001,null,18814.382000000001]
["B/G/640 603","TEST "]
[null,"all the necessary tests to handling the VENTILATION SYSTEM according to specs and industry assets.",null,"LS",null,0.2,null,18814.382000000001,null,null,null,null,{"$f":"L186+J186","v":0},{"$f":"M186*H186","v":0},0.2,null,null,null,18814.382000000001,null,18814.382000000001]
["B/G/640 600","Total",null,null,null,{"$f":"SUM(F182:F186)","v":1},null,null,null,null,null,null,{"$f":"SUM(M182:M186)","v":0},{"$f":"SUM(N182:N186)","v":0},null,null,{"$f":"SUM(#REF!)","v":{"$error":"#REF!"}}]
["B/G/640 700","FIRE DETECTION",null,null,null,null,null,null,null,null,null,null,null,18969.873663751201,null,null,{"$f":"SUM(#REF!)","v":{"$error":"#REF!"}}]
["B/G/640 701","SUPPLY AND ERECT",null,null,null,null,null,null,null,null,null,null,null,null,null,null,37414.97]
[null,"Supplying and erecting  all necessary fire detection system parts and connections according to specs and drawings",null,"LS",null,0.7,null,26190.478999999999,null,null,null,null,{"$f":"L190+J190","v":0},{"$f":"M190*H190","v":0},0.7,null,null,null,26190.478999999999,null,26190.478999999999]
["B/G/640 702","TEST"]
[null,"all the necessary tests to handling the fire detection system according to specs and industry assets.",null,"LS",null,0.3,null,11224.491,null,null,null,null,{"$f":"L192+J192","v":0},{"$f":"M192*H192","v":0},0.3,null,null,null,11224.491,null,11224.491]
["B/G/640 700","Total",null,null,null,{"$f":"SUM(F190:F192)","v":1},null,null,null,null,null,null,{"$f":"SUM(M190:M192)","v":0},{"$f":"SUM(N190:N192)","v":0},null,null,{"$f":"SUM(#REF!)","v":{"$error":"#REF!"}}]
["B/G/640 800","ELECTRICALLY OPERATED OVER HEAD CREAN",null,null,null,null,null,null,null,null,null,null,null,429543.24586977699,null,null,{"$f":"SUM(#REF!)","v":{"$error":"#REF!"}}]
["B/G/640 801","SUPPLY ",null,null,null,null,null,null,null,null,null,null,null,null,null,null,365403.3]
[null,"Supplying  over head crean according to specifications.",null,"LS",null,0.7,null,255782.30999999997,null,null,null,null,{"$f":"L196+J196","v":0},{"$f":"M196*H196","v":0},0.7,null,null,null,255782.30999999997,null,255782.30999999997]
["B/G/640 802","ERECT AND OPERATE "]
[null,"erecting the over head crean and operate it,including all the required tests.",null,"LS",null,0.3,null,109620.98999999999,null,null,null,null,{"$f":"L198+J198","v":0},{"$f":"M198*H198","v":0},0.3,null,null,null,109620.98999999999,null,109620.98999999999]
["B/G/640 800","Total",null,null,null,{"$f":"SUM(F196:F198)","v":1},null,null,null,null,null,null,{"$f":"SUM(M196:M198)","v":0},{"$f":"SUM(N196:N198)","v":0},null,null,{"$f":"SUM(#REF!)","v":{"$error":"#REF!"}}]
["B/G/640 900","R.C CABLE TRENCHES AND DUCTS",null,null,null,null,null,null,null,null,null,null,null,33163.265306122397,null,null,{"$f":"SUM(#REF!)","v":{"$error":"#REF!"}}]
["B/G/640 901","PLAIN CONCRETE ",null,null,null,null,null,null,null,null,null,null,null,null,null,null,58309.04]
[null,"Supply and provide ready mix plain concrete grade 250 KG/m³, the clause includes form work, adding additives, pouring and curing,, and that concrete should be finished as per specs and industry assets. ",null,"LS",null,0.1,null,5830.9040000000005,null,null,null,null,{"$f":"L202+J202","v":0},{"$f":"M202*H202","v":0},0.1,null,null,null,5830.9040000000005,null,5830.9040000000005]
["B/G/640 902","REINFORCEMENT CONCRETE"]
[null,"Reinforced concrete for raft and walls with specified strength  including all required  and testing (As Specified)   (Cement content not less than 350 Kg/m³)",null,"LS",null,0.5,null,29154.52,null,null,null,null,{"$f":"L204+J204","v":0},{"$f":"M204*H204","v":0},0.5,null,null,null,29154.52,null,29154.52]
["B/G/640 903","CHEQUERED PLATE COVER "]
[null,"Delivery and erection of  chequered plate cover including painting  & all installation and handling  requirement (As Specified)",null,"LS",null,0.15,null,8746.3559999999998,null,null,null,null,{"$f":"L206+J206","v":0},{"$f":"M206*H206","v":0},0.15,null,null,null,8746.3559999999998,null,8746.3559999999998]
["B/G/640 904","DUCTE"]
[null,"making all the necessary ducte according to drawings and spics.",null,"LS",null,0.25,null,14577.26,null,null,null,null,{"$f":"L208+J208","v":0},{"$f":"M208*H208","v":0},0.25,null,null,null,14577.26,null,14577.26]
["B/G/640 900","Total",null,null,null,{"$f":"SUM(F202:F208)","v":1},null,null,null,null,null,null,{"$f":"SUM(M202:M208)","v":0},{"$f":"SUM(N202:N208)","v":0},null,null,{"$f":"SUM(#REF!)","v":{"$error":"#REF!"}}]
[]
["B/G/650 000","Control  building (lump sum prices of items Nos. 650 100 through 650 800)",null,null,null,null,null,null,null,null,null,null,null,null,null,null,{"$f":"SUM(#REF!)","v":{"$error":"#REF!"}}]
["B/G/650 100","Concrete Work",null,null,null,null,null,null,null,null,null,null,null,1225714.2857142901]
["B/G/650 101","EXCAVATION "]
[null,"Excavation including Excavated material Transfer  (As Specified)",null,"LS",null,0.06,null,93673.469400000002,null,null,null,null,{"$f":"L214+J214","v":0},{"$f":"M214*H214","v":0},0.06,null,1561224.49,null,93673.469400000002,null,93673.469400000002]
["B/G/650 102","SOIL  REPLACEMENT"]
[null,"Supply and apply , SOIL REPLACEMENT According to the approved sieve analysis according to drawings &specs , the rate include leveling , water , compaction and compaction test to be compacted with relative compaction 98%.",null,"LS",null,0.08,null,124897.9592,null,null,null,null,{"$f":"L216+J216","v":0},{"$f":"M216*H216","v":0},0.08,null,null,null,124897.9592,null,124897.9592]
["B/G/650 103","Backfeling"]
[null,"backfilling by approved fill material selected from excavation ,including compaction , the rate include compaction test  according to specs.","M3","LS",null,0.08,null,124897.9592,null,null,null,null,{"$f":"L218+J218","v":0},{"$f":"M218*H218","v":0},0.08,null,null,null,124897.9592,null,124897.9592]
["B/G/650 104","PLAIN CONCRETE "]
[null,"Supply and provide ready mix plain concrete grade 250 KG/m³, the clause includes form work, adding additives, pouring and curing, to be separated from soil  by 250 micron polyethylene proofing sheet, and that concrete should be finished as per specs and industry assets. ",null,"LS",null,0.1,null,156122.44899999999,null,null,null,null,{"$f":"L220+J220","v":0},{"$f":"M220*H220","v":0},0.1,null,null,null,156122.44899999999,null,156122.44899999999]
["B/G/650 105","REINFORCEMENT CONCRETE FOR FOOTINGS "]
[null,"Reinforced concrete for foundation and semelle with specified strength  including all required joints  and testing (As Specified)   (Cement content not less than 350 Kg/m³)",null,"LS",null,0.2,null,312244.89799999999,null,null,null,null,{"$f":"L222+J222","v":0},{"$f":"M222*H222","v":0},0.2,null,null,null,312244.89799999999,null,312244.89799999999]
["B/G/650 106","REINFORCEMENT CONCRETE FOR COLUMNS AND BEAMS"]
[null,"Reinforced concrete for columns and beams with specified strength  including all required  testing (As Specified)   (Cement content not less than 350 Kg/m³) ",null,"LS",null,0.15,null,234183.6735,null,null,null,null,{"$f":"L224+J224","v":0},{"$f":"M224*H224","v":0},0.15,null,null,null,234183.6735,null,234183.6735]
["B/G/650 107","REINFORCEMENT CONCRETE FOR ROOF SLAP"]
[null,"Reinforced concrete for roof slab and beams with specified strength  including faire faceand all required  testing (As Specified) (Cement content not less than 350 Kg/m³) ",null,"LS",null,0.2,null,312244.89799999999,null,null,null,null,{"$f":"L226+J226","v":0},{"$f":"M226*H226","v":0},0.2,null,null,null,312244.89799999999,null,312244.89799999999]
["B/G/650 108","INSULLATION "]
[null,"providing (supplying & painting) three coats of bituminous emulsion above concrete surface which in contact with soil as per drawings & specs. ( Up to zero level )",null,"LS",null,0.05,null,78061.224499999997,null,null,null,null,{"$f":"L228+J228","v":0},{"$f":"M228*H228","v":0},0.05,null,null,null,78061.224499999997,null,78061.224499999997]
["B/G/650 109","SLAP ON GRADE  "]
[null,"applying all the reqaired layes of slap on grade according to drawings and specs.",null,"LS",null,0.08,null,124897.9592,null,null,null,null,{"$f":"L230+J230","v":0},{"$f":"M230*H230","v":0},0.08,null,null,null,124897.9592,null,124897.9592]
["B/G/650 100","Total",null,null,null,{"$f":"SUM(F214:F230)","v":1.0000000000000002},null,null,null,null,null,null,{"$f":"SUM(M214:M230)","v":0},{"$f":"SUM(N214:N230)","v":0}]
["B/G/650 200","STRUCTURAL STEEL WORKS",null,null,null,null,null,null,null,null,null,null,null,106311.95335277,null,null,{"$f":"SUM(#REF!)","v":{"$error":"#REF!"}}]
["B/G/650  201"," SUPPLYING "]
[null," supplying  of complete steel structure (Anchor bolts; columns; embedded beams; embedded plates; fixed plates ) according to drawing and specs.",null,"LS",null,0.6,null,48979.59,null,null,null,null,{"$f":"L234+J234","v":0},{"$f":"M234*H234","v":0},0.6,null,81632.649999999994,null,48979.59,null,48979.59]
["B/G/650 202"," ERECTION "]
[null," steel structure  erection including  welding (Anchor bolts; columns; embedded beams; embedded plates; fixed plates ) according to specs.",null,"LS",null,0.4,null,32653.059999999998,null,null,null,null,{"$f":"L236+J236","v":0},{"$f":"M236*H236","v":0},0.4,null,null,null,32653.059999999998,null,32653.059999999998]
["B/G/650 200","Total",null,null,null,{"$f":"SUM(F234:F236)","v":1},null,null,null,null,null,null,{"$f":"SUM(M234:M236)","v":0},{"$f":"SUM(N234:N236)","v":0},null,null,{"$f":"SUM(#REF!)","v":{"$error":"#REF!"}}]
["B/G/650 300","ARCHITECTURAL WORKS",null,null,null,null,null,null,null,null,null,null,null,1063119.5335277,null,null,{"$f":"SUM(#REF!)","v":{"$error":"#REF!"}}]
["B/G/650 301","MASONARY WORK  ",null,null,null,null,null,null,null,null,null,null,null,null,null,null,714285.71]
[null,"supplying & constructing and installing)brick walls solid cemented  25cm thick.;  the brick dimensions are 250*120*60 mm, the clause includes all lintels; scaffolding; dowels and wire mesh which connect brick with the concrete items before starting plaster works, the mortar contents is 350 kg of ordinary Portland cement for each cubic meter of sand, as per drawings & specs, and all necessary to finish works as per the technical industrial assets,  the rate include lentel required.                                  ",null,"LS",null,0.3,null,214285.71299999999,null,null,null,null,{"$f":"L240+J240","v":0},{"$f":"M240*H240","v":0},0.3,null,null,null,214285.71299999999,null,214285.71299999999]
["B/G/650 302","PLASTERING WORKS"]
[null," providing (supplying & plastering) for the cement mortar for walls, is including leveling; scaffolding; all necessary tools;   the cement content in the mortar not less than 350 kg  Ordinary Portland Cement for each cubic meter of sand, as per drawings & specs, and all necessary to finish works as per the technical industrial assets. .  ",null,"LS",null,0.15,null,107142.85649999999,null,null,null,null,{"$f":"L242+J242","v":0},{"$f":"M242*H242","v":0},0.15,null,null,null,107142.85649999999,null,107142.85649999999]
["B/G/650 303","PAINTING WORKS"]
[null,"providing (supplying & paint) emulsion plastic washable paint for internal walls   is including three putty coats; one fin mastic flat coat, and two final  coat, the clause included all necessary tools and steel scaffolding as per drawings & specs, and all necessary to finish works as per the technical industrial assets, and  the approved color samples.  ",null,"LS",null,0.1,null,71428.570999999996,null,null,null,null,{"$f":"L244+J244","v":0},{"$f":"M244*H244","v":0},0.1,null,null,null,71428.570999999996,null,71428.570999999996]
["B/G/650 304","FLOORINNG WORKS"]
[null," Delivery and installation all the types of floorinng  including all required and specs ",null,"LS",null,0.1,null,71428.570999999996,null,null,null,null,{"$f":"L246+J246","v":0},{"$f":"M246*H246","v":0},0.1,null,null,null,71428.570999999996,null,71428.570999999996]
["B/G/650 305","ROOFING SYSTEM "]
[null,"Protection layer for roofing including all requirement and accessories    (As Specified)",null,"LS",null,0.13,null,92857.142299999992,null,null,null,null,{"$f":"L248+J248","v":0},{"$f":"M248*H248","v":0},0.13,null,null,null,92857.142299999992,null,92857.142299999992]
["B/G/650 306","ROLLING SHUTTER DOOR  "]
[null,"Delivery and erection of approved according to specs.",null,"LS",null,0.16,null,114285.7136,null,null,null,null,{"$f":"L250+J250","v":0},{"$f":"M250*H250","v":0},0.16,null,null,null,114285.7136,null,114285.7136]
["B/G/650 307","DOORS"]
[null,"Delivery and erection of approved color  aluminum doors.",null,"LS",null,0.03,null,21428.5713,null,null,null,null,{"$f":"L252+J252","v":0},{"$f":"M252*H252","v":0},0.03,null,null,null,21428.5713,null,21428.5713]
["B/G/650 308","WINDOWS "]
[null,"Delivery and erection of approved color  aluminum windows.",null,"LS",null,0.03,null,21428.5713,null,null,null,null,{"$f":"L254+J254","v":0},{"$f":"M254*H254","v":0},0.03,null,null,null,21428.5713,null,21428.5713]
["B/G/650 300","Total",null,null,null,{"$f":"SUM(F240:F254)","v":1},null,null,null,null,null,null,{"$f":"SUM(M240:M254)","v":0},{"$f":"SUM(N240:N254)","v":0},null,null,{"$f":"SUM(#REF!)","v":{"$error":"#REF!"}}]
["B/G/650 400","ELECTRICAL WORK",null,null,null,null,null,null,null,null,null,null,null,93804.664723032096,null,null,{"$f":"SUM(#REF!)","v":{"$error":"#REF!"}}]
["B/G/630 401"," SUPPLY"]
[null,"supplying  all necessary elecreical  parts to compleat the work according to specs ",null,null,null,0.25,null,16581.6325,null,null,null,null,{"$f":"L258+J258","v":0},{"$f":"M258*H258","v":0},0.25,null,66326.53,null,16581.6325,null,16581.6325]
["B/G/630 402","FIXTUERES"]
[null,"locate and fix all the electrical items according to drawings and specs ",null,"LS",null,0.65,null,43112.244500000001,null,null,null,null,{"$f":"L260+J260","v":0},{"$f":"M260*H260","v":0},0.65,null,null,null,43112.244500000001,null,43112.244500000001]
["B/G/630 403","TEST "]
[null,"all the necessary tests to handling the electrical work according to specs and industry assets.",null,"LS",null,0.1,null,6632.6530000000002,null,null,null,null,{"$f":"L262+J262","v":0},{"$f":"M262*H262","v":0},0.1,null,null,null,6632.6530000000002,null,6632.6530000000002]
["B/G/650 400","Total",null,null,null,{"$f":"SUM(F258:F262)","v":1},null,null,null,null,null,null,{"$f":"SUM(M258:M262)","v":0},{"$f":"SUM(N258:N262)","v":0},null,null,{"$f":"SUM(#REF!)","v":{"$error":"#REF!"}}]
["B/G/650 500","PLUMBING WORK",null,null,null,null,null,null,null,null,null,null,null,56851.311953352801,null,null,{"$f":"SUM(#REF!)","v":{"$error":"#REF!"}}]
["B/G/630 501","SUPPLY AND INSTALL",null,null,null,null,null,null,null,null,null,null,null,null,null,null,92322.64]
[null,"Supplying and installing  all necessary embedded items and connections according to specs and drawings",null,"LS",null,0.7,null,64625.847999999998,null,null,null,null,{"$f":"L266+J266","v":0},{"$f":"M266*H266","v":0},0.7,null,null,null,64625.847999999998,null,64625.847999999998]
["B/G/630 502","TEST"]
[null,"all the necessary tests to handling the plumbing system according to specs and industry assets.",null,"LS",null,0.3,null,27696.791999999998,null,null,null,null,{"$f":"L268+J268","v":0},{"$f":"M268*H268","v":0},0.3,null,null,null,27696.791999999998,null,27696.791999999998]
["B/G/650 500","Total",null,null,null,{"$f":"SUM(F266:F268)","v":1},null,null,null,null,null,null,{"$f":"SUM(M266:M268)","v":0},{"$f":"SUM(N266:N268)","v":0},null,null,{"$f":"SUM(#REF!)","v":{"$error":"#REF!"}}]
["B/G/650 600","AIR CONDITION SYSTEM VENTILATION SYSTEM",null,null,null,null,null,null,null,null,null,null,null,277939.747327502,null,null,{"$f":"SUM(#REF!)","v":{"$error":"#REF!"}}]
["B/G/650 601"," SUPPLY AND INSTALL",null,null,null,null,null,null,null,null,null,null,null,null,null,null,94071.91]
[null,"supplying  all necessary air condition and ventilation parts according to specs and drawings ",null,null,null,0.6,null,56443.146000000001,null,null,null,null,{"$f":"L272+J272","v":0},{"$f":"M272*H272","v":0},0.6,null,null,null,56443.146000000001,null,56443.146000000001]
["B/G/650 602","FIXTUERES"]
[null,"locate and fix all air condition and ventilation parts according to drawings and specs ",null,"LS",null,0.2,null,18814.382000000001,null,null,null,null,{"$f":"L274+J274","v":0},{"$f":"M274*H274","v":0},0.2,null,null,null,18814.382000000001,null,18814.382000000001]
["B/G/650 603","TEST "]
[null,"all the necessary tests to handling the AIR CONDITION SYSTEM and VENTILATION SYSTEM according to specs and industry assets.",null,"LS",null,0.2,null,18814.382000000001,null,null,null,null,{"$f":"L276+J276","v":0},{"$f":"M276*H276","v":0},0.2,null,null,null,18814.382000000001,null,18814.382000000001]
["B/G/650 600","Total",null,null,null,{"$f":"SUM(F272:F276)","v":1},null,null,null,null,null,null,{"$f":"SUM(M272:M276)","v":0},{"$f":"SUM(N272:N276)","v":0},null,null,{"$f":"SUM(#REF!)","v":{"$error":"#REF!"}}]
["B/G/650 700","FIRE DETECTION",null,null,null,null,null,null,null,null,null,null,null,25267.249757045702,null,null,{"$f":"SUM(#REF!)","v":{"$error":"#REF!"}}]
["B/G/650 701","SUPPLY AND ERECT",null,null,null,null,null,null,null,null,null,null,null,null,null,null,37414.97]
[null,"Supplying and erecting  all necessary fire detection system parts and connections according to specs and drawings",null,"LS",null,0.7,null,26190.478999999999,null,null,null,null,{"$f":"L280+J280","v":0},{"$f":"M280*H280","v":0},0.7,null,null,null,26190.478999999999,null,26190.478999999999]
["B/G/650 702","TEST"]
[null,"all the necessary tests to handling the fire detection system according to specs and industry assets.",null,"LS",null,0.3,null,11224.491,null,null,null,null,{"$f":"L282+J282","v":0},{"$f":"M282*H282","v":0},0.3,null,null,null,11224.491,null,11224.491]
["B/G/650 700","Total",null,null,null,{"$f":"SUM(F280:F282)","v":1},null,null,null,null,null,null,{"$f":"SUM(M280:M282)","v":0},{"$f":"SUM(N280:N282)","v":0},null,null,{"$f":"SUM(#REF!)","v":{"$error":"#REF!"}}]
["B/G/650 800","Basement under  11 kv ",null,null,null,null,null,null,null,null,null,null,null,66326.530612244896,null,null,{"$f":"SUM(#REF!)","v":{"$error":"#REF!"}}]
["B/G/650 801","EXCAVATION"]
[null,"Excavation including Excavated material Transfer  (As Specified)",null,null,null,0.01]
["B/G/650 802","SOIL REPLACEMENT"]
[null,"Supply and apply , SOIL REPLACEMENT According to the approved sieve analysis according to drawings &specs , the rate include leveling , water , compaction and compaction test to be compacted with relative compaction 98%.",null,null,null,0.28999999999999998]
["B/G/650 803","PLAIN CONCRETE "]
[null,"Supply and provide ready mix plain concrete grade 250 KG/m³, the clause includes form work, adding additives, pouring and curing, to be separated from soil  by 250 micron polyethylene proofing sheet, and that concrete should be finished as per specs and industry assets. "]
["B/G/650 804","REINFORCEMENT CONCRETE FOR FOOTINGS "]
[null,"Reinforced concrete for foundation and semelle with specified strength  including all required joints  and testing (As Specified)   (Cement content not less than 350 Kg/m³)"]
["B/G/650 805","INSULATION"]
[null,"providing (supplying & painting) three coats of bituminous emulsion above concrete surface which in contact with soil as per drawings & specs. ( Up to zero level )"]
["B/G/650 806","COLUMNS UP TO FOUNDATION & WALL"]
[null,"Reinforced concrete for columns and beams with specified strength  including all required  testing (As Specified)   (Cement content not less than 350 Kg/m³) "]
["B/G/650 807","Backfeling"]
[null,"backfilling by approved fill material selected from excavation ,including compaction , the rate include compaction test  according to specs.","M3"]
["B/G/650 808","SLAB ON GRADE"]
[null,"applying all the reqaired layes of slap on grade according to drawings and specs."]
["B/G/650 809","SLAB AT +1.15 & finshing",null,null,null,null,null,null,null,null,null,null,null,null,null,null,365403.3]
[null,"Reinforced concrete for roof slab and beams with specified strength  including faire faceand all required  testing (As Specified) (Cement content not less than 350 Kg/m³) ",null,"LS",null,0.7,null,255782.30999999997,null,null,null,null,{"$f":"L302+J302","v":0},{"$f":"M302*H302","v":0},0.7,null,null,null,255782.30999999997,null,255782.30999999997]
[]
["B/G/650 800","Total",null,null,null,{"$f":"SUM(F286:F303)","v":1},null,null,null,null,null,null,{"$f":"SUM(M302:M303)","v":0},{"$f":"SUM(N302:N303)","v":0},null,null,{"$f":"SUM(#REF!)","v":{"$error":"#REF!"}}]
[]
["B/G/700 000","Site works (Lump sum prices of items Nos. 700100 through 701 500).",null,null,null,null,null,null,null,null,null,null,null,8800567.5500000007,null,null,{"$f":"SUM(#REF!)","v":{"$error":"#REF!"}}]
["B/G/700 100","ROADS"]
["B/G/700 110","MAIN ROADS",null,null,null,null,null,null,null,null,null,null,null,660978.620019436,null,null,476190.48]
["B/G/700 111","EXCAVATION AND SOIL REPLACEMENT"]
[null,"Excavation including Excavated material Transfer  (As Specified),Supply and apply , SOIL REPLACEMENT According to the approved sieve analysis according to drawings &specs",null,"LS",null,0.1,null,47619.048000000003,null,null,null,null,{"$f":"L310+J310","v":0},{"$f":"M310*H310","v":0},0.1,null,null,null,47619.048000000003,null,47619.048000000003]
["B/G/700 112","SUBBASE LAYERS"]
[null,"Supply and apply , SUBBASE LAYERS According to the approved sieve analysis according to drawings &specs , the rate include leveling , water , compaction and compaction test to be compacted with relative compaction 98%.",null,"LS",null,0.35,null,166666.66799999998,null,null,null,null,{"$f":"L312+J312","v":0},{"$f":"M312*H312","v":0},0.35,null,null,null,166666.66799999998,null,166666.66799999998]
["B/G/700 113"," CONCRETE "]
[null,"Supply and provide ready mix concrete according to  specs and industry assets. ",null,"LS",null,0.45,null,214285.71599999999,null,null,null,null,{"$f":"L314+J314","v":0},{"$f":"M314*H314","v":0},0.45,null,null,null,214285.71599999999,null,214285.71599999999]
["B/G/700 114","CARBE STONE "]
[null,"supply and apply carbe stone according to specs and industry assets.",null,"LS",null,0.1,null,47619.048000000003,null,null,null,null,{"$f":"L316+J316","v":0},{"$f":"M316*H316","v":0},0.1,null,null,null,47619.048000000003,null,47619.048000000003]
["B/G/700 110","Total",null,null,null,{"$f":"SUM(F310:F316)","v":0.99999999999999989},null,null,null,null,null,null,{"$f":"SUM(M310:M316)","v":0},{"$f":"SUM(N310:N316)","v":0}]
["B/G/700 120","SECONDARY ROADS",null,null,null,null,null,null,null,null,null,null,null,249057.33722060299,null,null,476190.48]
["B/G/700 121","EXCAVATION AND SOIL REPLACEMENT"]
[null,"Excavation including Excavated material Transfer  (As Specified),Supply and apply , SOIL REPLACEMENT According to the approved sieve analysis according to drawings &specs",null,"LS",null,0.1,null,47619.048000000003,null,null,null,null,{"$f":"L320+J320","v":0},{"$f":"M320*H320","v":0},0.1,null,null,null,47619.048000000003,null,47619.048000000003]
["B/G/700 122","SUBBASE LAYERS"]
[null,"Supply and apply , SUBBASE LAYERS According to the approved sieve analysis according to drawings &specs , the rate include leveling , water , compaction and compaction test to be compacted with relative compaction 98%.",null,"LS",null,0.35,null,166666.66799999998,null,null,null,null,{"$f":"L322+J322","v":0},{"$f":"M322*H322","v":0},0.35,null,null,null,166666.66799999998,null,166666.66799999998]
["B/G/700 123"," CONCRETE "]
[null,"Supply and provide ready mix concrete according to  specs and industry assets. ",null,"LS",null,0.45,null,214285.71599999999,null,null,null,null,{"$f":"L324+J324","v":0},{"$f":"M324*H324","v":0},0.45,null,null,null,214285.71599999999,null,214285.71599999999]
["B/G/700 124","CARBE STONE "]
[null,"supply and apply carbe stone according to specs and industry assets.",null,"LS",null,0.1,null,47619.048000000003,null,null,null,null,{"$f":"L326+J326","v":0},{"$f":"M326*H326","v":0},0.1,null,null,null,47619.048000000003,null,47619.048000000003]
["B/G/700 120","Total",null,null,null,{"$f":"SUM(F320:F326)","v":0.99999999999999989},null,null,null,null,null,null,{"$f":"SUM(M320:M326)","v":0},{"$f":"SUM(N320:N326)","v":0},null,null,476190.48]
["B/G/700 200","R.C CABLE TRENCHES AND DUCTS (OUT DOOR)",null,null,null,null,null,null,null,null,null,null,null,1997344.02332362,null,null,{"$f":"SUM(#REF!)","v":{"$error":"#REF!"}}]
["B/G/700 201","EXCAVATION AND SOIL REPLACEMENT",null,null,null,null,null,null,null,null,null,null,null,null,null,null,405102.04]
[null,"Excavation including Excavated material Transfer  (As Specified),Supply and apply , SOIL REPLACEMENT According to the approved sieve analysis according to drawings &specs",null,"LS",null,0.08,null,32408.163199999999,null,null,null,null,{"$f":"L330+J330","v":0},{"$f":"M330*H330","v":0},0.08,null,null,null,32408.163199999999,null,32408.163199999999]
["B/G/700 202","PLAIN CONCRETE "]
[null,"Supply and provide ready mix plain concrete grade 250 KG/m³, the clause includes form work, adding additives, pouring and curing,, and that concrete should be finished as per specs and industry assets. ",null,"LS",null,0.15,null,60765.305999999997,null,null,null,null,{"$f":"L332+J332","v":0},{"$f":"M332*H332","v":0},0.15,null,null,null,60765.305999999997,null,60765.305999999997]
["B/G/700 203","REINFORCEMENT CONCRETE"]
[null,"Reinforced concrete for raft and walls with specified strength  including all required  and testing (As Specified)   (Cement content not less than 350 Kg/m³)",null,"LS",null,0.45,null,182295.91800000001,null,null,null,null,{"$f":"L334+J334","v":0},{"$f":"M334*H334","v":0},0.45,null,null,null,182295.91800000001,null,182295.91800000001]
["B/G/700 204","CHEQUERED PLATE COVER "]
[null,"Delivery and erection of  chequered plate cover including painting  & all installation and handling  requirement (As Specified)",null,"LS",null,0.15,null,60765.305999999997,null,null,null,null,{"$f":"L336+J336","v":0},{"$f":"M336*H336","v":0},0.15,null,null,null,60765.305999999997,null,60765.305999999997]
["B/G/700 205","DUCTE"]
[null,"making all the necessary ducte according to drawings and spics.",null,"LS",null,0.17,null,68867.346799999999,null,null,null,null,{"$f":"L338+J338","v":0},{"$f":"M338*H338","v":0},0.17,null,null,null,68867.346799999999,null,68867.346799999999]
["B/G/700 200","Total",null,null,null,{"$f":"SUM(F330:F338)","v":1},null,null,null,null,null,null,{"$f":"SUM(M330:M338)","v":0},{"$f":"SUM(N330:N338)","v":0},null,null,{"$f":"SUM(#REF!)","v":{"$error":"#REF!"}}]
["B/G/700 300","WIRE MESH FENCE",null,null,null,null,null,null,null,null,null,null,null,205651.11758989299,null,null,{"$f":"SUM(#REF!)","v":{"$error":"#REF!"}}]
["B/G/700 301","FOOTING",null,null,null,null,null,null,null,null,null,null,null,null,null,null,92711.37]
[null,"form footings and puring  ready mix concrete according to  specs and industry assets.",null,"LS",null,0.2,null,18542.274000000001,null,null,null,null,{"$f":"L342+J342","v":0},{"$f":"M342*H342","v":0},0.2,null,null,null,18742.274000000001,null,18542.274000000001]
["B/G/700 302","Panels"]
[null,"Supply  panels according to specs. ",null,"LS",null,0.6,null,55626.821999999993,null,null,null,null,{"$f":"L344+J344","v":0},{"$f":"M344*H344","v":0},0.6,null,null,null,56226.821999999993,null,55626.821999999993]
["B/G/700 303","ERACTING"]
[null,"locate and eract all the panels according to drawings and specs ",null,"LS",null,0.2,null,18542.274000000001,null,null,null,null,{"$f":"L346+J346","v":0},{"$f":"M346*H346","v":0},0.2,null,null,null,18742.274000000001,null,18542.274000000001]
["B/G/700 300","Total",null,null,null,{"$f":"SUM(F342:F346)","v":1},null,null,null,null,null,null,{"$f":"SUM(M342:M346)","v":0},{"$f":"SUM(N342:N346)","v":0},null,null,{"$f":"SUM(#REF!)","v":{"$error":"#REF!"}}]
["B/G/700 400","TWO FIRE FIGHTING BUILDING AND RC FOUNDATIONS FORF.F TANK",null,null,null,null,null,null,null,null,null,null,null,330903.79008746397,null,null,{"$f":"SUM(#REF!)","v":{"$error":"#REF!"}}]
["B/G/700 401","EXCAVATION ",null,null,null,null,null,null,null,null,null,null,null,null,null,null,331122.45]
[null,"Excavation including Excavated material Transfer  (As Specified)",null,"LS",null,0.06,null,19867.347000000002,null,null,null,null,{"$f":"L350+J350","v":0},{"$f":"M350*H350","v":0},0.06,null,null,null,19867.347000000002,null,19867.347000000002]
["B/G/700 402","SOIL  REPLACEMENT"]
[null,"Supply and apply , SOIL REPLACEMENT According to the approved sieve analysis according to drawings &specs , the rate include leveling , water , compaction and compaction test to be compacted with relative compaction 98%.",null,"LS",null,0.08,null,26489.796000000002,null,null,null,null,{"$f":"L352+J352","v":0},{"$f":"M352*H352","v":0},0.08,null,null,null,26489.796000000002,null,26489.796000000002]
["B/G/700 403","REINFORCEMENT CONCRETE FOR FOOTINGS AND F.F TANK "]
[null,"Reinforced concrete for foundation, semelle and Tank with specified strength  including all required joints  and testing (As Specified)   (Cement content not less than 350 Kg/m³)",null,"LS",null,0.4,null,132448.98000000001,null,null,null,null,{"$f":"L354+J354","v":0},{"$f":"M354*H354","v":0},0.4,null,null,null,132448.98000000001,null,132448.98000000001]
["B/G/700 404","REINFORCEMENT CONCRETE FOR COLUMNS, BEAMS AND ROOF"]
[null,"Reinforced concrete for columns, beams and roof with specified strength  including all required  testing (As Specified)   (Cement content not less than 350 Kg/m³) ",null,"LS",null,0.3,null,99336.735000000001,null,null,null,null,{"$f":"L356+J356","v":0},{"$f":"M356*H356","v":0},0.3,null,null,null,99336.735000000001,null,99336.735000000001]
["B/G/700 405","MASONARY WORK  "]
[null,"supplying & constructing and installing)brick walls solid cemented  25cm thick.;  the brick dimensions are 250*120*60 mm, the clause includes all lintels; scaffolding; dowels and wire mesh which connect brick with the concrete items before starting plaster works, the mortar contents is 350 kg of ordinary Portland cement for each cubic meter of sand, as per drawings & specs, and all necessary to finish works as per the technical industrial assets,  the rate include lentel required.                                  ",null,"LS",null,0.16,null,52979.592000000004,null,null,null,null,{"$f":"L358+J358","v":0},{"$f":"M358*H358","v":0},0.16,null,{"$f":"SUM(S350:S358)","v":331122.45},null,52979.592000000004,null,52979.592000000004]
["B/G/700 400","Total",null,null,null,{"$f":"SUM(F350:F358)","v":1},null,null,null,null,null,null,{"$f":"SUM(M350:M358)","v":0},{"$f":"SUM(N350:N358)","v":0},null,null,{"$f":"SUM(#REF!)","v":{"$error":"#REF!"}}]
["B/G 700 500","WATER  SUPPLY SYSTEM ",null,null,null,null,null,null,null,null,null,null,null,189504.37317784299]
["B/G/700 501","SUPPLY AND ERECT"]
[null,"Supplying and erecting  all necessary water system parts and connections according to specs and drawings"]
["B/G/700 502","TEST"]
[null,"all the necessary tests to handling the water system according to specs and industry assets."]
[]
["B/G 700 510","UNDER GROUND WATER TANK & Pump Room"]
["B/G/700 511","EXCAVATION AND SOIL REPLACEMENT"]
[null,"Excavation including Excavated material Transfer  (As Specified),Supply and apply , SOIL REPLACEMENT According to the approved sieve analysis according to drawings &specs"]
["B/G/700 512","PLAIN CONCRETE "]
[null,"Supply and provide ready mix plain concrete grade 250 KG/m³, the clause includes form work, adding additives, pouring and curing,, and that concrete should be finished as per specs and industry assets. "]
["B/G/700 513","REINFORCEMENT CONCRETE FOR TANK ",null,null,null,null,null,null,null,null,null,null,null,82118.561710398499]
[null,"Reinforced concrete for foundation, semelle and Tank with specified strength  including all required joints  and testing (As Specified)   (Cement content not less than 350 Kg/m³)"]
["B/G/700 514","ISOLATION"]
[null,"providing (supplying & painting) three coats of bituminous emulsion above concrete surface which in contact with soil as per drawings & specs. ( Up to zero level )"]
["B/G/700 515","FINISHING"]
[]
[]
["B/G/700 500","Total",null,null,null,{"$f":"SUM(F361:F377)","v":0},null,null,null,null,null,null,{"$f":"SUM(M369:M377)","v":0},{"$f":"SUM(N369:N377)","v":82118.561710398499}]
["B/G 700 600","SEWERAGE SYSTEM"]
[]
["B/G 700 601","SUPPLY AND ERECT"]
[null,"Supplying and erecting  all necessary sewerage system parts and connections according to specs and drawings"]
["B/G 700 602","TEST"]
[null,"all the necessary tests to handling the water system according to specs and industry assets."]
["B/G 700 603","MANHOLES"]
[]
["B/G 700 610","SEPTIC TANK FIL TERATION TANK COLLECTING TANK"]
["B/G 700 610","EXCAVATION AND SOIL REPLACEMENT"]
[null,"Excavation including Excavated material Transfer  (As Specified),Supply and apply , SOIL REPLACEMENT According to the approved sieve analysis according to drawings &specs"]
["B/G 700 611","PLAIN CONCRETE "]
[null,"Supply and provide ready mix plain concrete grade 250 KG/m³, the clause includes form work, adding additives, pouring and curing,, and that concrete should be finished as per specs and industry assets. "]
["B/G 700 612","REINFORCEMENT CONCRETE FOR TANK ",null,null,null,null,null,null,null,null,null,null,null,82118.561710398499]
[null,"Reinforced concrete for foundation, semelle and Tank with specified strength  including all required joints  and testing (As Specified)   (Cement content not less than 350 Kg/m³)"]
["B/G 700 613","ISOLATION"]
[null,"providing (supplying & painting) three coats of bituminous emulsion above concrete surface which in contact with soil as per drawings & specs. ( Up to zero level )"]
["B/G 700 614","FINISHING"]
[]
[]
["B/G/700 600","Total",null,null,null,{"$f":"SUM(F382:F398)","v":0},null,null,null,null,null,null,{"$f":"SUM(M390:M398)","v":0},{"$f":"SUM(N390:N398)","v":82118.561710398499}]
["B/G/700 700","TRANSFORMER FONDATION FOR (3 X 125)",null,null,null,null,null,null,null,null,null,null,null,1407069.97084548,null,null,956632.65]
["B/G/700 701","EXCAVATION "]
[null,"Excavation including Excavated material Transfer  (As Specified)",null,"LS",null,0.15,null,143494.89749999999,null,null,null,null,{"$f":"L402+J402","v":0},{"$f":"M402*H402","v":0},0.15,null,null,{"$f":"O402*Q400","v":143494.89749999999},null,null,143494.89749999999]
["B/G/700 702","SOIL  REPLACEMENT"]
[null,"Supply and apply , SOIL REPLACEMENT According to the approved sieve analysis according to drawings &specs , the rate include leveling , water , compaction and compaction test to be compacted with relative compaction 98%.",null,"LS",null,0.1,null,95663.265000000014,null,null,null,null,{"$f":"L404+J404","v":0},{"$f":"M404*H404","v":0},0.1,null,null,{"$f":"O404*Q400","v":95663.265000000014},null,null,95663.265000000014]
["B/G/700 703","Backfeling"]
[null,"backfilling by approved fill material selected from excavation ,including compaction , the rate include compaction test  according to specs.","M3","LS",null,0.1,null,95663.265000000014,null,null,null,null,{"$f":"L406+J406","v":0},{"$f":"M406*H406","v":0},0.1,null,null,{"$f":"O406*Q400","v":95663.265000000014},null,null,95663.265000000014]
["B/G/700 704","PLAIN CONCRETE "]
[null,"Supply and provide ready mix plain concrete grade 250 KG/m³, the clause includes form work, adding additives, pouring and curing, to be separated from soil  by 250 micron polyethylene proofing sheet, and that concrete should be finished as per specs and industry assets. ",null,"LS",null,0.25,null,239158.16250000001,null,null,null,null,{"$f":"L408+J408","v":0},{"$f":"M408*H408","v":0},0.25,null,null,{"$f":"O408*Q400","v":239158.16250000001},null,null,239158.16250000001]
["B/G/700 705","REINFORCEMENT CONCRETE FOR FOOTINGS "]
[null,"Reinforced concrete  with specified strength  including all required joints  and testing (As Specified)   (Cement content not less than 350 Kg/m³)",null,"LS",null,0.35,null,334821.42749999999,null,null,null,null,{"$f":"L410+J410","v":0},{"$f":"M410*H410","v":0},0.35,null,{"$f":"SUM(O402:O412)","v":1},{"$f":"O410*Q400","v":334821.42749999999},null,null,334821.42749999999]
["B/G/700 706","INSULLATION "]
[null,"providing (supplying & painting) three coats of bituminous emulsion above concrete surface which in contact with soil as per drawings & specs. ( Up to zero level )",null,"LS",null,0.05,null,47831.632500000007,null,null,null,null,{"$f":"L412+J412","v":0},{"$f":"M412*H412","v":0},0.05,null,{"$f":"SUM(R401:R412)","v":956632.64999999991},{"$f":"O412*Q400","v":47831.632500000007},null,null,47831.632500000007]
[null,"OIL PITS"]
[null,"DESIGN WORKS"]
[null,"EXCAVATION"]
[null,"Excavation including Excavated material Transfer  (As Specified)"]
[null,"PLEAN CONCREATE"]
[]
[null,"REINFORCED CONCRETE"]
[]
[null,"INSULATION"]
[]
[null,"BACK FILLING"]
[null,"backfilling by approved fill material selected from excavation ,including compaction , the rate include compaction test  according to specs."]
[null,"PLASTRING"]
[]
["B/G/700 700","Total",null,null,null,{"$f":"SUM(F402:F412)","v":1},null,null,null,null,null,null,{"$f":"SUM(M402:M412)","v":0},{"$f":"SUM(N402:N412)","v":0},null,null,956632.65]
["B/G/700 800","TRANSFORMER FONDATION FOR (2 X 40)",null,null,null,null,null,null,null,null,null,null,null,500291.54518950399,null,null,956632.65]
["B/G/700 801","EXCAVATION "]
[null,"Excavation including Excavated material Transfer  (As Specified)",null,"LS",null,0.15,null,143494.89749999999,null,null,null,null,{"$f":"L430+J430","v":0},{"$f":"M430*H430","v":0},0.15,null,null,{"$f":"O430*Q428","v":143494.89749999999},null,null,143494.89749999999]
["B/G/700 802","SOIL  REPLACEMENT"]
[null,"Supply and apply , SOIL REPLACEMENT According to the approved sieve analysis according to drawings &specs , the rate include leveling , water , compaction and compaction test to be compacted with relative compaction 98%.",null,"LS",null,0.1,null,95663.265000000014,null,null,null,null,{"$f":"L432+J432","v":0},{"$f":"M432*H432","v":0},0.1,null,null,{"$f":"O432*Q428","v":95663.265000000014},null,null,95663.265000000014]
["B/G/700 803","Backfeling"]
[null,"backfilling by approved fill material selected from excavation ,including compaction , the rate include compaction test  according to specs.","M3","LS",null,0.1,null,95663.265000000014,null,null,null,null,{"$f":"L434+J434","v":0},{"$f":"M434*H434","v":0},0.1,null,null,{"$f":"O434*Q428","v":95663.265000000014},null,null,95663.265000000014]
["B/G/700 804","PLAIN CONCRETE "]
[null,"Supply and provide ready mix plain concrete grade 250 KG/m³, the clause includes form work, adding additives, pouring and curing, to be separated from soil  by 250 micron polyethylene proofing sheet, and that concrete should be finished as per specs and industry assets. ",null,"LS",null,0.25,null,239158.16250000001,null,null,null,null,{"$f":"L436+J436","v":0},{"$f":"M436*H436","v":0},0.25,null,null,{"$f":"O436*Q428","v":239158.16250000001},null,null,239158.16250000001]
["B/G/700 805","REINFORCEMENT CONCRETE FOR FOOTINGS "]
[null,"Reinforced concrete  with specified strength  including all required joints  and testing (As Specified)   (Cement content not less than 350 Kg/m³)",null,"LS",null,0.35,null,334821.42749999999,null,null,null,null,{"$f":"L438+J438","v":0},{"$f":"M438*H438","v":0},0.35,null,{"$f":"SUM(O430:O440)","v":1},{"$f":"O438*Q428","v":334821.42749999999},null,null,334821.42749999999]
["B/G/700 806","INSULLATION "]
[null,"providing (supplying & painting) three coats of bituminous emulsion above concrete surface which in contact with soil as per drawings & specs. ( Up to zero level )",null,"LS",null,0.05,null,47831.632500000007,null,null,null,null,{"$f":"L440+J440","v":0},{"$f":"M440*H440","v":0},0.05,null,{"$f":"SUM(R429:R440)","v":956632.64999999991},{"$f":"O440*Q428","v":47831.632500000007},null,null,47831.632500000007]
["B/G/700 800","Total",null,null,null,{"$f":"SUM(F430:F440)","v":1},null,null,null,null,null,null,{"$f":"SUM(M430:M440)","v":0},{"$f":"SUM(N430:N440)","v":0},null,null,956632.65]
[null,"OIL PITS"]
[null,"DESIGN WORKS"]
[null,"EXCAVATION"]
[null,"Excavation including Excavated material Transfer  (As Specified)"]
[null,"PLEAN CONCREATE"]
[]
[null,"REINFORCED CONCRETE"]
[]
[null,"INSULATION"]
[]
[null,"BACK FILLING"]
[null,"backfilling by approved fill material selected from excavation ,including compaction , the rate include compaction test  according to specs."]
[null,"PLASTRING"]
[]
[]
[]
[]
[]
[]
["B/G/700 900","OUTDOOR LIGHTING SYSTEM",null,null,null,null,null,null,null,null,null,null,null,218658.89212827999,null,null,109669.58]
["B/G/700 901","SUPPLYING"]
[null,"supplying all the necessary lighting and accessories of outdoor lighting system according to  specs and industry assets.",null,"LS",null,0.6,null,65801.747999999992,null,null,null,null,{"$f":"L463+J463","v":0},{"$f":"M463*H463","v":0},0.6,null,null,{"$f":"O463*Q461","v":65801.747999999992},null,null,65801.747999999992]
["B/G/700 902","ERACTING AND TESTING "]
[null,"locate and erect all the necessary lighting and accessories of outdoor lighting system according to  specs and industry assets,incloding all the tests that needed.",null,"LS",null,0.4,null,43867.832000000002,null,null,null,null,{"$f":"L465+J465","v":0},{"$f":"M465*H465","v":0},0.4,null,{"$f":"SUM(R463:R465)","v":109669.57999999999},{"$f":"O465*Q461","v":43867.832000000002},null,null,43867.832000000002]
["B/G/700 900","Total",null,null,null,{"$f":"SUM(F463:F465)","v":1},null,null,null,null,null,null,{"$f":"SUM(M463:M465)","v":0},{"$f":"SUM(N463:N465)","v":0},null,null,109669.58]
["B/G 701 000","BACKFILLING TO ZERO LEVEL",null,null,null,null,null,null,null,null,null,null,null,626822.15743440203]
["B/G 701 001","BACKFILLING "]
["`"," backfilling by approved fill material selected to Zero level ,including compaction , the rate include compaction test  according to specs."]
["B/G/700 000","Total",null,null,null,{"$f":"SUM(F468:F469)","v":0},null,null,null,null,null,null,{"$f":"SUM(M467:M469)","v":0},{"$f":"SUM(N467:N469)","v":626822.15743440203},null,null,109669.58]
["B/G/701 100","FIRE HYDRANTS",null,null,null,null,null,null,null,null,null,null,null,315840.621963071]
["B/G/701 101","SUPPLYING",null,null,null,null,null,null,null,null,null,null,null,null,null,null,183673.47]
[null,"supplying all the necessary pipes and accessories according to  specs and industry assets.",null,"LS",null,0.6,null,110204.08199999999,null,null,null,null,{"$f":"L473+J473","v":0},{"$f":"M473*H473","v":0},0.6,null,null,null,110204.08199999999,null,110204.08199999999]
["B/G/701 102","ERACTING AND TESTING "]
[null,"locate and erect all the items according to drawings and specs incloding all the tests that needed ",null,"LS",null,0.3,null,55102.040999999997,null,null,null,null,{"$f":"L475+J475","v":0},{"$f":"M475*H475","v":0},0.3,null,null,null,55102.040999999997,null,55102.040999999997]
["B/G/701 103","SUPPORTS "]
[null,"provide the pipes with all the supports that needed ",null,"LS",null,0.1,null,18367.347000000002,null,null,null,null,{"$f":"L477+J477","v":0},{"$f":"M477*H477","v":0},0.1,null,null,null,18367.347000000002,null,18367.347000000002]
["B/G/701 100","Total",null,null,null,{"$f":"SUM(F473:F477)","v":0.99999999999999989},null,null,null,null,null,null,{"$f":"SUM(M473:M477)","v":0},{"$f":"SUM(N473:N477)","v":0}]
["B/G/701 200","EARTHING ",null,null,null,null,null,null,null,null,null,null,null,1485714.2857142901,null,null,{"$f":"SUM(#REF!)","v":{"$error":"#REF!"}}]
["B/G/701 201","SUPPLYING",null,null,null,null,null,null,null,null,null,null,null,null,null,null,538775.51]
[null,"diliver all the materials that needed to site according to specs.",null,"LS",null,0.6,null,323265.30599999998,null,null,null,null,{"$f":"L481+J481","v":0},{"$f":"M481*H481","v":0},0.6,null,null,null,317265.30599999998,null,323265.30599999998]
["B/G/701 202","ERACTING AND TESTING "]
[null,"ERACTING AND TESTING eracting and testing according to specs and drawings.",null,"LS",null,0.2,null,107755.10200000001,null,null,null,null,{"$f":"L483+J483","v":0},{"$f":"M483*H483","v":0},0.2,null,null,null,105755.10200000001,null,107755.10200000001]
["B/G/701 203","EARTHING PIT"]
[null," apply  earthing pit acording to drawings and specs.",null,"LS",null,0.2,null,107755.10200000001,null,null,null,null,{"$f":"L485+J485","v":0},{"$f":"M485*H485","v":0},0.2,null,null,null,105755.10200000001,null,107755.10200000001]
["B/G/701 200","Total",null,null,null,{"$f":"SUM(F481:F485)","v":1},null,null,null,null,null,null,{"$f":"SUM(M481:M485)","v":0},{"$f":"SUM(N481:N485)","v":0},null,null,{"$f":"SUM(#REF!)","v":{"$error":"#REF!"}}]
["B/G/701 300","ANY OTHER CIVIL WORK ",null,null,null,null,null,null,null,null,null,null,null,252672.497570457,null,null,{"$f":"SUM(#REF!)","v":{"$error":"#REF!"}}]
["B/G/701 301","LEVELING AND BACKFILLING ",null,null,null,null,null,null,null,null,null,null,null,null,null,null,171039.84]
[null,"the area around the bulding have to reach the zero level including the necessary leveling and backfilling",null,"LS",null,0.4,null,68415.936000000002,null,null,null,null,{"$f":"L489+J489","v":0},{"$f":"M489*H489","v":0},0.4,null,null,null,68415.936000000002,null,68415.936000000002]
["B/G/701 302","GRAVEL LAYER "]
[null,"supply and apply a grevel layer according to specs.",null,"LS",null,0.2,null,34207.968000000001,null,null,null,null,{"$f":"L491+J491","v":0},{"$f":"M491*H491","v":0},0.2,null,null,null,34207.968000000001,null,34207.968000000001]
["B/G/701 303","OUT DOOR LIGHTING "]
[null,"supplying and erct all the necessary items and accessories according to  specs and industry assets.",null,"LS",null,0.3,null,51311.951999999997,null,null,null,null,{"$f":"L493+J493","v":0},{"$f":"M493*H493","v":0},0.3,null,null,null,51311.951999999997,null,51311.951999999997]
["B/G/701 304","MOBILIZATION AND DEMOBILIZATION"]
[null,"Per lump sum mobilization which include (but not limited to... )all equipment  at the construction site such as office ,stationary and all necessary items to finish the project until its finshed.",null,"LS",null,0.1,null,17103.984,null,null,null,null,{"$f":"L495+J495","v":0},{"$f":"M495*H495","v":0},0.1,null,null,null,17103.984,null,17103.984]
["B/G/701 300","Total",null,null,null,{"$f":"SUM(F489:F495)","v":1.0000000000000002},null,null,null,null,null,null,{"$f":"SUM(M489:M495)","v":0},{"$f":"SUM(N489:N495)","v":0},null,null,{"$f":"SUM(#REF!)","v":{"$error":"#REF!"}}]
["B/G/701 400","DESIGN",null,null,null,null,null,null,null,null,null,null,null,151603.498542274,null,null,{"$f":"SUM(#REF!)","v":{"$error":"#REF!"}}]
["B/G/701 401","PRIMARY DESIGN ",null,null,null,null,null,null,null,null,null,null,null,null,null,null,153061.22]
[null,"delver all the aproved drawings to owner ",null,"LS",null,0.9,null,137755.098,null,null,null,null,{"$f":"L499+J499","v":0},{"$f":"M499*H499","v":0},0.9,null,null,null,137755.098,null,137755.098]
["B/G/701 402","AS BULT DRAWINGS"]
[null,"delver  aproved as built drawings to owner ",null,"LS",null,0.1,null,15306.122000000001,null,null,null,null,{"$f":"L501+J501","v":0},{"$f":"M501*H501","v":0},0.1,null,null,null,15306.122000000001,null,15306.122000000001]
["B/G/701 400","Total",null,null,null,{"$f":"SUM(F499:F501)","v":1},null,null,null,null,null,null,{"$f":"SUM(M499:M501)","v":0},{"$f":"SUM(N499:N501)","v":0},null,null,{"$f":"SUM(#REF!)","v":{"$error":"#REF!"}}]
["B/G/701 500","DECENNIAL LIABILITY INSURANCE",null,null,null,null,null,null,null,null,null,null,null,126336.248785228,null,null,{"$f":"SUM(#REF!)","v":{"$error":"#REF!"}}]
[null,"DECENNIAL LIABILITY INSURANCE","DECENNIAL LIABILITY INSURANCE","LS",null,1,null,145772.59,null,null,null,null,{"$f":"L504+J504","v":0},{"$f":"M504*H504","v":0},null,null,{"$f":"SUM(#REF!)","v":{"$error":"#REF!"}},null,null,null,145772.59]
["B/G/701 500","Total",null,null,null,{"$f":"SUM(F504)","v":1},null,null,null,null,null,null,{"$f":"SUM(M504)","v":0},{"$f":"SUM(N504)","v":0},null,null,{"$f":"SUM(#REF!)","v":{"$error":"#REF!"}}]
["TOTAL ",null,null,{"$f":"SUM(N7:N505)-(N306)-((N7))","v":19128143.836899921},null,null,null,null,null,null,null,null,null,null,null,null,{"$f":"SUM(#REF!)","v":{"$error":"#REF!"}}]
[null,null,null,null,null,null,null,null,null,null,null,null,null,{"$f":"SUM(N7:N505)-(N306)-((N7))","v":19128143.836899921}]

{"sheet":" civil  (2)","index":3,"n_rows":479,"n_cols":17,"rows_kept":479,"cut":false,"hidden":true,"merged":[[3,1,3,2],[5,1,5,9],[8,1,8,2],[10,1,10,2],[12,1,12,2],[14,1,14,2],[31,1,31,2],[33,1,33,2],[35,1,35,2],[37,1,37,2],[39,1,39,2],[41,1,41,2],[16,1,16,2],[18,1,18,2],[22,1,22,2],[24,1,24,2],[26,1,26,2],[28,1,28,6],[59,1,59,2],[61,1,61,2],[63,1,63,2],[65,1,65,2],[67,1,67,2],[69,1,69,2],[43,1,43,2],[45,1,45,2],[47,1,47,2],[51,1,51,2],[53,1,53,2],[57,1,57,2],[89,1,89,2],[91,1,91,2],[93,1,93,2],[97,1,97,2],[99,1,99,2],[103,1,103,2],[71,1,71,2],[75,1,75,2],[77,1,77,2],[79,1,79,2],[83,1,83,2],[85,1,85,2],[121,1,121,2],[123,1,123,2],[125,1,125,2],[127,1,127,2],[129,1,129,2],[131,1,131,2],[105,1,105,2],[109,1,109,2],[111,1,111,2],[113,1,113,2],[115,1,115,2],[118,1,118,6],[149,1,149,2],[151,1,151,2],[153,1,153,2],[155,1,155,2],[157,1,157,2],[159,1,159,2],[133,1,133,2],[135,1,135,2],[137,1,137,2],[141,1,141,2],[143,1,143,2],[147,1,147,2],[179,1,179,2],[181,1,181,2],[183,1,183,2],[187,1,187,2],[189,1,189,2],[193,1,193,2],[161,1,161,2],[165,1,165,2],[167,1,167,2],[169,1,169,2],[173,1,173,2],[175,1,175,2],[210,1,210,2],[212,1,212,2],[214,1,214,2],[216,1,216,2],[218,1,218,2],[220,1,220,2],[195,1,195,2],[199,1,199,2],[201,1,201,2],[203,1,203,2],[205,1,205,2],[207,1,207,6],[238,1,238,2],[240,1,240,2],[242,1,242,2],[244,1,244,2],[246,1,246,2],[248,1,248,2],[222,1,222,2],[224,1,224,2],[226,1,226,2],[230,1,230,2],[232,1,232,2],[236,1,236,2],[268,1,268,2],[270,1,270,2],[272,1,272,2],[276,1,276,2],[278,1,278,2],[282,1,282,2],[250,1,250,2],[254,1,254,2],[256,1,256,2],[258,1,258,2],[262,1,262,2],[264,1,264,2],[296,1,296,2],[298,1,298,2],[300,1,300,2],[303,1,303,4],[305,1,305,3],[306,1,306,2],[284,1,284,2],[286,1,286,2],[288,1,288,2],[290,1,290,2],[292,1,292,2],[294,1,294,2],[319,1,319,2],[321,1,321,2],[325,1,325,2],[327,1,327,2],[329,1,329,2],[331,1,331,2],[308,1,308,2],[310,1,310,2],[312,1,312,2],[314,1,314,3],[315,1,315,2],[317,1,317,2],[349,1,349,2],[351,1,351,2],[353,1,353,2],[355,1,355,2],[358,15,358,16],[360,1,360,2],[360,4,360,5],[360,7,360,8],[333,1,333,2],[337,1,337,2],[339,1,339,2],[341,1,341,2],[345,1,345,2],[347,1,347,2],[391,1,391,2],[393,1,393,2],[395,1,395,2],[397,1,397,2],[399,1,399,2],[403,1,403,2],[365,1,365,2],[367,1,367,2],[369,1,369,2],[371,1,371,2],[383,1,383,2],[389,1,389,2],[438,1,438,2],[440,1,440,2],[444,1,444,2],[446,1,446,2],[448,1,448,2],[452,1,452,2],[405,1,405,2],[407,1,407,2],[409,1,409,2],[411,1,411,2],[413,1,413,2],[436,1,436,2],[470,1,470,2],[472,1,472,2],[475,1,475,2],[477,3,477,9],[454,1,454,2],[456,1,456,2],[460,1,460,2],[462,1,462,2],[464,1,464,2],[466,1,466,2]]}
[]
[]
["Project : ","Tameya 220/66/11KV S/S"]
["Code ","Item Description ",null,"Unit","Percentages","Unit Price L.E.","Previous","Current","TOTAL","Total Price L.E."]
["B/G/600 000","Civil Works:",null,"LS",null,null,null,null,null,9454398.4499999993]
["B/G/620  000","220 GIS OUTDOOR EQUIPMENTS, RECEIVING GANTREES, SUPPORTS OF GIP  CONNECTION, NETURAL POINTS AND CABLE SEALING ENDS. (Lump sum prices of items # 520 100.... 520 200). "]
["B/G/620  100","Concrete Work",null,null,null,null,null,null,null,379008.75]
["B/G/620 101","EXCAVATION "]
[null,"Excavation including Excavated material Transfer  (As Specified)",null,"LS",0.1,{"$f":"E9*J7","v":37900.875},null,null,{"$f":"H9+G9","v":0},{"$f":"I9*F9","v":0},0.1,null,694849.37,null,69484.937000000005,null,69484.937000000005]
["B/G/620 102","SOIL  REPLACEMENT"]
[null," Supply and apply , SOIL REPLACEMENT According to the approved sieve analysis according to drawings &specs , the rate include leveling , water , compaction and compaction test to be compacted with relative compaction 98%.",null,"LS",0.1,{"$f":"E11*J7","v":37900.875},null,null,{"$f":"H11+G11","v":0},{"$f":"I11*F11","v":0},0.1,null,null,null,69484.937000000005,null,69484.937000000005]
["B/G/620 103","Backfeling"]
[null," backfilling by approved fill material selected from excavation ,including compaction , the rate include compaction test  according to specs.","M3","LS",0.12,{"$f":"E13*J7","v":45481.049999999996},null,null,{"$f":"H13+G13","v":0},{"$f":"I13*F13","v":0},0.12,null,null,null,83381.924400000004,null,83381.924400000004]
["B/G/620 104","PLAIN CONCRETE "]
[null,"Supply and provide ready mix plain concrete grade 250 KG/m³, the clause includes form work, adding additives, pouring and curing, to be separated from soil  by 250 micron polyethylene proofing sheet, and that concrete should be finished as per specs and industry assets. ",null,"LS",0.15,104227.40549999999,null,null,{"$f":"H15+G15","v":0},{"$f":"I15*F15","v":0},0.15,null,null,null,104227.40549999999,null,104227.40549999999]
["B/G/620 105","REINFORCEMENT CONCRETE"]
[null,"Reinforced concrete for foundation and semelle with specified strength  including all required joints  and testing (As Specified)   (Cement content not less than 350 Kg/m³)",null,"LS",0.45,312682.21649999998,null,null,{"$f":"H17+G17","v":0},{"$f":"I17*F17","v":0},0.45,null,null,null,312682.21649999998,null,312682.21649999998]
["B/G/620 106","INSULLATION "]
[null," providing (supplying & painting) three coats of bituminous emulsion above concrete surface which in contact with soil as per drawings & specs.",null,"LS",0.08,55587.9496,null,null,{"$f":"H19+G19","v":0},{"$f":"I19*F19","v":0},0.08,null,null,null,55587.9496,null,55587.9496]
["B/G/620  100","Total",null,null,{"$f":"SUM(E9:E19)","v":0.99999999999999989},null,null,null,{"$f":"SUM(I9:I19)","v":0},{"$f":"SUM(J9:J19)","v":0}]
["B/G 620 200","STRUCTURAL STEEL WORKS",null,null,null,null,null,null,null,1137026.24,null,null,{"$f":"SUM(#REF!)","v":{"$error":"#REF!"}}]
["B/G/620 201"," SUPPLYING "]
[null," supplying  of complete steel structure (Anchor bolts; columns; embedded beams; embedded plates; fixed plates ) according to drawing and specs.",null,"LS",0.6,571428.56999999995,null,null,{"$f":"H23+G23","v":0},{"$f":"I23*F23","v":0},0.6,null,952380.95,null,571428.56999999995,null,571428.56999999995]
["B/G/620 202"," ERECTION "]
[null," steel structure  erection including  welding (Anchor bolts; columns; embedded beams; embedded plates; fixed plates ) according to specs.",null,"LS",0.3,285714.28499999997,null,null,{"$f":"H25+G25","v":0},{"$f":"I25*F25","v":0},0.3,null,null,null,285714.28499999997,null,285714.28499999997]
["B/G/620 203","GROUTING "]
[null,"Supply and apply Non shrink grout (As Specified)",null,"LS",0.1,95238.095000000001,null,null,{"$f":"H27+G27","v":0},{"$f":"I27*F27","v":0},0.1,null,null,null,95238.095000000001,null,95238.095000000001]
["B/G/620 200","Total",null,null,{"$f":"SUM(E23:E27)","v":0.99999999999999989},null,null,null,{"$f":"SUM(I23:I27)","v":0},{"$f":"SUM(J23:J27)","v":0},null,null,{"$f":"SUM(#REF!)","v":{"$error":"#REF!"}}]
["B/G/630  000","220 KV GIS switch gear building (lump sum prices of items Nos. 630 100 through 630 900)",null,null,null,null,null,null,null,null,null,null,{"$f":"SUM(#REF!)","v":{"$error":"#REF!"}}]
["B/G/630  100","Concrete Work",null,null,null,null,null,null,null,1183189.5]
["B/G/630 101","EXCAVATION "]
[null,"Excavation including Excavated material Transfer  (As Specified)",null,"LS",0.06,93673.469400000002,null,null,{"$f":"H32+G32","v":0},{"$f":"I32*F32","v":0},0.06,null,1561224.49,null,93673.469400000002,null,93673.469400000002]
["B/G/630 102","SOIL  REPLACEMENT"]
[null,"Supply and apply , SOIL REPLACEMENT According to the approved sieve analysis according to drawings &specs , the rate include leveling , water , compaction and compaction test to be compacted with relative compaction 98%.",null,"LS",0.08,124897.9592,null,null,{"$f":"H34+G34","v":0},{"$f":"I34*F34","v":0},0.08,null,null,null,124897.9592,null,124897.9592]
["B/G/630 103","Backfeling"]
[null,"backfilling by approved fill material selected from excavation ,including compaction , the rate include compaction test  according to specs.","M3","LS",0.08,124897.9592,null,null,{"$f":"H36+G36","v":0},{"$f":"I36*F36","v":0},0.08,null,null,null,124897.9592,null,124897.9592]
["B/G/630 104","PLAIN CONCRETE "]
[null,"Supply and provide ready mix plain concrete grade 250 KG/m³, the clause includes form work, adding additives, pouring and curing, to be separated from soil  by 250 micron polyethylene proofing sheet, and that concrete should be finished as per specs and industry assets. ",null,"LS",0.1,156122.44899999999,null,null,{"$f":"H38+G38","v":0},{"$f":"I38*F38","v":0},0.1,null,null,null,156122.44899999999,null,156122.44899999999]
["B/G/630 105","REINFORCEMENT CONCRETE FOR FOOTINGS "]
[null,"Reinforced concrete for foundation and semelle with specified strength  including all required joints  and testing (As Specified)   (Cement content not less than 350 Kg/m³)",null,"LS",0.2,312244.89799999999,null,null,{"$f":"H40+G40","v":0},{"$f":"I40*F40","v":0},0.2,null,null,null,312244.89799999999,null,312244.89799999999]
["B/G/630 106","REINFORCEMENT CONCRETE FOR COLUMNS AND BEAMS"]
[null,"Reinforced concrete for columns and beams with specified strength  including all required  testing (As Specified)   (Cement content not less than 350 Kg/m³) ",null,"LS",0.15,234183.6735,null,null,{"$f":"H42+G42","v":0},{"$f":"I42*F42","v":0},0.15,null,null,null,234183.6735,null,234183.6735]
["B/G/630 107","REINFORCEMENT CONCRETE FOR ROOF SLAP"]
[null,"Reinforced concrete for roof slab and beams with specified strength  including faire faceand all required  testing (As Specified) (Cement content not less than 350 Kg/m³) ",null,"LS",0.2,312244.89799999999,null,null,{"$f":"H44+G44","v":0},{"$f":"I44*F44","v":0},0.2,null,null,null,312244.89799999999,null,312244.89799999999]
["B/G/630 108","INSULLATION "]
[null,"providing (supplying & painting) three coats of bituminous emulsion above concrete surface which in contact with soil as per drawings & specs. ( Up to zero level )",null,"LS",0.05,78061.224499999997,null,null,{"$f":"H46+G46","v":0},{"$f":"I46*F46","v":0},0.05,null,null,null,78061.224499999997,null,78061.224499999997]
["B/G/630 109","SLAP ON GRADE  "]
[null,"applying all the reqaired layes of slap on grade according to drawings and specs.",null,"LS",0.08,124897.9592,null,null,{"$f":"H48+G48","v":0},{"$f":"I48*F48","v":0},0.08,null,null,null,124897.9592,null,124897.9592]
["B/G/630  100","Total",null,null,{"$f":"SUM(E32:E48)","v":1.0000000000000002},null,null,null,{"$f":"SUM(I32:I48)","v":0},{"$f":"SUM(J32:J48)","v":0}]
["B/G/630  200","STRUCTURAL STEEL WORKS",null,null,null,null,null,null,null,104398.45,null,null,{"$f":"SUM(#REF!)","v":{"$error":"#REF!"}}]
["B/G/620  201"," SUPPLYING "]
[null," supplying  of complete steel structure (Anchor bolts; columns; embedded beams; embedded plates; fixed plates ) according to drawing and specs.",null,"LS",0.6,48979.59,null,null,{"$f":"H52+G52","v":0},{"$f":"I52*F52","v":0},0.6,null,81632.649999999994,null,48979.59,null,48979.59]
["B/G/630 202"," ERECTION "]
[null," steel structure  erection including  welding (Anchor bolts; columns; embedded beams; embedded plates; fixed plates ) according to specs.",null,"LS",0.4,32653.059999999998,null,null,{"$f":"H54+G54","v":0},{"$f":"I54*F54","v":0},0.4,null,null,null,32653.059999999998,null,32653.059999999998]
["B/G/630  200","Total",null,null,{"$f":"SUM(E52:E54)","v":1},null,null,null,{"$f":"SUM(I52:I54)","v":0},{"$f":"SUM(J52:J54)","v":0},null,null,{"$f":"SUM(#REF!)","v":{"$error":"#REF!"}}]
["B/G/630  300","ARCHITECTURAL WORKS",null,null,null,null,null,null,null,904793.97,null,null,{"$f":"SUM(#REF!)","v":{"$error":"#REF!"}}]
["B/G/630 301","MASONARY WORK  ",null,null,null,null,null,null,null,null,null,null,714285.71]
[null,"supplying & constructing and installing)brick walls solid cemented  25cm thick.;  the brick dimensions are 250*120*60 mm, the clause includes all lintels; scaffolding; dowels and wire mesh which connect brick with the concrete items before starting plaster works, the mortar contents is 350 kg of ordinary Portland cement for each cubic meter of sand, as per drawings & specs, and all necessary to finish works as per the technical industrial assets,  the rate include lentel required.                                  ",null,"LS",0.3,214285.71299999999,null,null,{"$f":"H58+G58","v":0},{"$f":"I58*F58","v":0},0.3,null,null,null,214285.71299999999,null,214285.71299999999]
["B/G/630 302","PLASTERING WORKS"]
[null," providing (supplying & plastering) for the cement mortar for walls, is including leveling; scaffolding; all necessary tools;   the cement content in the mortar not less than 350 kg  Ordinary Portland Cement for each cubic meter of sand, as per drawings & specs, and all necessary to finish works as per the technical industrial assets. .  ",null,"LS",0.15,107142.85649999999,null,null,{"$f":"H60+G60","v":0},{"$f":"I60*F60","v":0},0.15,null,null,null,107142.85649999999,null,107142.85649999999]
["B/G/630 303","PAINTING WORKS"]
[null,"providing (supplying & paint) emulsion plastic washable paint for internal walls   is including three putty coats; one fin mastic flat coat, and two final  coat, the clause included all necessary tools and steel scaffolding as per drawings & specs, and all necessary to finish works as per the technical industrial assets, and  the approved color samples.  ",null,"LS",0.1,71428.570999999996,null,null,{"$f":"H62+G62","v":0},{"$f":"I62*F62","v":0},0.1,null,null,null,71428.570999999996,null,71428.570999999996]
["B/G/630 304","FLOORINNG WORKS"]
[null," Delivery and installation all the types of floorinng  including all required and specs ",null,"LS",0.1,71428.570999999996,null,null,{"$f":"H64+G64","v":0},{"$f":"I64*F64","v":0},0.1,null,null,null,71428.570999999996,null,71428.570999999996]
["B/G/630 305","ROOFING SYSTEM "]
[null,"Protection layer for roofing including all requirement and accessories    (As Specified)",null,"LS",0.13,92857.142299999992,null,null,{"$f":"H66+G66","v":0},{"$f":"I66*F66","v":0},0.13,null,null,null,92857.142299999992,null,92857.142299999992]
["B/G/630 306","ROLLING SHUTTER DOOR  "]
[null,"Delivery and erection of approved according to specs.",null,"LS",0.16,114285.7136,null,null,{"$f":"H68+G68","v":0},{"$f":"I68*F68","v":0},0.16,null,null,null,114285.7136,null,114285.7136]
["B/G/630 307","DOORS"]
[null,"Delivery and erection of approved color  aluminum doors.",null,"LS",0.03,21428.5713,null,null,{"$f":"H70+G70","v":0},{"$f":"I70*F70","v":0},0.03,null,null,null,21428.5713,null,21428.5713]
["B/G/630 308","WINDOWS "]
[null,"Delivery and erection of approved color  aluminum windows.",null,"LS",0.03,21428.5713,null,null,{"$f":"H72+G72","v":0},{"$f":"I72*F72","v":0},0.03,null,null,null,21428.5713,null,21428.5713]
["B/G/630  300","Total",null,null,{"$f":"SUM(E58:E72)","v":1},null,null,null,{"$f":"SUM(I58:I72)","v":0},{"$f":"SUM(J58:J72)","v":0},null,null,{"$f":"SUM(#REF!)","v":{"$error":"#REF!"}}]
["B/G/630  400","ELECTRICAL WORK",null,null,null,null,null,null,null,58000,null,null,{"$f":"SUM(#REF!)","v":{"$error":"#REF!"}}]
["B/G/630 401"," SUPPLY"]
[null,"supplying  all necessary elecreical  parts to compleat the work according to specs ",null,null,0.25,16581.6325,null,null,{"$f":"H76+G76","v":0},{"$f":"I76*F76","v":0},0.25,null,66326.53,null,16581.6325,null,16581.6325]
["B/G/630 402","FIXTUERES"]
[null,"locate and fix all the electrical items according to drawings and specs ",null,"LS",0.65,43112.244500000001,null,null,{"$f":"H78+G78","v":0},{"$f":"I78*F78","v":0},0.65,null,null,null,43112.244500000001,null,43112.244500000001]
["B/G/630 403","TEST "]
[null,"all the necessary tests to handling the electrical work according to specs and industry assets.",null,"LS",0.1,6632.6530000000002,null,null,{"$f":"H80+G80","v":0},{"$f":"I80*F80","v":0},0.1,null,null,null,6632.6530000000002,null,6632.6530000000002]
["B/G/630  400","Total",null,null,{"$f":"SUM(E76:E80)","v":1},null,null,null,{"$f":"SUM(I76:I80)","v":0},{"$f":"SUM(J76:J80)","v":0},null,null,{"$f":"SUM(#REF!)","v":{"$error":"#REF!"}}]
["B/G/630 500","PLUMBING WORK",null,null,null,null,null,null,null,144998.06,null,null,{"$f":"SUM(#REF!)","v":{"$error":"#REF!"}}]
["B/G/630 501","SUPPLY AND INSTALL",null,null,null,null,null,null,null,null,null,null,92322.64]
[null,"Supplying and installing  all necessary embedded items and connections according to specs and drawings",null,"LS",0.7,64625.847999999998,null,null,{"$f":"H84+G84","v":0},{"$f":"I84*F84","v":0},0.7,null,null,null,64625.847999999998,null,64625.847999999998]
["B/G/630 502","TEST"]
[null,"all the necessary tests to handling the plumbing system according to specs and industry assets.",null,"LS",0.3,27696.791999999998,null,null,{"$f":"H86+G86","v":0},{"$f":"I86*F86","v":0},0.3,null,null,null,27696.791999999998,null,27696.791999999998]
["B/G/630 500","Total",null,null,{"$f":"SUM(E84:E86)","v":1},null,null,null,{"$f":"SUM(I84:I86)","v":0},{"$f":"SUM(J84:J86)","v":0},null,null,{"$f":"SUM(#REF!)","v":{"$error":"#REF!"}}]
["B/G/630 600","VENTILATION SYSTEM",null,null,null,null,null,null,null,60318.76,null,null,{"$f":"SUM(#REF!)","v":{"$error":"#REF!"}}]
["B/G/630 601"," SUPPLY",null,null,null,null,null,null,null,null,null,null,94071.91]
[null,"supplying  all necessary ventilation parts according to specs and drawings ",null,null,0.6,56443.146000000001,null,null,{"$f":"H90+G90","v":0},{"$f":"I90*F90","v":0},0.6,null,null,null,56443.146000000001,null,56443.146000000001]
["B/G/630 602","FIXTUERES"]
[null,"locate and fix all the ventilation parts according to drawings and specs ",null,"LS",0.2,18814.382000000001,null,null,{"$f":"H92+G92","v":0},{"$f":"I92*F92","v":0},0.2,null,null,null,18814.382000000001,null,18814.382000000001]
["B/G/630 603","TEST "]
[null,"all the necessary tests to handling the VENTILATION SYSTEM according to specs and industry assets.",null,"LS",0.2,18814.382000000001,null,null,{"$f":"H94+G94","v":0},{"$f":"I94*F94","v":0},0.2,null,null,null,18814.382000000001,null,18814.382000000001]
["B/G/630 600","Total",null,null,{"$f":"SUM(E90:E94)","v":1},null,null,null,{"$f":"SUM(I90:I94)","v":0},{"$f":"SUM(J90:J94)","v":0},null,null,{"$f":"SUM(#REF!)","v":{"$error":"#REF!"}}]
["B/G/630 700","FIRE DETECTION",null,null,null,null,null,null,null,26678.328474246799,null,null,{"$f":"SUM(#REF!)","v":{"$error":"#REF!"}}]
["B/G/630 701","SUPPLY AND ERECT",null,null,null,null,null,null,null,null,null,null,37414.97]
[null,"Supplying and erecting  all necessary fire detection system parts and connections according to specs and drawings",null,"LS",0.7,26190.478999999999,null,null,{"$f":"H98+G98","v":0},{"$f":"I98*F98","v":0},0.7,null,null,null,26190.478999999999,null,26190.478999999999]
["B/G/630 702","TEST"]
[null,"all the necessary tests to handling the fire detection system according to specs and industry assets.",null,"LS",0.3,11224.491,null,null,{"$f":"H100+G100","v":0},{"$f":"I100*F100","v":0},0.3,null,null,null,11224.491,null,11224.491]
["B/G/630 700","Total",null,null,{"$f":"SUM(E98:E100)","v":1},null,null,null,{"$f":"SUM(I98:I100)","v":0},{"$f":"SUM(J98:J100)","v":0},null,null,{"$f":"SUM(#REF!)","v":{"$error":"#REF!"}}]
["B/G/630 800","ELECTRICALLY OPERATED OVER HEAD CREAN",null,null,null,null,null,null,null,425247.813411079,null,null,{"$f":"SUM(#REF!)","v":{"$error":"#REF!"}}]
["B/G/630 801","SUPPLY ",null,null,null,null,null,null,null,null,null,null,365403.3]
[null,"Supplying  over head crean according to specifications.",null,"LS",0.7,255782.30999999997,null,null,{"$f":"H104+G104","v":0},{"$f":"I104*F104","v":0},0.7,null,null,null,255782.30999999997,null,255782.30999999997]
["B/G/630 802","ERECT AND OPERATE "]
[null,"erecting the over head crean and operate it,including all the required tests.",null,"LS",0.3,109620.98999999999,null,null,{"$f":"H106+G106","v":0},{"$f":"I106*F106","v":0},0.3,null,null,null,109620.98999999999,null,109620.98999999999]
["B/G/630 800","Total",null,null,{"$f":"SUM(E104:E106)","v":1},null,null,null,{"$f":"SUM(I104:I106)","v":0},{"$f":"SUM(J104:J106)","v":0},null,null,{"$f":"SUM(#REF!)","v":{"$error":"#REF!"}}]
["B/G/630 900","R.C CABLE TRENCHES AND DUCTS",null,null,null,null,null,null,null,52199.222546161298,null,null,{"$f":"SUM(#REF!)","v":{"$error":"#REF!"}}]
["B/G/630 901","PLAIN CONCRETE ",null,null,null,null,null,null,null,null,null,null,58309.04]
[null,"Supply and provide ready mix plain concrete grade 250 KG/m³, the clause includes form work, adding additives, pouring and curing,, and that concrete should be finished as per specs and industry assets. ",null,"LS",0.1,5830.9040000000005,null,null,{"$f":"H110+G110","v":0},{"$f":"I110*F110","v":0},0.1,null,null,null,5830.9040000000005,null,5830.9040000000005]
["B/G/630 902","REINFORCEMENT CONCRETE"]
[null,"Reinforced concrete for raft and walls with specified strength  including all required  and testing (As Specified)   (Cement content not less than 350 Kg/m³)",null,"LS",0.5,29154.52,null,null,{"$f":"H112+G112","v":0},{"$f":"I112*F112","v":0},0.5,null,null,null,29154.52,null,29154.52]
["B/G/630 903","CHEQUERED PLATE COVER "]
[null,"Delivery and erection of  chequered plate cover including painting  & all installation and handling  requirement (As Specified)",null,"LS",0.15,8746.3559999999998,null,null,{"$f":"H114+G114","v":0},{"$f":"I114*F114","v":0},0.15,null,null,null,8746.3559999999998,null,8746.3559999999998]
["B/G/630 904","DUCTE"]
[null,"making all the necessary ducte according to drawings and spics.",null,"LS",0.25,14577.26,null,null,{"$f":"H116+G116","v":0},{"$f":"I116*F116","v":0},0.25,null,null,null,14577.26,null,14577.26]
["B/G/630 900","Total",null,null,{"$f":"SUM(E110:E116)","v":1},null,null,null,{"$f":"SUM(I110:I116)","v":0},{"$f":"SUM(J110:J116)","v":0},null,null,{"$f":"SUM(#REF!)","v":{"$error":"#REF!"}}]
[]
["B/G/640 000","66 KV GIS switch gear building (lump sum prices of items Nos. 640 100 through 640 900)",null,null,null,null,null,null,null,null,null,null,{"$f":"SUM(#REF!)","v":{"$error":"#REF!"}}]
["B/G/640 100","Concrete Work",null,null,null,null,null,null,null,751700.68027210899]
["B/G/630 101","EXCAVATION "]
[null,"Excavation including Excavated material Transfer  (As Specified)",null,"LS",0.06,93673.469400000002,0,null,{"$f":"H122+G122","v":0},{"$f":"I122*F122","v":0},0.06,null,1561224.49,null,93673.469400000002,null,93673.469400000002]
["B/G/630 102","SOIL  REPLACEMENT"]
[null,"Supply and apply , SOIL REPLACEMENT According to the approved sieve analysis according to drawings &specs , the rate include leveling , water , compaction and compaction test to be compacted with relative compaction 98%.",null,"LS",0.08,124897.9592,null,null,{"$f":"H124+G124","v":0},{"$f":"I124*F124","v":0},0.08,null,null,null,124897.9592,null,124897.9592]
["B/G/630 103","Backfeling"]
[null,"backfilling by approved fill material selected from excavation ,including compaction , the rate include compaction test  according to specs.","M3","LS",0.08,124897.9592,null,null,{"$f":"H126+G126","v":0},{"$f":"I126*F126","v":0},0.08,null,null,null,124897.9592,null,124897.9592]
["B/G/630 104","PLAIN CONCRETE "]
[null,"Supply and provide ready mix plain concrete grade 250 KG/m³, the clause includes form work, adding additives, pouring and curing, to be separated from soil  by 250 micron polyethylene proofing sheet, and that concrete should be finished as per specs and industry assets. ",null,"LS",0.1,156122.44899999999,null,null,{"$f":"H128+G128","v":0},{"$f":"I128*F128","v":0},0.1,null,null,null,156122.44899999999,null,156122.44899999999]
["B/G/630 105","REINFORCEMENT CONCRETE FOR FOOTINGS "]
[null,"Reinforced concrete for foundation and semelle with specified strength  including all required joints  and testing (As Specified)   (Cement content not less than 350 Kg/m³)",null,"LS",0.2,312244.89799999999,null,null,{"$f":"H130+G130","v":0},{"$f":"I130*F130","v":0},0.2,null,null,null,312244.89799999999,null,312244.89799999999]
["B/G/630 106","REINFORCEMENT CONCRETE FOR COLUMNS AND BEAMS"]
[null,"Reinforced concrete for columns and beams with specified strength  including all required  testing (As Specified)   (Cement content not less than 350 Kg/m³) ",null,"LS",0.15,234183.6735,null,null,{"$f":"H132+G132","v":0},{"$f":"I132*F132","v":0},0.15,null,null,null,234183.6735,null,234183.6735]
["B/G/630 107","REINFORCEMENT CONCRETE FOR ROOF SLAP"]
[null,"Reinforced concrete for roof slab and beams with specified strength  including faire faceand all required  testing (As Specified) (Cement content not less than 350 Kg/m³) ",null,"LS",0.2,312244.89799999999,null,null,{"$f":"H134+G134","v":0},{"$f":"I134*F134","v":0},0.2,null,null,null,312244.89799999999,null,312244.89799999999]
["B/G/630 108","INSULLATION "]
[null,"providing (supplying & painting) three coats of bituminous emulsion above concrete surface which in contact with soil as per drawings & specs. ( Up to zero level )",null,"LS",0.05,78061.224499999997,null,null,{"$f":"H136+G136","v":0},{"$f":"I136*F136","v":0},0.05,null,null,null,78061.224499999997,null,78061.224499999997]
["B/G/630 109","SLAP ON GRADE  "]
[null,"applying all the reqaired layes of slap on grade according to drawings and specs.",null,"LS",0.08,124897.9592,null,null,{"$f":"H138+G138","v":0},{"$f":"I138*F138","v":0},0.08,null,null,null,124897.9592,null,124897.9592]
["B/G/640 100","Total",null,null,{"$f":"SUM(E122:E138)","v":1.0000000000000002},null,null,null,{"$f":"SUM(I122:I138)","v":0},{"$f":"SUM(J122:J138)","v":0}]
["B/G/640 200","STRUCTURAL STEEL WORKS",null,null,null,null,null,null,null,66326.530612244896,null,null,{"$f":"SUM(#REF!)","v":{"$error":"#REF!"}}]
["B/G/620  201"," SUPPLYING "]
[null," supplying  of complete steel structure (Anchor bolts; columns; embedded beams; embedded plates; fixed plates ) according to drawing and specs.",null,"LS",0.6,48979.59,null,null,{"$f":"H142+G142","v":0},{"$f":"I142*F142","v":0},0.6,null,81632.649999999994,null,48979.59,null,48979.59]
["B/G/630 202"," ERECTION "]
[null," steel structure  erection including  welding (Anchor bolts; columns; embedded beams; embedded plates; fixed plates ) according to specs.",null,"LS",0.4,32653.059999999998,null,null,{"$f":"H144+G144","v":0},{"$f":"I144*F144","v":0},0.4,null,null,null,32653.059999999998,null,32653.059999999998]
["B/G/640 200","Total",null,null,{"$f":"SUM(E142:E144)","v":1},null,null,null,{"$f":"SUM(I142:I144)","v":0},{"$f":"SUM(J142:J144)","v":0},null,null,{"$f":"SUM(#REF!)","v":{"$error":"#REF!"}}]
["B/G/640 300","ARCHITECTURAL WORKS",null,null,null,null,null,null,null,574829.931972789,null,null,{"$f":"SUM(#REF!)","v":{"$error":"#REF!"}}]
["B/G/630 301","MASONARY WORK  ",null,null,null,null,null,null,null,null,null,null,714285.71]
[null,"supplying & constructing and installing)brick walls solid cemented  25cm thick.;  the brick dimensions are 250*120*60 mm, the clause includes all lintels; scaffolding; dowels and wire mesh which connect brick with the concrete items before starting plaster works, the mortar contents is 350 kg of ordinary Portland cement for each cubic meter of sand, as per drawings & specs, and all necessary to finish works as per the technical industrial assets,  the rate include lentel required.                                  ",null,"LS",0.3,214285.71299999999,null,null,{"$f":"H148+G148","v":0},{"$f":"I148*F148","v":0},0.3,null,null,null,214285.71299999999,null,214285.71299999999]
["B/G/630 302","PLASTERING WORKS"]
[null," providing (supplying & plastering) for the cement mortar for walls, is including leveling; scaffolding; all necessary tools;   the cement content in the mortar not less than 350 kg  Ordinary Portland Cement for each cubic meter of sand, as per drawings & specs, and all necessary to finish works as per the technical industrial assets. .  ",null,"LS",0.15,107142.85649999999,null,null,{"$f":"H150+G150","v":0},{"$f":"I150*F150","v":0},0.15,null,null,null,107142.85649999999,null,107142.85649999999]
["B/G/630 303","PAINTING WORKS"]
[null,"providing (supplying & paint) emulsion plastic washable paint for internal walls   is including three putty coats; one fin mastic flat coat, and two final  coat, the clause included all necessary tools and steel scaffolding as per drawings & specs, and all necessary to finish works as per the technical industrial assets, and  the approved color samples.  ",null,"LS",0.1,71428.570999999996,null,null,{"$f":"H152+G152","v":0},{"$f":"I152*F152","v":0},0.1,null,null,null,71428.570999999996,null,71428.570999999996]
["B/G/630 304","FLOORINNG WORKS"]
[null," Delivery and installation all the types of floorinng  including all required and specs ",null,"LS",0.1,71428.570999999996,null,null,{"$f":"H154+G154","v":0},{"$f":"I154*F154","v":0},0.1,null,null,null,71428.570999999996,null,71428.570999999996]
["B/G/630 305","ROOFING SYSTEM "]
[null,"Protection layer for roofing including all requirement and accessories    (As Specified)",null,"LS",0.13,92857.142299999992,null,null,{"$f":"H156+G156","v":0},{"$f":"I156*F156","v":0},0.13,null,null,null,92857.142299999992,null,92857.142299999992]
["B/G/630 306","ROLLING SHUTTER DOOR  "]
[null,"Delivery and erection of approved according to specs.",null,"LS",0.16,114285.7136,null,null,{"$f":"H158+G158","v":0},{"$f":"I158*F158","v":0},0.16,null,null,null,114285.7136,null,114285.7136]
["B/G/630 307","DOORS"]
[null,"Delivery and erection of approved color  aluminum doors.",null,"LS",0.03,21428.5713,null,null,{"$f":"H160+G160","v":0},{"$f":"I160*F160","v":0},0.03,null,null,null,21428.5713,null,21428.5713]
["B/G/630 308","WINDOWS "]
[null,"Delivery and erection of approved color  aluminum windows.",null,"LS",0.03,21428.5713,null,null,{"$f":"H162+G162","v":0},{"$f":"I162*F162","v":0},0.03,null,null,null,21428.5713,null,21428.5713]
["B/G/640 300","Total",null,null,{"$f":"SUM(E148:E162)","v":1},null,null,null,{"$f":"SUM(I148:I162)","v":0},{"$f":"SUM(J148:J162)","v":0},null,null,{"$f":"SUM(#REF!)","v":{"$error":"#REF!"}}]
["B/G/640 400","ELECTRICAL WORK",null,null,null,null,null,null,null,57256.559766763901,null,null,{"$f":"SUM(#REF!)","v":{"$error":"#REF!"}}]
["B/G/630 401"," SUPPLY"]
[null,"supplying  all necessary elecreical  parts to compleat the work according to specs ",null,null,0.25,16581.6325,null,null,{"$f":"H166+G166","v":0},{"$f":"I166*F166","v":0},0.25,null,66326.53,null,16581.6325,null,16581.6325]
["B/G/630 402","FIXTUERES"]
[null,"locate and fix all the electrical items according to drawings and specs ",null,"LS",0.65,43112.244500000001,null,null,{"$f":"H168+G168","v":0},{"$f":"I168*F168","v":0},0.65,null,null,null,43112.244500000001,null,43112.244500000001]
["B/G/630 403","TEST "]
[null,"all the necessary tests to handling the electrical work according to specs and industry assets.",null,"LS",0.1,6632.6530000000002,null,null,{"$f":"H170+G170","v":0},{"$f":"I170*F170","v":0},0.1,null,null,null,6632.6530000000002,null,6632.6530000000002]
["B/G/640 400","Total",null,null,{"$f":"SUM(E166:E170)","v":1},null,null,null,{"$f":"SUM(I166:I170)","v":0},{"$f":"SUM(J166:J170)","v":0},null,null,{"$f":"SUM(#REF!)","v":{"$error":"#REF!"}}]
["B/G/640 500 ","PLUMBING WORK",null,null,null,null,null,null,null,92120.505344995196,null,null,{"$f":"SUM(#REF!)","v":{"$error":"#REF!"}}]
["B/G/630 501","SUPPLY AND INSTALL",null,null,null,null,null,null,null,null,null,null,92322.64]
[null,"Supplying and installing  all necessary embedded items and connections according to specs and drawings",null,"LS",0.7,64625.847999999998,null,null,{"$f":"H174+G174","v":0},{"$f":"I174*F174","v":0},0.7,null,null,null,64625.847999999998,null,64625.847999999998]
["B/G/630 502","TEST"]
[null,"all the necessary tests to handling the plumbing system according to specs and industry assets.",null,"LS",0.3,27696.791999999998,null,null,{"$f":"H176+G176","v":0},{"$f":"I176*F176","v":0},0.3,null,null,null,27696.791999999998,null,27696.791999999998]
["B/G/640 500","Total",null,null,{"$f":"SUM(E174:E176)","v":1},null,null,null,{"$f":"SUM(I174:I176)","v":0},{"$f":"SUM(J174:J176)","v":0},null,null,{"$f":"SUM(#REF!)","v":{"$error":"#REF!"}}]
["B/G/640 600","VENTILATION SYSTEM",null,null,null,null,null,null,null,39293.488824101099,null,null,{"$f":"SUM(#REF!)","v":{"$error":"#REF!"}}]
["B/G/630 601"," SUPPLY",null,null,null,null,null,null,null,null,null,null,94071.91]
[null,"supplying  all necessary ventilation parts according to specs and drawings ",null,null,0.6,56443.146000000001,null,null,{"$f":"H180+G180","v":0},{"$f":"I180*F180","v":0},0.6,null,null,null,56443.146000000001,null,56443.146000000001]
["B/G/630 602","FIXTUERES"]
[null,"locate and fix all the ventilation parts according to drawings and specs ",null,"LS",0.2,18814.382000000001,null,null,{"$f":"H182+G182","v":0},{"$f":"I182*F182","v":0},0.2,null,null,null,18814.382000000001,null,18814.382000000001]
["B/G/630 603","TEST "]
[null,"all the necessary tests to handling the VENTILATION SYSTEM according to specs and industry assets.",null,"LS",0.2,18814.382000000001,null,null,{"$f":"H184+G184","v":0},{"$f":"I184*F184","v":0},0.2,null,null,null,18814.382000000001,null,18814.382000000001]
["B/G/640 600","Total",null,null,{"$f":"SUM(E180:E184)","v":1},null,null,null,{"$f":"SUM(I180:I184)","v":0},{"$f":"SUM(J180:J184)","v":0},null,null,{"$f":"SUM(#REF!)","v":{"$error":"#REF!"}}]
["B/G/640 700","FIRE DETECTION",null,null,null,null,null,null,null,18969.873663751201,null,null,{"$f":"SUM(#REF!)","v":{"$error":"#REF!"}}]
["B/G/630 701","SUPPLY AND ERECT",null,null,null,null,null,null,null,null,null,null,37414.97]
[null,"Supplying and erecting  all necessary fire detection system parts and connections according to specs and drawings",null,"LS",0.7,26190.478999999999,null,null,{"$f":"H188+G188","v":0},{"$f":"I188*F188","v":0},0.7,null,null,null,26190.478999999999,null,26190.478999999999]
["B/G/630 702","TEST"]
[null,"all the necessary tests to handling the fire detection system according to specs and industry assets.",null,"LS",0.3,11224.491,null,null,{"$f":"H190+G190","v":0},{"$f":"I190*F190","v":0},0.3,null,null,null,11224.491,null,11224.491]
["B/G/640 700","Total",null,null,{"$f":"SUM(E188:E190)","v":1},null,null,null,{"$f":"SUM(I188:I190)","v":0},{"$f":"SUM(J188:J190)","v":0},null,null,{"$f":"SUM(#REF!)","v":{"$error":"#REF!"}}]
["B/G/640 800","ELECTRICALLY OPERATED OVER HEAD CREAN",null,null,null,null,null,null,null,429543.24586977699,null,null,{"$f":"SUM(#REF!)","v":{"$error":"#REF!"}}]
["B/G/630 801","SUPPLY ",null,null,null,null,null,null,null,null,null,null,365403.3]
[null,"Supplying  over head crean according to specifications.",null,"LS",0.7,255782.30999999997,null,null,{"$f":"H194+G194","v":0},{"$f":"I194*F194","v":0},0.7,null,null,null,255782.30999999997,null,255782.30999999997]
["B/G/630 802","ERECT AND OPERATE "]
[null,"erecting the over head crean and operate it,including all the required tests.",null,"LS",0.3,109620.98999999999,null,null,{"$f":"H196+G196","v":0},{"$f":"I196*F196","v":0},0.3,null,null,null,109620.98999999999,null,109620.98999999999]
["B/G/640 800","Total",null,null,{"$f":"SUM(E194:E196)","v":1},null,null,null,{"$f":"SUM(I194:I196)","v":0},{"$f":"SUM(J194:J196)","v":0},null,null,{"$f":"SUM(#REF!)","v":{"$error":"#REF!"}}]
["B/G/640 900","R.C CABLE TRENCHES AND DUCTS",null,null,null,null,null,null,null,33163.265306122397,null,null,{"$f":"SUM(#REF!)","v":{"$error":"#REF!"}}]
["B/G/630 901","PLAIN CONCRETE ",null,null,null,null,null,null,null,null,null,null,58309.04]
[null,"Supply and provide ready mix plain concrete grade 250 KG/m³, the clause includes form work, adding additives, pouring and curing,, and that concrete should be finished as per specs and industry assets. ",null,"LS",0.1,5830.9040000000005,null,null,{"$f":"H200+G200","v":0},{"$f":"I200*F200","v":0},0.1,null,null,null,5830.9040000000005,null,5830.9040000000005]
["B/G/630 902","REINFORCEMENT CONCRETE"]
[null,"Reinforced concrete for raft and walls with specified strength  including all required  and testing (As Specified)   (Cement content not less than 350 Kg/m³)",null,"LS",0.5,29154.52,null,null,{"$f":"H202+G202","v":0},{"$f":"I202*F202","v":0},0.5,null,null,null,29154.52,null,29154.52]
["B/G/630 903","CHEQUERED PLATE COVER "]
[null,"Delivery and erection of  chequered plate cover including painting  & all installation and handling  requirement (As Specified)",null,"LS",0.15,8746.3559999999998,null,null,{"$f":"H204+G204","v":0},{"$f":"I204*F204","v":0},0.15,null,null,null,8746.3559999999998,null,8746.3559999999998]
["B/G/630 904","DUCTE"]
[null,"making all the necessary ducte according to drawings and spics.",null,"LS",0.25,14577.26,null,null,{"$f":"H206+G206","v":0},{"$f":"I206*F206","v":0},0.25,null,null,null,14577.26,null,14577.26]
["B/G/640 900","Total",null,null,{"$f":"SUM(E200:E206)","v":1},null,null,null,{"$f":"SUM(I200:I206)","v":0},{"$f":"SUM(J200:J206)","v":0},null,null,{"$f":"SUM(#REF!)","v":{"$error":"#REF!"}}]
["B/G/650 000","Control  building (lump sum prices of items Nos. 650 100 through 650 800)",null,null,null,null,null,null,null,null,null,null,{"$f":"SUM(#REF!)","v":{"$error":"#REF!"}}]
["B/G/650 100","Concrete Work",null,null,null,null,null,null,null,1225714.2857142901]
["B/G/630 101","EXCAVATION "]
[null,"Excavation including Excavated material Transfer  (As Specified)",null,"LS",0.06,93673.469400000002,null,null,{"$f":"H211+G211","v":0},{"$f":"I211*F211","v":0},0.06,null,1561224.49,null,93673.469400000002,null,93673.469400000002]
["B/G/630 102","SOIL  REPLACEMENT"]
[null,"Supply and apply , SOIL REPLACEMENT According to the approved sieve analysis according to drawings &specs , the rate include leveling , water , compaction and compaction test to be compacted with relative compaction 98%.",null,"LS",0.08,124897.9592,null,null,{"$f":"H213+G213","v":0},{"$f":"I213*F213","v":0},0.08,null,null,null,124897.9592,null,124897.9592]
["B/G/630 103","Backfeling"]
[null,"backfilling by approved fill material selected from excavation ,including compaction , the rate include compaction test  according to specs.","M3","LS",0.08,124897.9592,null,null,{"$f":"H215+G215","v":0},{"$f":"I215*F215","v":0},0.08,null,null,null,124897.9592,null,124897.9592]
["B/G/630 104","PLAIN CONCRETE "]
[null,"Supply and provide ready mix plain concrete grade 250 KG/m³, the clause includes form work, adding additives, pouring and curing, to be separated from soil  by 250 micron polyethylene proofing sheet, and that concrete should be finished as per specs and industry assets. ",null,"LS",0.1,156122.44899999999,null,null,{"$f":"H217+G217","v":0},{"$f":"I217*F217","v":0},0.1,null,null,null,156122.44899999999,null,156122.44899999999]
["B/G/630 105","REINFORCEMENT CONCRETE FOR FOOTINGS "]
[null,"Reinforced concrete for foundation and semelle with specified strength  including all required joints  and testing (As Specified)   (Cement content not less than 350 Kg/m³)",null,"LS",0.2,312244.89799999999,null,null,{"$f":"H219+G219","v":0},{"$f":"I219*F219","v":0},0.2,null,null,null,312244.89799999999,null,312244.89799999999]
["B/G/630 106","REINFORCEMENT CONCRETE FOR COLUMNS AND BEAMS"]
[null,"Reinforced concrete for columns and beams with specified strength  including all required  testing (As Specified)   (Cement content not less than 350 Kg/m³) ",null,"LS",0.15,234183.6735,null,null,{"$f":"H221+G221","v":0},{"$f":"I221*F221","v":0},0.15,null,null,null,234183.6735,null,234183.6735]
["B/G/630 107","REINFORCEMENT CONCRETE FOR ROOF SLAP"]
[null,"Reinforced concrete for roof slab and beams with specified strength  including faire faceand all required  testing (As Specified) (Cement content not less than 350 Kg/m³) ",null,"LS",0.2,312244.89799999999,null,null,{"$f":"H223+G223","v":0},{"$f":"I223*F223","v":0},0.2,null,null,null,312244.89799999999,null,312244.89799999999]
["B/G/630 108","INSULLATION "]
[null,"providing (supplying & painting) three coats of bituminous emulsion above concrete surface which in contact with soil as per drawings & specs. ( Up to zero level )",null,"LS",0.05,78061.224499999997,null,null,{"$f":"H225+G225","v":0},{"$f":"I225*F225","v":0},0.05,null,null,null,78061.224499999997,null,78061.224499999997]
["B/G/630 109","SLAP ON GRADE  "]
[null,"applying all the reqaired layes of slap on grade according to drawings and specs.",null,"LS",0.08,124897.9592,null,null,{"$f":"H227+G227","v":0},{"$f":"I227*F227","v":0},0.08,null,null,null,124897.9592,null,124897.9592]
["B/G/650 100","Total",null,null,{"$f":"SUM(E211:E227)","v":1.0000000000000002},null,null,null,{"$f":"SUM(I211:I227)","v":0},{"$f":"SUM(J211:J227)","v":0}]
["B/G/650 200","STRUCTURAL STEEL WORKS",null,null,null,null,null,null,null,106311.95335277,null,null,{"$f":"SUM(#REF!)","v":{"$error":"#REF!"}}]
["B/G/620  201"," SUPPLYING "]
[null," supplying  of complete steel structure (Anchor bolts; columns; embedded beams; embedded plates; fixed plates ) according to drawing and specs.",null,"LS",0.6,48979.59,null,null,{"$f":"H231+G231","v":0},{"$f":"I231*F231","v":0},0.6,null,81632.649999999994,null,48979.59,null,48979.59]
["B/G/630 202"," ERECTION "]
[null," steel structure  erection including  welding (Anchor bolts; columns; embedded beams; embedded plates; fixed plates ) according to specs.",null,"LS",0.4,32653.059999999998,null,null,{"$f":"H233+G233","v":0},{"$f":"I233*F233","v":0},0.4,null,null,null,32653.059999999998,null,32653.059999999998]
["B/G/650 200","Total",null,null,{"$f":"SUM(E231:E233)","v":1},null,null,null,{"$f":"SUM(I231:I233)","v":0},{"$f":"SUM(J231:J233)","v":0},null,null,{"$f":"SUM(#REF!)","v":{"$error":"#REF!"}}]
["B/G/650 300","ARCHITECTURAL WORKS",null,null,null,null,null,null,null,1063119.5335277,null,null,{"$f":"SUM(#REF!)","v":{"$error":"#REF!"}}]
["B/G/630 301","MASONARY WORK  ",null,null,null,null,null,null,null,null,null,null,714285.71]
[null,"supplying & constructing and installing)brick walls solid cemented  25cm thick.;  the brick dimensions are 250*120*60 mm, the clause includes all lintels; scaffolding; dowels and wire mesh which connect brick with the concrete items before starting plaster works, the mortar contents is 350 kg of ordinary Portland cement for each cubic meter of sand, as per drawings & specs, and all necessary to finish works as per the technical industrial assets,  the rate include lentel required.                                  ",null,"LS",0.3,214285.71299999999,null,null,{"$f":"H237+G237","v":0},{"$f":"I237*F237","v":0},0.3,null,null,null,214285.71299999999,null,214285.71299999999]
["B/G/630 302","PLASTERING WORKS"]
[null," providing (supplying & plastering) for the cement mortar for walls, is including leveling; scaffolding; all necessary tools;   the cement content in the mortar not less than 350 kg  Ordinary Portland Cement for each cubic meter of sand, as per drawings & specs, and all necessary to finish works as per the technical industrial assets. .  ",null,"LS",0.15,107142.85649999999,null,null,{"$f":"H239+G239","v":0},{"$f":"I239*F239","v":0},0.15,null,null,null,107142.85649999999,null,107142.85649999999]
["B/G/630 303","PAINTING WORKS"]
[null,"providing (supplying & paint) emulsion plastic washable paint for internal walls   is including three putty coats; one fin mastic flat coat, and two final  coat, the clause included all necessary tools and steel scaffolding as per drawings & specs, and all necessary to finish works as per the technical industrial assets, and  the approved color samples.  ",null,"LS",0.1,71428.570999999996,null,null,{"$f":"H241+G241","v":0},{"$f":"I241*F241","v":0},0.1,null,null,null,71428.570999999996,null,71428.570999999996]
["B/G/630 304","FLOORINNG WORKS"]
[null," Delivery and installation all the types of floorinng  including all required and specs ",null,"LS",0.1,71428.570999999996,null,null,{"$f":"H243+G243","v":0},{"$f":"I243*F243","v":0},0.1,null,null,null,71428.570999999996,null,71428.570999999996]
["B/G/630 305","ROOFING SYSTEM "]
[null,"Protection layer for roofing including all requirement and accessories    (As Specified)",null,"LS",0.13,92857.142299999992,null,null,{"$f":"H245+G245","v":0},{"$f":"I245*F245","v":0},0.13,null,null,null,92857.142299999992,null,92857.142299999992]
["B/G/630 306","ROLLING SHUTTER DOOR  "]
[null,"Delivery and erection of approved according to specs.",null,"LS",0.16,114285.7136,null,null,{"$f":"H247+G247","v":0},{"$f":"I247*F247","v":0},0.16,null,null,null,114285.7136,null,114285.7136]
["B/G/630 307","DOORS"]
[null,"Delivery and erection of approved color  aluminum doors.",null,"LS",0.03,21428.5713,null,null,{"$f":"H249+G249","v":0},{"$f":"I249*F249","v":0},0.03,null,null,null,21428.5713,null,21428.5713]
["B/G/630 308","WINDOWS "]
[null,"Delivery and erection of approved color  aluminum windows.",null,"LS",0.03,21428.5713,null,null,{"$f":"H251+G251","v":0},{"$f":"I251*F251","v":0},0.03,null,null,null,21428.5713,null,21428.5713]
["B/G/650 300","Total",null,null,{"$f":"SUM(E237:E251)","v":1},null,null,null,{"$f":"SUM(I237:I251)","v":0},{"$f":"SUM(J237:J251)","v":0},null,null,{"$f":"SUM(#REF!)","v":{"$error":"#REF!"}}]
["B/G/650 400","ELECTRICAL WORK",null,null,null,null,null,null,null,93804.664723032096,null,null,{"$f":"SUM(#REF!)","v":{"$error":"#REF!"}}]
["B/G/630 401"," SUPPLY"]
[null,"supplying  all necessary elecreical  parts to compleat the work according to specs ",null,null,0.25,16581.6325,null,null,{"$f":"H255+G255","v":0},{"$f":"I255*F255","v":0},0.25,null,66326.53,null,16581.6325,null,16581.6325]
["B/G/630 402","FIXTUERES"]
[null,"locate and fix all the electrical items according to drawings and specs ",null,"LS",0.65,43112.244500000001,null,null,{"$f":"H257+G257","v":0},{"$f":"I257*F257","v":0},0.65,null,null,null,43112.244500000001,null,43112.244500000001]
["B/G/630 403","TEST "]
[null,"all the necessary tests to handling the electrical work according to specs and industry assets.",null,"LS",0.1,6632.6530000000002,null,null,{"$f":"H259+G259","v":0},{"$f":"I259*F259","v":0},0.1,null,null,null,6632.6530000000002,null,6632.6530000000002]
["B/G/650 400","Total",null,null,{"$f":"SUM(E255:E259)","v":1},null,null,null,{"$f":"SUM(I255:I259)","v":0},{"$f":"SUM(J255:J259)","v":0},null,null,{"$f":"SUM(#REF!)","v":{"$error":"#REF!"}}]
["B/G/650 500","PLUMBING WORK",null,null,null,null,null,null,null,56851.311953352801,null,null,{"$f":"SUM(#REF!)","v":{"$error":"#REF!"}}]
["B/G/630 501","SUPPLY AND INSTALL",null,null,null,null,null,null,null,null,null,null,92322.64]
[null,"Supplying and installing  all necessary embedded items and connections according to specs and drawings",null,"LS",0.7,64625.847999999998,null,null,{"$f":"H263+G263","v":0},{"$f":"I263*F263","v":0},0.7,null,null,null,64625.847999999998,null,64625.847999999998]
["B/G/630 502","TEST"]
[null,"all the necessary tests to handling the plumbing system according to specs and industry assets.",null,"LS",0.3,27696.791999999998,null,null,{"$f":"H265+G265","v":0},{"$f":"I265*F265","v":0},0.3,null,null,null,27696.791999999998,null,27696.791999999998]
["B/G/650 500","Total",null,null,{"$f":"SUM(E263:E265)","v":1},null,null,null,{"$f":"SUM(I263:I265)","v":0},{"$f":"SUM(J263:J265)","v":0},null,null,{"$f":"SUM(#REF!)","v":{"$error":"#REF!"}}]
["B/G/650 600","AIR CONDITION SYSTEM VENTILATION SYSTEM",null,null,null,null,null,null,null,277939.747327502,null,null,{"$f":"SUM(#REF!)","v":{"$error":"#REF!"}}]
["B/G/630 601"," SUPPLY",null,null,null,null,null,null,null,null,null,null,94071.91]
[null,"supplying  all necessary air condition and ventilation parts according to specs and drawings ",null,null,0.6,56443.146000000001,null,null,{"$f":"H269+G269","v":0},{"$f":"I269*F269","v":0},0.6,null,null,null,56443.146000000001,null,56443.146000000001]
["B/G/630 602","FIXTUERES"]
[null,"locate and fix all air condition and ventilation parts according to drawings and specs ",null,"LS",0.2,18814.382000000001,null,null,{"$f":"H271+G271","v":0},{"$f":"I271*F271","v":0},0.2,null,null,null,18814.382000000001,null,18814.382000000001]
["B/G/630 603","TEST "]
[null,"all the necessary tests to handling the AIR CONDITION SYSTEM and VENTILATION SYSTEM according to specs and industry assets.",null,"LS",0.2,18814.382000000001,null,null,{"$f":"H273+G273","v":0},{"$f":"I273*F273","v":0},0.2,null,null,null,18814.382000000001,null,18814.382000000001]
["B/G/650 600","Total",null,null,{"$f":"SUM(E269:E273)","v":1},null,null,null,{"$f":"SUM(I269:I273)","v":0},{"$f":"SUM(J269:J273)","v":0},null,null,{"$f":"SUM(#REF!)","v":{"$error":"#REF!"}}]
["B/G/650 700","FIRE DETECTION",null,null,null,null,null,null,null,25267.249757045702,null,null,{"$f":"SUM(#REF!)","v":{"$error":"#REF!"}}]
["B/G/630 701","SUPPLY AND ERECT",null,null,null,null,null,null,null,null,null,null,37414.97]
[null,"Supplying and erecting  all necessary fire detection system parts and connections according to specs and drawings",null,"LS",0.7,26190.478999999999,null,null,{"$f":"H277+G277","v":0},{"$f":"I277*F277","v":0},0.7,null,null,null,26190.478999999999,null,26190.478999999999]
["B/G/630 702","TEST"]
[null,"all the necessary tests to handling the fire detection system according to specs and industry assets.",null,"LS",0.3,11224.491,null,null,{"$f":"H279+G279","v":0},{"$f":"I279*F279","v":0},0.3,null,null,null,11224.491,null,11224.491]
["B/G/650 700","Total",null,null,{"$f":"SUM(E277:E279)","v":1},null,null,null,{"$f":"SUM(I277:I279)","v":0},{"$f":"SUM(J277:J279)","v":0},null,null,{"$f":"SUM(#REF!)","v":{"$error":"#REF!"}}]
["B/G/650 800","Basement under  11 kv ",null,null,null,null,null,null,null,66326.530612244896,null,null,{"$f":"SUM(#REF!)","v":{"$error":"#REF!"}}]
[null,"EXCAVATION"]
[null,"Excavation including Excavated material Transfer  (As Specified)"]
[null,"SOIL REPLACEMENT"]
[null,"Supply and apply , SOIL REPLACEMENT According to the approved sieve analysis according to drawings &specs , the rate include leveling , water , compaction and compaction test to be compacted with relative compaction 98%."]
[null,"PLAIN CONCRETE "]
[null,"Supply and provide ready mix plain concrete grade 250 KG/m³, the clause includes form work, adding additives, pouring and curing, to be separated from soil  by 250 micron polyethylene proofing sheet, and that concrete should be finished as per specs and industry assets. "]
[null,"REINFORCEMENT CONCRETE FOR FOOTINGS "]
[null,"Reinforced concrete for foundation and semelle with specified strength  including all required joints  and testing (As Specified)   (Cement content not less than 350 Kg/m³)"]
[null,"INSULATION"]
[null,"providing (supplying & painting) three coats of bituminous emulsion above concrete surface which in contact with soil as per drawings & specs. ( Up to zero level )"]
[null,"COLUMNS UP TO FOUNDATION & WALL"]
[null,"Reinforced concrete for columns and beams with specified strength  including all required  testing (As Specified)   (Cement content not less than 350 Kg/m³) "]
[null,"Backfeling"]
[null,"backfilling by approved fill material selected from excavation ,including compaction , the rate include compaction test  according to specs.","M3"]
[null,"S.O.G"]
[null,"applying all the reqaired layes of slap on grade according to drawings and specs."]
[null,"SLAB AT +1.15 & finshing",null,null,null,null,null,null,null,null,null,null,365403.3]
[null,"Reinforced concrete for roof slab and beams with specified strength  including faire faceand all required  testing (As Specified) (Cement content not less than 350 Kg/m³) ",null,"LS",0.7,255782.30999999997,null,null,{"$f":"H299+G299","v":0},{"$f":"I299*F299","v":0},0.7,null,null,null,255782.30999999997,null,255782.30999999997]
[]
[null,null,null,"LS",0.3,109620.98999999999,null,null,{"$f":"H301+G301","v":0},{"$f":"I301*F301","v":0},0.3,null,null,null,109620.98999999999,null,109620.98999999999]
["B/G/650 800","Total",null,null,{"$f":"SUM(E299:E301)","v":1},null,null,null,{"$f":"SUM(I299:I301)","v":0},{"$f":"SUM(J299:J301)","v":0},null,null,{"$f":"SUM(#REF!)","v":{"$error":"#REF!"}}]
[]
["B/G/700 000","Site works (Lump sum prices of items Nos. 700100 through 701 500).",null,null,null,null,null,null,null,8800567.5500000007,null,null,{"$f":"SUM(#REF!)","v":{"$error":"#REF!"}}]
["B/G/700 100","MAIN ROADS",null,null,null,null,null,null,null,660978.620019436,null,null,476190.48]
["B/G/700 101","EXCAVATION AND SOIL REPLACEMENT"]
[null,"Excavation including Excavated material Transfer  (As Specified),Supply and apply , SOIL REPLACEMENT According to the approved sieve analysis according to drawings &specs",null,"LS",0.1,47619.048000000003,null,null,{"$f":"H307+G307","v":0},{"$f":"I307*F307","v":0},0.1,null,null,null,47619.048000000003,null,47619.048000000003]
["B/G/700 102","SUBBASE LAYERS"]
[null,"Supply and apply , SUBBASE LAYERS According to the approved sieve analysis according to drawings &specs , the rate include leveling , water , compaction and compaction test to be compacted with relative compaction 98%.",null,"LS",0.35,166666.66799999998,null,null,{"$f":"H309+G309","v":0},{"$f":"I309*F309","v":0},0.35,null,null,null,166666.66799999998,null,166666.66799999998]
["B/G/700 103"," CONCRETE "]
[null,"Supply and provide ready mix concrete according to  specs and industry assets. ",null,"LS",0.45,214285.71599999999,null,null,{"$f":"H311+G311","v":0},{"$f":"I311*F311","v":0},0.45,null,null,null,214285.71599999999,null,214285.71599999999]
["B/G/700 104","CARBE STONE "]
[null,"supply and apply carbe stone according to specs and industry assets.",null,"LS",0.1,47619.048000000003,null,null,{"$f":"H313+G313","v":0},{"$f":"I313*F313","v":0},0.1,null,null,null,47619.048000000003,null,47619.048000000003]
["B/G/700 100","SECONDARY ROADS",null,null,null,null,null,null,null,249057.33722060299,null,null,476190.48]
["B/G/700 101","EXCAVATION AND SOIL REPLACEMENT"]
[null,"Excavation including Excavated material Transfer  (As Specified),Supply and apply , SOIL REPLACEMENT According to the approved sieve analysis according to drawings &specs",null,"LS",0.1,47619.048000000003,null,null,{"$f":"H316+G316","v":0},{"$f":"I316*F316","v":0},0.1,null,null,null,47619.048000000003,null,47619.048000000003]
["B/G/700 102","SUBBASE LAYERS"]
[null,"Supply and apply , SUBBASE LAYERS According to the approved sieve analysis according to drawings &specs , the rate include leveling , water , compaction and compaction test to be compacted with relative compaction 98%.",null,"LS",0.35,166666.66799999998,null,null,{"$f":"H318+G318","v":0},{"$f":"I318*F318","v":0},0.35,null,null,null,166666.66799999998,null,166666.66799999998]
["B/G/700 103"," CONCRETE "]
[null,"Supply and provide ready mix concrete according to  specs and industry assets. ",null,"LS",0.45,214285.71599999999,null,null,{"$f":"H320+G320","v":0},{"$f":"I320*F320","v":0},0.45,null,null,null,214285.71599999999,null,214285.71599999999]
["B/G/700 104","CARBE STONE "]
[null,"supply and apply carbe stone according to specs and industry assets.",null,"LS",0.1,47619.048000000003,null,null,{"$f":"H322+G322","v":0},{"$f":"I322*F322","v":0},0.1,null,null,null,47619.048000000003,null,47619.048000000003]
["B/G/700 100","Total",null,null,{"$f":"SUM(E316:E322)","v":0.99999999999999989},null,null,null,{"$f":"SUM(I316:I322)","v":0},{"$f":"SUM(J316:J322)","v":0},null,null,476190.48]
["B/G/700 200","R.C CABLE TRENCHES AND DUCTS (OUT DOOR)",null,null,null,null,null,null,null,1997344.02332362,null,null,{"$f":"SUM(#REF!)","v":{"$error":"#REF!"}}]
["B/G/700 201","EXCAVATION AND SOIL REPLACEMENT",null,null,null,null,null,null,null,null,null,null,405102.04]
[null,"Excavation including Excavated material Transfer  (As Specified),Supply and apply , SOIL REPLACEMENT According to the approved sieve analysis according to drawings &specs",null,"LS",0.08,32408.163199999999,null,null,{"$f":"H326+G326","v":0},{"$f":"I326*F326","v":0},0.08,null,null,null,32408.163199999999,null,32408.163199999999]
["B/G/700 202","PLAIN CONCRETE "]
[null,"Supply and provide ready mix plain concrete grade 250 KG/m³, the clause includes form work, adding additives, pouring and curing,, and that concrete should be finished as per specs and industry assets. ",null,"LS",0.15,60765.305999999997,null,null,{"$f":"H328+G328","v":0},{"$f":"I328*F328","v":0},0.15,null,null,null,60765.305999999997,null,60765.305999999997]
["B/G/700 203","REINFORCEMENT CONCRETE"]
[null,"Reinforced concrete for raft and walls with specified strength  including all required  and testing (As Specified)   (Cement content not less than 350 Kg/m³)",null,"LS",0.45,182295.91800000001,null,null,{"$f":"H330+G330","v":0},{"$f":"I330*F330","v":0},0.45,null,null,null,182295.91800000001,null,182295.91800000001]
["B/G/700 204","CHEQUERED PLATE COVER "]
[null,"Delivery and erection of  chequered plate cover including painting  & all installation and handling  requirement (As Specified)",null,"LS",0.15,60765.305999999997,null,null,{"$f":"H332+G332","v":0},{"$f":"I332*F332","v":0},0.15,null,null,null,60765.305999999997,null,60765.305999999997]
["B/G/700 205","DUCTE"]
[null,"making all the necessary ducte according to drawings and spics.",null,"LS",0.17,68867.346799999999,null,null,{"$f":"H334+G334","v":0},{"$f":"I334*F334","v":0},0.17,null,null,null,68867.346799999999,null,68867.346799999999]
["B/G/700 200","Total",null,null,{"$f":"SUM(E326:E334)","v":1},null,null,null,{"$f":"SUM(I326:I334)","v":0},{"$f":"SUM(J326:J334)","v":0},null,null,{"$f":"SUM(#REF!)","v":{"$error":"#REF!"}}]
["B/G/700 300","WIRE MESH FENCE",null,null,null,null,null,null,null,205651.11758989299,null,null,{"$f":"SUM(#REF!)","v":{"$error":"#REF!"}}]
["B/G/700 301","FOOTING",null,null,null,null,null,null,null,null,null,null,92711.37]
[null,"form footings and puring  ready mix concrete according to  specs and industry assets.",null,"LS",0.2,18542.274000000001,null,null,{"$f":"H338+G338","v":0},{"$f":"I338*F338","v":0},0.2,null,null,null,18742.274000000001,null,18542.274000000001]
["B/G/700 302","Panels"]
[null,"Supply  panels according to specs. ",null,"LS",0.6,55626.821999999993,null,null,{"$f":"H340+G340","v":0},{"$f":"I340*F340","v":0},0.6,null,null,null,56226.821999999993,null,55626.821999999993]
["B/G/700 303","ERACTING"]
[null,"locate and eract all the panels according to drawings and specs ",null,"LS",0.2,18542.274000000001,null,null,{"$f":"H342+G342","v":0},{"$f":"I342*F342","v":0},0.2,null,null,null,18742.274000000001,null,18542.274000000001]
["B/G/700 300","Total",null,null,{"$f":"SUM(E338:E342)","v":1},null,null,null,{"$f":"SUM(I338:I342)","v":0},{"$f":"SUM(J338:J342)","v":0},null,null,{"$f":"SUM(#REF!)","v":{"$error":"#REF!"}}]
["B/G/700 400","TWO FIRE FIGHTING BUILDING",null,null,null,null,null,null,null,330903.79008746397,null,null,{"$f":"SUM(#REF!)","v":{"$error":"#REF!"}}]
["B/G/700 401","EXCAVATION ",null,null,null,null,null,null,null,null,null,null,331122.45]
[null,"Excavation including Excavated material Transfer  (As Specified)",null,"LS",0.06,19867.347000000002,null,null,{"$f":"H346+G346","v":0},{"$f":"I346*F346","v":0},0.06,null,null,null,19867.347000000002,null,19867.347000000002]
["B/G/700 402","SOIL  REPLACEMENT"]
[null,"Supply and apply , SOIL REPLACEMENT According to the approved sieve analysis according to drawings &specs , the rate include leveling , water , compaction and compaction test to be compacted with relative compaction 98%.",null,"LS",0.08,26489.796000000002,null,null,{"$f":"H348+G348","v":0},{"$f":"I348*F348","v":0},0.08,null,null,null,26489.796000000002,null,26489.796000000002]
["B/G/700 403","REINFORCEMENT CONCRETE FOR FOOTINGS AND TANK "]
[null,"Reinforced concrete for foundation, semelle and Tank with specified strength  including all required joints  and testing (As Specified)   (Cement content not less than 350 Kg/m³)",null,"LS",0.4,132448.98000000001,null,null,{"$f":"H350+G350","v":0},{"$f":"I350*F350","v":0},0.4,null,null,null,132448.98000000001,null,132448.98000000001]
["B/G/700 404","REINFORCEMENT CONCRETE FOR COLUMNS, BEAMS AND ROOF"]
[null,"Reinforced concrete for columns, beams and roof with specified strength  including all required  testing (As Specified)   (Cement content not less than 350 Kg/m³) ",null,"LS",0.3,99336.735000000001,null,null,{"$f":"H352+G352","v":0},{"$f":"I352*F352","v":0},0.3,null,null,null,99336.735000000001,null,99336.735000000001]
["B/G/700 405","MASONARY WORK  "]
[null,"supplying & constructing and installing)brick walls solid cemented  25cm thick.;  the brick dimensions are 250*120*60 mm, the clause includes all lintels; scaffolding; dowels and wire mesh which connect brick with the concrete items before starting plaster works, the mortar contents is 350 kg of ordinary Portland cement for each cubic meter of sand, as per drawings & specs, and all necessary to finish works as per the technical industrial assets,  the rate include lentel required.                                  ",null,"LS",0.16,52979.592000000004,null,null,{"$f":"H354+G354","v":0},{"$f":"I354*F354","v":0},0.16,null,{"$f":"SUM(O346:O354)","v":331122.45},null,52979.592000000004,null,52979.592000000004]
["B/G/700 400","Total",null,null,{"$f":"SUM(E346:E354)","v":1},null,null,null,{"$f":"SUM(I346:I354)","v":0},{"$f":"SUM(J346:J354)","v":0},null,null,{"$f":"SUM(#REF!)","v":{"$error":"#REF!"}}]
["B/G 700 500","WATER  SUPPLY SYSTEM ",null,null,null,null,null,null,null,189504.37317784299]
[null,"SUPPLY AND ERECT"]
[null,"Supplying and erecting  all necessary water system parts and connections according to specs and drawings"]
[null,"FOUNDATION FOR F.F TANK"]
[null,"ELECTERIC AND DIESEL WATER PUMPS"]
[null,"TEST"]
[null,"all the necessary tests to handling the water system according to specs and industry assets."]
[]
[null,"UNDER GROUND WATER TANK & Pump Room"]
[null,"EXCAVATION AND SOIL REPLACEMENT"]
[null,"Excavation including Excavated material Transfer  (As Specified),Supply and apply , SOIL REPLACEMENT According to the approved sieve analysis according to drawings &specs"]
[null,"PLAIN CONCRETE "]
[null,"Supply and provide ready mix plain concrete grade 250 KG/m³, the clause includes form work, adding additives, pouring and curing,, and that concrete should be finished as per specs and industry assets. "]
[null,"REINFORCEMENT CONCRETE FOR TANK ",null,null,null,null,null,null,null,82118.561710398499]
[null,"Reinforced concrete for foundation, semelle and Tank with specified strength  including all required joints  and testing (As Specified)   (Cement content not less than 350 Kg/m³)"]
[null,"ISOLATION"]
[null,"providing (supplying & painting) three coats of bituminous emulsion above concrete surface which in contact with soil as per drawings & specs. ( Up to zero level )"]
[null,"FINISHING"]
[]
[]
[]
[null,"SEWERAGE SYSTEM"]
[null,"SEWERAGE PIPING"]
[null,"MANHOLES"]
[null,"SEPTIC TANK FIL TERATION TANK collecting tanck"]
[]
[null,"FIL TERATION TANK"]
[null,"collecting tanck"]
[null,"TEST"]
[null,"all the necessary tests to handling the water system according to specs and industry assets."]
[]
[]
["B/G/700 700","TRANSFORMER FONDATION FOR (3 X 125)",null,null,null,null,null,null,null,1407069.97084548,null,null,956632.65]
["B/G/700 501","EXCAVATION "]
[null,"Excavation including Excavated material Transfer  (As Specified)",null,"LS",0.15,143494.89749999999,null,null,{"$f":"H390+G390","v":0},{"$f":"I390*F390","v":0},0.15,null,null,{"$f":"K390*M388","v":143494.89749999999},null,null,143494.89749999999]
["B/G/700 502","SOIL  REPLACEMENT"]
[null,"Supply and apply , SOIL REPLACEMENT According to the approved sieve analysis according to drawings &specs , the rate include leveling , water , compaction and compaction test to be compacted with relative compaction 98%.",null,"LS",0.1,95663.265000000014,null,null,{"$f":"H392+G392","v":0},{"$f":"I392*F392","v":0},0.1,null,null,{"$f":"K392*M388","v":95663.265000000014},null,null,95663.265000000014]
["B/G/700 503","Backfeling"]
[null,"backfilling by approved fill material selected from excavation ,including compaction , the rate include compaction test  according to specs.","M3","LS",0.1,95663.265000000014,null,null,{"$f":"H394+G394","v":0},{"$f":"I394*F394","v":0},0.1,null,null,{"$f":"K394*M388","v":95663.265000000014},null,null,95663.265000000014]
["B/G/700 504","PLAIN CONCRETE "]
[null,"Supply and provide ready mix plain concrete grade 250 KG/m³, the clause includes form work, adding additives, pouring and curing, to be separated from soil  by 250 micron polyethylene proofing sheet, and that concrete should be finished as per specs and industry assets. ",null,"LS",0.25,239158.16250000001,null,null,{"$f":"H396+G396","v":0},{"$f":"I396*F396","v":0},0.25,null,null,{"$f":"K396*M388","v":239158.16250000001},null,null,239158.16250000001]
["B/G/700 505","REINFORCEMENT CONCRETE FOR FOOTINGS "]
[null,"Reinforced concrete  with specified strength  including all required joints  and testing (As Specified)   (Cement content not less than 350 Kg/m³)",null,"LS",0.35,334821.42749999999,null,null,{"$f":"H398+G398","v":0},{"$f":"I398*F398","v":0},0.35,null,{"$f":"SUM(K390:K400)","v":1},{"$f":"K398*M388","v":334821.42749999999},null,null,334821.42749999999]
["B/G/700 506","INSULLATION "]
[null,"providing (supplying & painting) three coats of bituminous emulsion above concrete surface which in contact with soil as per drawings & specs. ( Up to zero level )",null,"LS",0.05,47831.632500000007,null,null,{"$f":"H400+G400","v":0},{"$f":"I400*F400","v":0},0.05,null,{"$f":"SUM(N389:N400)","v":956632.64999999991},{"$f":"K400*M388","v":47831.632500000007},null,null,47831.632500000007]
["B/G/700 700","Total",null,null,{"$f":"SUM(E390:E400)","v":1},null,null,null,{"$f":"SUM(I390:I400)","v":0},{"$f":"SUM(J390:J400)","v":0},null,null,956632.65]
["B/G/700 800","TRANSFORMER FONDATION FOR (2 X 40)",null,null,null,null,null,null,null,500291.54518950399,null,null,956632.65]
["B/G/700 501","EXCAVATION "]
[null,"Excavation including Excavated material Transfer  (As Specified)",null,"LS",0.15,143494.89749999999,null,null,{"$f":"H404+G404","v":0},{"$f":"I404*F404","v":0},0.15,null,null,{"$f":"K404*M402","v":143494.89749999999},null,null,143494.89749999999]
["B/G/700 502","SOIL  REPLACEMENT"]
[null,"Supply and apply , SOIL REPLACEMENT According to the approved sieve analysis according to drawings &specs , the rate include leveling , water , compaction and compaction test to be compacted with relative compaction 98%.",null,"LS",0.1,95663.265000000014,null,null,{"$f":"H406+G406","v":0},{"$f":"I406*F406","v":0},0.1,null,null,{"$f":"K406*M402","v":95663.265000000014},null,null,95663.265000000014]
["B/G/700 503","Backfeling"]
[null,"backfilling by approved fill material selected from excavation ,including compaction , the rate include compaction test  according to specs.","M3","LS",0.1,95663.265000000014,null,null,{"$f":"H408+G408","v":0},{"$f":"I408*F408","v":0},0.1,null,null,{"$f":"K408*M402","v":95663.265000000014},null,null,95663.265000000014]
["B/G/700 504","PLAIN CONCRETE "]
[null,"Supply and provide ready mix plain concrete grade 250 KG/m³, the clause includes form work, adding additives, pouring and curing, to be separated from soil  by 250 micron polyethylene proofing sheet, and that concrete should be finished as per specs and industry assets. ",null,"LS",0.25,239158.16250000001,null,null,{"$f":"H410+G410","v":0},{"$f":"I410*F410","v":0},0.25,null,null,{"$f":"K410*M402","v":239158.16250000001},null,null,239158.16250000001]
["B/G/700 505","REINFORCEMENT CONCRETE FOR FOOTINGS "]
[null,"Reinforced concrete  with specified strength  including all required joints  and testing (As Specified)   (Cement content not less than 350 Kg/m³)",null,"LS",0.35,334821.42749999999,null,null,{"$f":"H412+G412","v":0},{"$f":"I412*F412","v":0},0.35,null,{"$f":"SUM(K404:K414)","v":1},{"$f":"K412*M402","v":334821.42749999999},null,null,334821.42749999999]
["B/G/700 506","INSULLATION "]
[null,"providing (supplying & painting) three coats of bituminous emulsion above concrete surface which in contact with soil as per drawings & specs. ( Up to zero level )",null,"LS",0.05,47831.632500000007,null,null,{"$f":"H414+G414","v":0},{"$f":"I414*F414","v":0},0.05,null,{"$f":"SUM(N403:N414)","v":956632.64999999991},{"$f":"K414*M402","v":47831.632500000007},null,null,47831.632500000007]
["B/G/700 800","Total",null,null,{"$f":"SUM(E404:E414)","v":1},null,null,null,{"$f":"SUM(I404:I414)","v":0},{"$f":"SUM(J404:J414)","v":0},null,null,956632.65]
[null,"OIL PITS"]
[null,"DESIGN WORKS"]
[null,"EXCAVATION"]
[null,"Excavation including Excavated material Transfer  (As Specified)"]
[null,"PLEAN CONCREATE"]
[]
[null,"REINFORCED CONCRETE"]
[]
[null,"INSULATION"]
[]
[null,"BACK FILLING"]
[null,"backfilling by approved fill material selected from excavation ,including compaction , the rate include compaction test  according to specs."]
[null,"PLASTRING"]
[]
[]
[]
[]
[]
[]
["B/G/700 900","OUTDOOR LIGHTING SYSTEM",null,null,null,null,null,null,null,218658.89212827999,null,null,109669.58]
["B/G/700 601","SUPPLYING"]
[null,"supplying all the necessary lighting and accessories of outdoor lighting system according to  specs and industry assets.",null,"LS",0.6,65801.747999999992,null,null,{"$f":"H437+G437","v":0},{"$f":"I437*F437","v":0},0.6,null,null,{"$f":"K437*M435","v":65801.747999999992},null,null,65801.747999999992]
["B/G/700 602","ERACTING AND TESTING "]
[null,"locate and erect all the necessary lighting and accessories of outdoor lighting system according to  specs and industry assets,incloding all the tests that needed.",null,"LS",0.4,43867.832000000002,null,null,{"$f":"H439+G439","v":0},{"$f":"I439*F439","v":0},0.4,null,{"$f":"SUM(N437:N439)","v":109669.57999999999},{"$f":"K439*M435","v":43867.832000000002},null,null,43867.832000000002]
["B/G/700 900","Total",null,null,{"$f":"SUM(E437:E439)","v":1},null,null,null,{"$f":"SUM(I437:I439)","v":0},{"$f":"SUM(J437:J439)","v":0},null,null,109669.58]
["B/G 701 000","Backfilling TO ZERO LEVEL",null,null,null,null,null,null,null,626822.15743440203]
[null," backfilling by approved fill material selected to Zero level ,including compaction , the rate include compaction test  according to specs."]
["B/G/701 100","FIRE HYDRANTS",null,null,null,null,null,null,null,315840.621963071]
["B/G/700 701","SUPPLYING",null,null,null,null,null,null,null,null,null,null,183673.47]
[null,"supplying all the necessary pipes and accessories according to  specs and industry assets.",null,"LS",0.6,110204.08199999999,null,null,{"$f":"H445+G445","v":0},{"$f":"I445*F445","v":0},0.6,null,null,null,110204.08199999999,null,110204.08199999999]
["B/G/700 702","ERACTING AND TESTING "]
[null,"locate and erect all the items according to drawings and specs incloding all the tests that needed ",null,"LS",0.3,55102.040999999997,null,null,{"$f":"H447+G447","v":0},{"$f":"I447*F447","v":0},0.3,null,null,null,55102.040999999997,null,55102.040999999997]
["B/G/700 703","SUPPORTS "]
[null,"provide the pipes with all the supports that needed ",null,"LS",0.1,18367.347000000002,null,null,{"$f":"H449+G449","v":0},{"$f":"I449*F449","v":0},0.1,null,null,null,18367.347000000002,null,18367.347000000002]
["B/G/701 100","Total",null,null,{"$f":"SUM(E445:E449)","v":0.99999999999999989},null,null,null,{"$f":"SUM(I445:I449)","v":0},{"$f":"SUM(J445:J449)","v":0}]
["B/G/701 200","EARTHING ",null,null,null,null,null,null,null,1485714.2857142901,null,null,{"$f":"SUM(#REF!)","v":{"$error":"#REF!"}}]
["B/G/700 801","SUPPLYING",null,null,null,null,null,null,null,null,null,null,538775.51]
[null,"diliver all the materials that needed to site according to specs.",null,"LS",0.6,323265.30599999998,null,null,{"$f":"H453+G453","v":0},{"$f":"I453*F453","v":0},0.6,null,null,null,317265.30599999998,null,323265.30599999998]
["B/G/700 802","ERACTING AND TESTING "]
[null,"ERACTING AND TESTING eracting and testing according to specs and drawings.",null,"LS",0.2,107755.10200000001,null,null,{"$f":"H455+G455","v":0},{"$f":"I455*F455","v":0},0.2,null,null,null,105755.10200000001,null,107755.10200000001]
["B/G/700 803","EARTHING PIT"]
[null," apply  earthing pit acording to drawings and specs.",null,"LS",0.2,107755.10200000001,null,null,{"$f":"H457+G457","v":0},{"$f":"I457*F457","v":0},0.2,null,null,null,105755.10200000001,null,107755.10200000001]
["B/G/701 200","Total",null,null,{"$f":"SUM(E453:E457)","v":1},null,null,null,{"$f":"SUM(I453:I457)","v":0},{"$f":"SUM(J453:J457)","v":0},null,null,{"$f":"SUM(#REF!)","v":{"$error":"#REF!"}}]
["B/G/701 300","ANY OTHER CIVIL WORK ",null,null,null,null,null,null,null,252672.497570457,null,null,{"$f":"SUM(#REF!)","v":{"$error":"#REF!"}}]
["B/G/700 901","LEVELING AND BACKFILLING ",null,null,null,null,null,null,null,null,null,null,171039.84]
[null,"the area around the bulding have to reach the zero level including the necessary leveling and backfilling",null,"LS",0.4,68415.936000000002,null,null,{"$f":"H461+G461","v":0},{"$f":"I461*F461","v":0},0.4,null,null,null,68415.936000000002,null,68415.936000000002]
["B/G/700 902","GRAVEL LAYER "]
[null,"supply and apply a grevel layer according to specs.",null,"LS",0.2,34207.968000000001,null,null,{"$f":"H463+G463","v":0},{"$f":"I463*F463","v":0},0.2,null,null,null,34207.968000000001,null,34207.968000000001]
["B/G/700 903","OUT DOOR LIGHTING "]
[null,"supplying and erct all the necessary items and accessories according to  specs and industry assets.",null,"LS",0.3,51311.951999999997,null,null,{"$f":"H465+G465","v":0},{"$f":"I465*F465","v":0},0.3,null,null,null,51311.951999999997,null,51311.951999999997]
["B/G/700 904","MOBILIZATION AND DEMOBILIZATION"]
[null,"Per lump sum mobilization which include (but not limited to... )all equipment  at the construction site such as office ,stationary and all necessary items to finish the project until its finshed.",null,"LS",0.1,17103.984,null,null,{"$f":"H467+G467","v":0},{"$f":"I467*F467","v":0},0.1,null,null,null,17103.984,null,17103.984]
["B/G/701 300","Total",null,null,{"$f":"SUM(E461:E467)","v":1.0000000000000002},null,null,null,{"$f":"SUM(I461:I467)","v":0},{"$f":"SUM(J461:J467)","v":0},null,null,{"$f":"SUM(#REF!)","v":{"$error":"#REF!"}}]
["B/G/701 400","DESIGN",null,null,null,null,null,null,null,151603.498542274,null,null,{"$f":"SUM(#REF!)","v":{"$error":"#REF!"}}]
["B/G/701 001","PRIMARY DESIGN ",null,null,null,null,null,null,null,null,null,null,153061.22]
[null,"delver all the aproved drawings to owner ",null,"LS",0.9,137755.098,null,null,{"$f":"H471+G471","v":0},{"$f":"I471*F471","v":0},0.9,null,null,null,137755.098,null,137755.098]
["B/G/701 002","AS BULT DRAWINGS"]
[null,"delver  aproved as built drawings to owner ",null,"LS",0.1,15306.122000000001,null,null,{"$f":"H473+G473","v":0},{"$f":"I473*F473","v":0},0.1,null,null,null,15306.122000000001,null,15306.122000000001]
["B/G/701 400","Total",null,null,{"$f":"SUM(E471:E473)","v":1},null,null,null,{"$f":"SUM(I471:I473)","v":0},{"$f":"SUM(J471:J473)","v":0},null,null,{"$f":"SUM(#REF!)","v":{"$error":"#REF!"}}]
["B/G/701 500","DECENNIAL LIABILITY INSURANCE",null,null,null,null,null,null,null,126336.248785228,null,null,{"$f":"SUM(#REF!)","v":{"$error":"#REF!"}}]
[null,"DECENNIAL LIABILITY INSURANCE","DECENNIAL LIABILITY INSURANCE","LS",1,145772.59,null,null,{"$f":"H476+G476","v":0},{"$f":"I476*F476","v":0},null,null,{"$f":"SUM(#REF!)","v":{"$error":"#REF!"}},null,null,null,145772.59]
["B/G/701 500","Total",null,null,{"$f":"SUM(E476)","v":1},null,null,null,{"$f":"SUM(I476)","v":0},{"$f":"SUM(J476)","v":0},null,null,{"$f":"SUM(#REF!)","v":{"$error":"#REF!"}}]
["TOTAL ",null,null,{"$f":"SUM(J5:J477)-(J304)-((J5))","v":18254965.994334318},null,null,null,null,null,null,null,null,{"$f":"SUM(#REF!)","v":{"$error":"#REF!"}}]
[null,null,null,null,null,null,null,null,null,{"$f":"SUM(J5:J477)-(J304)-((J5))","v":18254965.994334318}]